Workbook

Sheet Overview
C2: AI businesses finance demonstration
C4: Selected case | E4: ='Assumptions'!$G$4 -> Base | H4: EUR · entirely fictional
C6: Northstar Applied Intelligence — fictional
C7: 31 August 2026. January–August actuals, September–December forecast.
C9: August performance | E9: Actual | F9: Original budget | G9: Variance
C10: Revenue | E10: ='P&L'!L11 -> 409,215 | F10: ='Budget'!L11 -> 451,000 | G10: =E10-F10 -> (41,785)
C11: Gross profit | E11: ='P&L'!L16 -> 229,212 | F11: ='Budget'!L16 -> 239,700 | G11: =E11-F11 -> (10,488)
C12: EBITDA | E12: ='P&L'!L25 -> (1,988) | F12: ='Budget'!L25 -> 16,600 | G12: =E12-F12 -> (18,588)
C13: Net profit | E13: ='P&L'!L32 -> (8,266) | F13: ='Budget'!L32 -> 8,470 | G13: =E13-F13 -> (16,736)
C14: Gross margin | E14: ='P&L'!L17 -> 56.0% | F14: ='Budget'!L17 -> 53.1% | G14: =E14-F14 -> 2.9%
C17: Bank cash at August close | E17: ='Balance sheet'!L8 -> 1,407,072
C18: Lowest daily forecast cash | E18: ='13 week cash'!E21 -> 1,239,714
C19: Reserve headroom / (shortfall) | E19: ='13 week cash'!E21-'Actual inputs'!$E$62 -> 989,714
C20: Full-year revenue | E20: =SUM('P&L'!E11:P11) -> 4,477,440
C21: Full-year EBITDA | E21: =SUM('P&L'!E25:P25) -> (215,733)
C22: Year-end cash | E22: ='Balance sheet'!P8 -> 1,384,423
C25: CFO actions
C27: Topic | D27: Action | E27: Owner | F27: Due | G27: Status
C28: Usage margin | D28: Review realised pricing, cache performance and model routing by workload. | E28: Product lead | F28: 2026-09-04 | G28: Open
C29: Cloud capacity | D29: Compare consumed capacity with minimum commitments before expansion. | E29: Engineering lead | F29: 2026-09-07 | G29: Open
C30: Enterprise billing | D30: Separate platform fees, usage charges and advances in contracts. | E30: Commercial lead | F30: 2026-09-08 | G30: Open
C31: Collections | D31: Confirm receipt promises and resolve disputed balances. | E31: Credit control | F31: 2026-09-03 | G31: Open
C32: Liquidity | D32: Review the Downside cash path before hiring or committing capacity. | E32: CFO | F32: 2026-09-07 | G32: Open
C36: Monthly liquidity
C38: Month | D38: Closing cash | E38: Reserve
C39: Jan-26 | D39: ='Balance sheet'!E8 -> 1,811,977 | E39: ='Actual inputs'!$E$62 -> 250,000
C40: Feb-26 | D40: ='Balance sheet'!F8 -> 1,727,902 | E40: ='Actual inputs'!$E$62 -> 250,000
C41: Mar-26 | D41: ='Balance sheet'!G8 -> 1,646,747 | E41: ='Actual inputs'!$E$62 -> 250,000
C42: Apr-26 | D42: ='Balance sheet'!H8 -> 1,579,822 | E42: ='Actual inputs'!$E$62 -> 250,000
C43: May-26 | D43: ='Balance sheet'!I8 -> 1,529,238 | E43: ='Actual inputs'!$E$62 -> 250,000
C44: Jun-26 | D44: ='Balance sheet'!J8 -> 1,471,990 | E44: ='Actual inputs'!$E$62 -> 250,000
C45: Jul-26 | D45: ='Balance sheet'!K8 -> 1,429,346 | E45: ='Actual inputs'!$E$62 -> 250,000
C46: Aug-26 | D46: ='Balance sheet'!L8 -> 1,407,072 | E46: ='Actual inputs'!$E$62 -> 250,000
C47: Sept-26 | D47: ='Balance sheet'!M8 -> 1,391,999 | E47: ='Actual inputs'!$E$62 -> 250,000
C48: Oct-26 | D48: ='Balance sheet'!N8 -> 1,380,597 | E48: ='Actual inputs'!$E$62 -> 250,000
C49: Nov-26 | D49: ='Balance sheet'!O8 -> 1,376,399 | E49: ='Actual inputs'!$E$62 -> 250,000
C50: Dec-26 | D50: ='Balance sheet'!P8 -> 1,384,423 | E50: ='Actual inputs'!$E$62 -> 250,000

Sheet Assumptions
C2: Assumptions
C4: Selected case | E4: 1 | G4: =CHOOSE($E$4,"Base","Downside") -> Base | H4: EUR · entirely fictional
C5: 1 = Base; 2 = Downside. Blue cells are editable.
E6: Actual | F6: Actual | G6: Actual | H6: Actual | I6: Actual | J6: Actual | K6: Actual | L6: Actual | M6: Forecast | N6: Forecast | O6: Forecast | P6: Forecast
E7: 2026-01-01 | F7: 2026-02-01 | G7: 2026-03-01 | H7: 2026-04-01 | I7: 2026-05-01 | J7: 2026-06-01 | K7: 2026-07-01 | L7: 2026-08-01 | M7: 2026-09-01 | N7: 2026-10-01 | O7: 2026-11-01 | P7: 2026-12-01
C8: Support FTE — active | E8: ='Actual inputs'!E8 -> 7.00 | F8: ='Actual inputs'!F8 -> 7.25 | G8: ='Actual inputs'!G8 -> 7.50 | H8: ='Actual inputs'!H8 -> 7.75 | I8: ='Actual inputs'!I8 -> 8.00 | J8: ='Actual inputs'!J8 -> 8.25 | K8: ='Actual inputs'!K8 -> 8.50 | L8: ='Actual inputs'!L8 -> 8.75 | M8: =IF($E$4=1,IF(ISNUMBER(M9),M9,NA()),IF($E$4=2,IF(ISNUMBER(M10),M10,NA()),NA())) -> 9.00 | N8: =IF($E$4=1,IF(ISNUMBER(N9),N9,NA()),IF($E$4=2,IF(ISNUMBER(N10),N10,NA()),NA())) -> 9.25 | O8: =IF($E$4=1,IF(ISNUMBER(O9),O9,NA()),IF($E$4=2,IF(ISNUMBER(O10),O10,NA()),NA())) -> 9.50 | P8: =IF($E$4=1,IF(ISNUMBER(P9),P9,NA()),IF($E$4=2,IF(ISNUMBER(P10),P10,NA()),NA())) -> 9.75
C9: Base | M9: 9.00 | N9: 9.25 | O9: 9.50 | P9: 9.75
C10: Downside | M10: 9.00 | N10: 9.00 | O10: 9.00 | P10: 9.00
C11: Loaded support pay per month — active | E11: ='Actual inputs'!E9 -> 5,300 | F11: ='Actual inputs'!F9 -> 5,300 | G11: ='Actual inputs'!G9 -> 5,300 | H11: ='Actual inputs'!H9 -> 5,300 | I11: ='Actual inputs'!I9 -> 5,300 | J11: ='Actual inputs'!J9 -> 5,300 | K11: ='Actual inputs'!K9 -> 5,300 | L11: ='Actual inputs'!L9 -> 5,300 | M11: =IF($E$4=1,IF(ISNUMBER(M12),M12,NA()),IF($E$4=2,IF(ISNUMBER(M13),M13,NA()),NA())) -> 5,300 | N11: =IF($E$4=1,IF(ISNUMBER(N12),N12,NA()),IF($E$4=2,IF(ISNUMBER(N13),N13,NA()),NA())) -> 5,300 | O11: =IF($E$4=1,IF(ISNUMBER(O12),O12,NA()),IF($E$4=2,IF(ISNUMBER(O13),O13,NA()),NA())) -> 5,300 | P11: =IF($E$4=1,IF(ISNUMBER(P12),P12,NA()),IF($E$4=2,IF(ISNUMBER(P13),P13,NA()),NA())) -> 5,300
C12: Base | M12: 5,300 | N12: 5,300 | O12: 5,300 | P12: 5,300
C13: Downside | M13: 5,300 | N13: 5,300 | O13: 5,300 | P13: 5,300
C14: Product development FTE — active | E14: ='Actual inputs'!E10 -> 13.00 | F14: ='Actual inputs'!F10 -> 13.50 | G14: ='Actual inputs'!G10 -> 14.00 | H14: ='Actual inputs'!H10 -> 14.50 | I14: ='Actual inputs'!I10 -> 15.00 | J14: ='Actual inputs'!J10 -> 15.50 | K14: ='Actual inputs'!K10 -> 16.00 | L14: ='Actual inputs'!L10 -> 16.50 | M14: =IF($E$4=1,IF(ISNUMBER(M15),M15,NA()),IF($E$4=2,IF(ISNUMBER(M16),M16,NA()),NA())) -> 17.00 | N14: =IF($E$4=1,IF(ISNUMBER(N15),N15,NA()),IF($E$4=2,IF(ISNUMBER(N16),N16,NA()),NA())) -> 17.50 | O14: =IF($E$4=1,IF(ISNUMBER(O15),O15,NA()),IF($E$4=2,IF(ISNUMBER(O16),O16,NA()),NA())) -> 18.00 | P14: =IF($E$4=1,IF(ISNUMBER(P15),P15,NA()),IF($E$4=2,IF(ISNUMBER(P16),P16,NA()),NA())) -> 18.50
C15: Base | M15: 17.00 | N15: 17.50 | O15: 18.00 | P15: 18.50
C16: Downside | M16: 17.00 | N16: 17.00 | O16: 17.00 | P16: 17.00
C17: Loaded development pay per month — active | E17: ='Actual inputs'!E11 -> 6,900 | F17: ='Actual inputs'!F11 -> 6,900 | G17: ='Actual inputs'!G11 -> 6,900 | H17: ='Actual inputs'!H11 -> 6,900 | I17: ='Actual inputs'!I11 -> 6,900 | J17: ='Actual inputs'!J11 -> 6,900 | K17: ='Actual inputs'!K11 -> 6,900 | L17: ='Actual inputs'!L11 -> 6,900 | M17: =IF($E$4=1,IF(ISNUMBER(M18),M18,NA()),IF($E$4=2,IF(ISNUMBER(M19),M19,NA()),NA())) -> 6,900 | N17: =IF($E$4=1,IF(ISNUMBER(N18),N18,NA()),IF($E$4=2,IF(ISNUMBER(N19),N19,NA()),NA())) -> 6,900 | O17: =IF($E$4=1,IF(ISNUMBER(O18),O18,NA()),IF($E$4=2,IF(ISNUMBER(O19),O19,NA()),NA())) -> 6,900 | P17: =IF($E$4=1,IF(ISNUMBER(P18),P18,NA()),IF($E$4=2,IF(ISNUMBER(P19),P19,NA()),NA())) -> 6,900
C18: Base | M18: 6,900 | N18: 6,900 | O18: 6,900 | P18: 6,900
C19: Downside | M19: 6,900 | N19: 6,900 | O19: 6,900 | P19: 6,900
C20: Sales FTE — active | E20: ='Actual inputs'!E12 -> 5.00 | F20: ='Actual inputs'!F12 -> 5.25 | G20: ='Actual inputs'!G12 -> 5.50 | H20: ='Actual inputs'!H12 -> 5.75 | I20: ='Actual inputs'!I12 -> 6.00 | J20: ='Actual inputs'!J12 -> 6.25 | K20: ='Actual inputs'!K12 -> 6.50 | L20: ='Actual inputs'!L12 -> 6.75 | M20: =IF($E$4=1,IF(ISNUMBER(M21),M21,NA()),IF($E$4=2,IF(ISNUMBER(M22),M22,NA()),NA())) -> 7.00 | N20: =IF($E$4=1,IF(ISNUMBER(N21),N21,NA()),IF($E$4=2,IF(ISNUMBER(N22),N22,NA()),NA())) -> 7.25 | O20: =IF($E$4=1,IF(ISNUMBER(O21),O21,NA()),IF($E$4=2,IF(ISNUMBER(O22),O22,NA()),NA())) -> 7.50 | P20: =IF($E$4=1,IF(ISNUMBER(P21),P21,NA()),IF($E$4=2,IF(ISNUMBER(P22),P22,NA()),NA())) -> 7.75
C21: Base | M21: 7.00 | N21: 7.25 | O21: 7.50 | P21: 7.75
C22: Downside | M22: 7.00 | N22: 7.00 | O22: 7.00 | P22: 7.00
C23: Loaded sales pay per month — active | E23: ='Actual inputs'!E13 -> 6,200 | F23: ='Actual inputs'!F13 -> 6,200 | G23: ='Actual inputs'!G13 -> 6,200 | H23: ='Actual inputs'!H13 -> 6,200 | I23: ='Actual inputs'!I13 -> 6,200 | J23: ='Actual inputs'!J13 -> 6,200 | K23: ='Actual inputs'!K13 -> 6,200 | L23: ='Actual inputs'!L13 -> 6,200 | M23: =IF($E$4=1,IF(ISNUMBER(M24),M24,NA()),IF($E$4=2,IF(ISNUMBER(M25),M25,NA()),NA())) -> 6,200 | N23: =IF($E$4=1,IF(ISNUMBER(N24),N24,NA()),IF($E$4=2,IF(ISNUMBER(N25),N25,NA()),NA())) -> 6,200 | O23: =IF($E$4=1,IF(ISNUMBER(O24),O24,NA()),IF($E$4=2,IF(ISNUMBER(O25),O25,NA()),NA())) -> 6,200 | P23: =IF($E$4=1,IF(ISNUMBER(P24),P24,NA()),IF($E$4=2,IF(ISNUMBER(P25),P25,NA()),NA())) -> 6,200
C24: Base | M24: 6,200 | N24: 6,200 | O24: 6,200 | P24: 6,200
C25: Downside | M25: 6,200 | N25: 6,200 | O25: 6,200 | P25: 6,200
C26: Administration FTE — active | E26: ='Actual inputs'!E14 -> 4.00 | F26: ='Actual inputs'!F14 -> 4.00 | G26: ='Actual inputs'!G14 -> 4.00 | H26: ='Actual inputs'!H14 -> 4.00 | I26: ='Actual inputs'!I14 -> 4.00 | J26: ='Actual inputs'!J14 -> 4.00 | K26: ='Actual inputs'!K14 -> 4.00 | L26: ='Actual inputs'!L14 -> 4.00 | M26: =IF($E$4=1,IF(ISNUMBER(M27),M27,NA()),IF($E$4=2,IF(ISNUMBER(M28),M28,NA()),NA())) -> 4.00 | N26: =IF($E$4=1,IF(ISNUMBER(N27),N27,NA()),IF($E$4=2,IF(ISNUMBER(N28),N28,NA()),NA())) -> 4.00 | O26: =IF($E$4=1,IF(ISNUMBER(O27),O27,NA()),IF($E$4=2,IF(ISNUMBER(O28),O28,NA()),NA())) -> 4.00 | P26: =IF($E$4=1,IF(ISNUMBER(P27),P27,NA()),IF($E$4=2,IF(ISNUMBER(P28),P28,NA()),NA())) -> 4.00
C27: Base | M27: 4.00 | N27: 4.00 | O27: 4.00 | P27: 4.00
C28: Downside | M28: 4.00 | N28: 4.00 | O28: 4.00 | P28: 4.00
C29: Loaded administration pay per month — active | E29: ='Actual inputs'!E15 -> 5,900 | F29: ='Actual inputs'!F15 -> 5,900 | G29: ='Actual inputs'!G15 -> 5,900 | H29: ='Actual inputs'!H15 -> 5,900 | I29: ='Actual inputs'!I15 -> 5,900 | J29: ='Actual inputs'!J15 -> 5,900 | K29: ='Actual inputs'!K15 -> 5,900 | L29: ='Actual inputs'!L15 -> 5,900 | M29: =IF($E$4=1,IF(ISNUMBER(M30),M30,NA()),IF($E$4=2,IF(ISNUMBER(M31),M31,NA()),NA())) -> 5,900 | N29: =IF($E$4=1,IF(ISNUMBER(N30),N30,NA()),IF($E$4=2,IF(ISNUMBER(N31),N31,NA()),NA())) -> 5,900 | O29: =IF($E$4=1,IF(ISNUMBER(O30),O30,NA()),IF($E$4=2,IF(ISNUMBER(O31),O31,NA()),NA())) -> 5,900 | P29: =IF($E$4=1,IF(ISNUMBER(P30),P30,NA()),IF($E$4=2,IF(ISNUMBER(P31),P31,NA()),NA())) -> 5,900
C30: Base | M30: 5,900 | N30: 5,900 | O30: 5,900 | P30: 5,900
C31: Downside | M31: 5,900 | N31: 5,900 | O31: 5,900 | P31: 5,900
C32: Acquisition and brand spend — active | E32: ='Actual inputs'!E16 -> 24,000 | F32: ='Actual inputs'!F16 -> 25,200 | G32: ='Actual inputs'!G16 -> 26,400 | H32: ='Actual inputs'!H16 -> 27,600 | I32: ='Actual inputs'!I16 -> 28,800 | J32: ='Actual inputs'!J16 -> 30,000 | K32: ='Actual inputs'!K16 -> 31,200 | L32: ='Actual inputs'!L16 -> 32,400 | M32: =IF($E$4=1,IF(ISNUMBER(M33),M33,NA()),IF($E$4=2,IF(ISNUMBER(M34),M34,NA()),NA())) -> 33,600 | N32: =IF($E$4=1,IF(ISNUMBER(N33),N33,NA()),IF($E$4=2,IF(ISNUMBER(N34),N34,NA()),NA())) -> 34,800 | O32: =IF($E$4=1,IF(ISNUMBER(O33),O33,NA()),IF($E$4=2,IF(ISNUMBER(O34),O34,NA()),NA())) -> 36,000 | P32: =IF($E$4=1,IF(ISNUMBER(P33),P33,NA()),IF($E$4=2,IF(ISNUMBER(P34),P34,NA()),NA())) -> 37,200
C33: Base | M33: 33,600 | N33: 34,800 | O33: 36,000 | P33: 37,200
C34: Downside | M34: 34,000 | N34: 34,000 | O34: 34,000 | P34: 34,000
C35: Office and administration — active | E35: ='Actual inputs'!E17 -> 13,000 | F35: ='Actual inputs'!F17 -> 13,000 | G35: ='Actual inputs'!G17 -> 13,000 | H35: ='Actual inputs'!H17 -> 13,000 | I35: ='Actual inputs'!I17 -> 13,000 | J35: ='Actual inputs'!J17 -> 13,000 | K35: ='Actual inputs'!K17 -> 13,000 | L35: ='Actual inputs'!L17 -> 13,000 | M35: =IF($E$4=1,IF(ISNUMBER(M36),M36,NA()),IF($E$4=2,IF(ISNUMBER(M37),M37,NA()),NA())) -> 13,000 | N35: =IF($E$4=1,IF(ISNUMBER(N36),N36,NA()),IF($E$4=2,IF(ISNUMBER(N37),N37,NA()),NA())) -> 13,000 | O35: =IF($E$4=1,IF(ISNUMBER(O36),O36,NA()),IF($E$4=2,IF(ISNUMBER(O37),O37,NA()),NA())) -> 13,000 | P35: =IF($E$4=1,IF(ISNUMBER(P36),P36,NA()),IF($E$4=2,IF(ISNUMBER(P37),P37,NA()),NA())) -> 13,000
C36: Base | M36: 13,000 | N36: 13,000 | O36: 13,000 | P36: 13,000
C37: Downside | M37: 13,000 | N37: 13,000 | O37: 13,000 | P37: 13,000
C38: Professional fees — active | E38: ='Actual inputs'!E18 -> 6,500 | F38: ='Actual inputs'!F18 -> 6,500 | G38: ='Actual inputs'!G18 -> 6,500 | H38: ='Actual inputs'!H18 -> 6,500 | I38: ='Actual inputs'!I18 -> 6,500 | J38: ='Actual inputs'!J18 -> 6,500 | K38: ='Actual inputs'!K18 -> 6,500 | L38: ='Actual inputs'!L18 -> 6,500 | M38: =IF($E$4=1,IF(ISNUMBER(M39),M39,NA()),IF($E$4=2,IF(ISNUMBER(M40),M40,NA()),NA())) -> 6,500 | N38: =IF($E$4=1,IF(ISNUMBER(N39),N39,NA()),IF($E$4=2,IF(ISNUMBER(N40),N40,NA()),NA())) -> 6,500 | O38: =IF($E$4=1,IF(ISNUMBER(O39),O39,NA()),IF($E$4=2,IF(ISNUMBER(O40),O40,NA()),NA())) -> 6,500 | P38: =IF($E$4=1,IF(ISNUMBER(P39),P39,NA()),IF($E$4=2,IF(ISNUMBER(P40),P40,NA()),NA())) -> 6,500
C39: Base | M39: 6,500 | N39: 6,500 | O39: 6,500 | P39: 6,500
C40: Downside | M40: 6,500 | N40: 6,500 | O40: 6,500 | P40: 6,500
C41: Capital expenditure — active | E41: ='Actual inputs'!E19 -> 8,000 | F41: ='Actual inputs'!F19 -> 8,500 | G41: ='Actual inputs'!G19 -> 9,000 | H41: ='Actual inputs'!H19 -> 9,500 | I41: ='Actual inputs'!I19 -> 10,000 | J41: ='Actual inputs'!J19 -> 10,500 | K41: ='Actual inputs'!K19 -> 11,000 | L41: ='Actual inputs'!L19 -> 11,500 | M41: =IF($E$4=1,IF(ISNUMBER(M42),M42,NA()),IF($E$4=2,IF(ISNUMBER(M43),M43,NA()),NA())) -> 12,000 | N41: =IF($E$4=1,IF(ISNUMBER(N42),N42,NA()),IF($E$4=2,IF(ISNUMBER(N43),N43,NA()),NA())) -> 12,500 | O41: =IF($E$4=1,IF(ISNUMBER(O42),O42,NA()),IF($E$4=2,IF(ISNUMBER(O43),O43,NA()),NA())) -> 13,000 | P41: =IF($E$4=1,IF(ISNUMBER(P42),P42,NA()),IF($E$4=2,IF(ISNUMBER(P43),P43,NA()),NA())) -> 13,500
C42: Base | M42: 12,000 | N42: 12,500 | O42: 13,000 | P42: 13,500
C43: Downside | M43: 11,000 | N43: 8,000 | O43: 8,000 | P43: 8,000
C44: Illustrative current tax paid — active | E44: ='Actual inputs'!E20 -> 0 | F44: ='Actual inputs'!F20 -> 0 | G44: ='Actual inputs'!G20 -> 12,000 | H44: ='Actual inputs'!H20 -> 0 | I44: ='Actual inputs'!I20 -> 0 | J44: ='Actual inputs'!J20 -> 10,000 | K44: ='Actual inputs'!K20 -> 0 | L44: ='Actual inputs'!L20 -> 0 | M44: =IF($E$4=1,IF(ISNUMBER(M45),M45,NA()),IF($E$4=2,IF(ISNUMBER(M46),M46,NA()),NA())) -> 12,000 | N44: =IF($E$4=1,IF(ISNUMBER(N45),N45,NA()),IF($E$4=2,IF(ISNUMBER(N46),N46,NA()),NA())) -> 0 | O44: =IF($E$4=1,IF(ISNUMBER(O45),O45,NA()),IF($E$4=2,IF(ISNUMBER(O46),O46,NA()),NA())) -> 0 | P44: =IF($E$4=1,IF(ISNUMBER(P45),P45,NA()),IF($E$4=2,IF(ISNUMBER(P46),P46,NA()),NA())) -> 12,000
C45: Base | M45: 12,000 | N45: 0 | O45: 0 | P45: 12,000
C46: Downside | M46: 12,000 | N46: 0 | O46: 0 | P46: 12,000
C47: Target receivable days — active | E47: ='Actual inputs'!E21 -> 25.0 | F47: ='Actual inputs'!F21 -> 25.0 | G47: ='Actual inputs'!G21 -> 25.0 | H47: ='Actual inputs'!H21 -> 25.0 | I47: ='Actual inputs'!I21 -> 25.0 | J47: ='Actual inputs'!J21 -> 25.0 | K47: ='Actual inputs'!K21 -> 25.0 | L47: ='Actual inputs'!L21 -> 25.0 | M47: =IF($E$4=1,IF(ISNUMBER(M48),M48,NA()),IF($E$4=2,IF(ISNUMBER(M49),M49,NA()),NA())) -> 25.0 | N47: =IF($E$4=1,IF(ISNUMBER(N48),N48,NA()),IF($E$4=2,IF(ISNUMBER(N49),N49,NA()),NA())) -> 25.0 | O47: =IF($E$4=1,IF(ISNUMBER(O48),O48,NA()),IF($E$4=2,IF(ISNUMBER(O49),O49,NA()),NA())) -> 25.0 | P47: =IF($E$4=1,IF(ISNUMBER(P48),P48,NA()),IF($E$4=2,IF(ISNUMBER(P49),P49,NA()),NA())) -> 25.0
C48: Base | M48: 25.0 | N48: 25.0 | O48: 25.0 | P48: 25.0
C49: Downside | M49: 38.0 | N49: 42.0 | O49: 44.0 | P49: 46.0
C50: New vendor payable days — active | E50: ='Actual inputs'!E22 -> 28.0 | F50: ='Actual inputs'!F22 -> 28.0 | G50: ='Actual inputs'!G22 -> 28.0 | H50: ='Actual inputs'!H22 -> 28.0 | I50: ='Actual inputs'!I22 -> 28.0 | J50: ='Actual inputs'!J22 -> 28.0 | K50: ='Actual inputs'!K22 -> 28.0 | L50: ='Actual inputs'!L22 -> 28.0 | M50: =IF($E$4=1,IF(ISNUMBER(M51),M51,NA()),IF($E$4=2,IF(ISNUMBER(M52),M52,NA()),NA())) -> 28.0 | N50: =IF($E$4=1,IF(ISNUMBER(N51),N51,NA()),IF($E$4=2,IF(ISNUMBER(N52),N52,NA()),NA())) -> 28.0 | O50: =IF($E$4=1,IF(ISNUMBER(O51),O51,NA()),IF($E$4=2,IF(ISNUMBER(O52),O52,NA()),NA())) -> 28.0 | P50: =IF($E$4=1,IF(ISNUMBER(P51),P51,NA()),IF($E$4=2,IF(ISNUMBER(P52),P52,NA()),NA())) -> 28.0
C51: Base | M51: 28.0 | N51: 28.0 | O51: 28.0 | P51: 28.0
C52: Downside | M52: 28.0 | N52: 28.0 | O52: 28.0 | P52: 28.0
C53: Opening receivable delay (days) — active | E53: ='Actual inputs'!E23 -> 0.0 | F53: ='Actual inputs'!F23 -> 0.0 | G53: ='Actual inputs'!G23 -> 0.0 | H53: ='Actual inputs'!H23 -> 0.0 | I53: ='Actual inputs'!I23 -> 0.0 | J53: ='Actual inputs'!J23 -> 0.0 | K53: ='Actual inputs'!K23 -> 0.0 | L53: ='Actual inputs'!L23 -> 0.0 | M53: =IF($E$4=1,IF(ISNUMBER(M54),M54,NA()),IF($E$4=2,IF(ISNUMBER(M55),M55,NA()),NA())) -> 0.0 | N53: =IF($E$4=1,IF(ISNUMBER(N54),N54,NA()),IF($E$4=2,IF(ISNUMBER(N55),N55,NA()),NA())) -> 0.0 | O53: =IF($E$4=1,IF(ISNUMBER(O54),O54,NA()),IF($E$4=2,IF(ISNUMBER(O55),O55,NA()),NA())) -> 0.0 | P53: =IF($E$4=1,IF(ISNUMBER(P54),P54,NA()),IF($E$4=2,IF(ISNUMBER(P55),P55,NA()),NA())) -> 0.0
C54: Base | M54: 0.0 | N54: 0.0 | O54: 0.0 | P54: 0.0
C55: Downside | M55: 14.0 | N55: 14.0 | O55: 14.0 | P55: 14.0
C56: Subscription accounts — active | E56: ='Actual inputs'!E24 -> 520.0 | F56: ='Actual inputs'!F24 -> 565.0 | G56: ='Actual inputs'!G24 -> 610.0 | H56: ='Actual inputs'!H24 -> 655.0 | I56: ='Actual inputs'!I24 -> 700.0 | J56: ='Actual inputs'!J24 -> 745.0 | K56: ='Actual inputs'!K24 -> 790.0 | L56: ='Actual inputs'!L24 -> 835.0 | M56: =IF($E$4=1,IF(ISNUMBER(M57),M57,NA()),IF($E$4=2,IF(ISNUMBER(M58),M58,NA()),NA())) -> 880.0 | N56: =IF($E$4=1,IF(ISNUMBER(N57),N57,NA()),IF($E$4=2,IF(ISNUMBER(N58),N58,NA()),NA())) -> 925.0 | O56: =IF($E$4=1,IF(ISNUMBER(O57),O57,NA()),IF($E$4=2,IF(ISNUMBER(O58),O58,NA()),NA())) -> 970.0 | P56: =IF($E$4=1,IF(ISNUMBER(P57),P57,NA()),IF($E$4=2,IF(ISNUMBER(P58),P58,NA()),NA())) -> 1015.0
C57: Base | M57: 880.0 | N57: 925.0 | O57: 970.0 | P57: 1015.0
C58: Downside | M58: 805.0 | N58: 830.0 | O58: 860.0 | P58: 880.0
C59: Subscription monthly price — active | E59: ='Actual inputs'!E25 -> 159 | F59: ='Actual inputs'!F25 -> 159 | G59: ='Actual inputs'!G25 -> 159 | H59: ='Actual inputs'!H25 -> 159 | I59: ='Actual inputs'!I25 -> 159 | J59: ='Actual inputs'!J25 -> 159 | K59: ='Actual inputs'!K25 -> 159 | L59: ='Actual inputs'!L25 -> 159 | M59: =IF($E$4=1,IF(ISNUMBER(M60),M60,NA()),IF($E$4=2,IF(ISNUMBER(M61),M61,NA()),NA())) -> 159 | N59: =IF($E$4=1,IF(ISNUMBER(N60),N60,NA()),IF($E$4=2,IF(ISNUMBER(N61),N61,NA()),NA())) -> 159 | O59: =IF($E$4=1,IF(ISNUMBER(O60),O60,NA()),IF($E$4=2,IF(ISNUMBER(O61),O61,NA()),NA())) -> 159 | P59: =IF($E$4=1,IF(ISNUMBER(P60),P60,NA()),IF($E$4=2,IF(ISNUMBER(P61),P61,NA()),NA())) -> 159
C60: Base | M60: 159 | N60: 159 | O60: 159 | P60: 159
C61: Downside | M61: 149 | N61: 149 | O61: 149 | P61: 149
C62: Metered million tokens — active | E62: ='Actual inputs'!E26 -> 16000.0 | F62: ='Actual inputs'!F26 -> 17000.0 | G62: ='Actual inputs'!G26 -> 18500.0 | H62: ='Actual inputs'!H26 -> 20000.0 | I62: ='Actual inputs'!I26 -> 22000.0 | J62: ='Actual inputs'!J26 -> 24500.0 | K62: ='Actual inputs'!K26 -> 28000.0 | L62: ='Actual inputs'!L26 -> 31500.0 | M62: =IF($E$4=1,IF(ISNUMBER(M63),M63,NA()),IF($E$4=2,IF(ISNUMBER(M64),M64,NA()),NA())) -> 35000.0 | N62: =IF($E$4=1,IF(ISNUMBER(N63),N63,NA()),IF($E$4=2,IF(ISNUMBER(N64),N64,NA()),NA())) -> 39000.0 | O62: =IF($E$4=1,IF(ISNUMBER(O63),O63,NA()),IF($E$4=2,IF(ISNUMBER(O64),O64,NA()),NA())) -> 44000.0 | P62: =IF($E$4=1,IF(ISNUMBER(P63),P63,NA()),IF($E$4=2,IF(ISNUMBER(P64),P64,NA()),NA())) -> 49000.0
C63: Base | M63: 35000.0 | N63: 39000.0 | O63: 44000.0 | P63: 49000.0
C64: Downside | M64: 38000.0 | N64: 43000.0 | O64: 48500.0 | P64: 54000.0
C65: Realised revenue / million tokens — active | E65: ='Actual inputs'!E27 -> 5.80 | F65: ='Actual inputs'!F27 -> 5.80 | G65: ='Actual inputs'!G27 -> 5.80 | H65: ='Actual inputs'!H27 -> 5.70 | I65: ='Actual inputs'!I27 -> 5.70 | J65: ='Actual inputs'!J27 -> 5.60 | K65: ='Actual inputs'!K27 -> 5.50 | L65: ='Actual inputs'!L27 -> 5.50 | M65: =IF($E$4=1,IF(ISNUMBER(M66),M66,NA()),IF($E$4=2,IF(ISNUMBER(M67),M67,NA()),NA())) -> 5.40 | N65: =IF($E$4=1,IF(ISNUMBER(N66),N66,NA()),IF($E$4=2,IF(ISNUMBER(N67),N67,NA()),NA())) -> 5.40 | O65: =IF($E$4=1,IF(ISNUMBER(O66),O66,NA()),IF($E$4=2,IF(ISNUMBER(O67),O67,NA()),NA())) -> 5.30 | P65: =IF($E$4=1,IF(ISNUMBER(P66),P66,NA()),IF($E$4=2,IF(ISNUMBER(P67),P67,NA()),NA())) -> 5.30
C66: Base | M66: 5.40 | N66: 5.40 | O66: 5.30 | P66: 5.30
C67: Downside | M67: 4.80 | N67: 4.60 | O67: 4.40 | P67: 4.20
C68: Input share of metered tokens — active | E68: ='Actual inputs'!E28 -> 74.0% | F68: ='Actual inputs'!F28 -> 74.0% | G68: ='Actual inputs'!G28 -> 74.0% | H68: ='Actual inputs'!H28 -> 74.0% | I68: ='Actual inputs'!I28 -> 74.0% | J68: ='Actual inputs'!J28 -> 74.0% | K68: ='Actual inputs'!K28 -> 74.0% | L68: ='Actual inputs'!L28 -> 74.0% | M68: =IF($E$4=1,IF(ISNUMBER(M69),M69,NA()),IF($E$4=2,IF(ISNUMBER(M70),M70,NA()),NA())) -> 74.0% | N68: =IF($E$4=1,IF(ISNUMBER(N69),N69,NA()),IF($E$4=2,IF(ISNUMBER(N70),N70,NA()),NA())) -> 74.0% | O68: =IF($E$4=1,IF(ISNUMBER(O69),O69,NA()),IF($E$4=2,IF(ISNUMBER(O70),O70,NA()),NA())) -> 74.0% | P68: =IF($E$4=1,IF(ISNUMBER(P69),P69,NA()),IF($E$4=2,IF(ISNUMBER(P70),P70,NA()),NA())) -> 74.0%
C69: Base | M69: 74.0% | N69: 74.0% | O69: 74.0% | P69: 74.0%
C70: Downside | M70: 74.0% | N70: 74.0% | O70: 74.0% | P70: 74.0%
C71: Input cost / million tokens — active | E71: ='Actual inputs'!E29 -> 1.70 | F71: ='Actual inputs'!F29 -> 1.70 | G71: ='Actual inputs'!G29 -> 1.70 | H71: ='Actual inputs'!H29 -> 1.70 | I71: ='Actual inputs'!I29 -> 1.70 | J71: ='Actual inputs'!J29 -> 1.70 | K71: ='Actual inputs'!K29 -> 1.70 | L71: ='Actual inputs'!L29 -> 1.70 | M71: =IF($E$4=1,IF(ISNUMBER(M72),M72,NA()),IF($E$4=2,IF(ISNUMBER(M73),M73,NA()),NA())) -> 1.70 | N71: =IF($E$4=1,IF(ISNUMBER(N72),N72,NA()),IF($E$4=2,IF(ISNUMBER(N73),N73,NA()),NA())) -> 1.70 | O71: =IF($E$4=1,IF(ISNUMBER(O72),O72,NA()),IF($E$4=2,IF(ISNUMBER(O73),O73,NA()),NA())) -> 1.70 | P71: =IF($E$4=1,IF(ISNUMBER(P72),P72,NA()),IF($E$4=2,IF(ISNUMBER(P73),P73,NA()),NA())) -> 1.70
C72: Base | M72: 1.70 | N72: 1.70 | O72: 1.70 | P72: 1.70
C73: Downside | M73: 1.70 | N73: 1.70 | O73: 1.70 | P73: 1.70
C74: Output cost / million tokens — active | E74: ='Actual inputs'!E30 -> 7.00 | F74: ='Actual inputs'!F30 -> 7.00 | G74: ='Actual inputs'!G30 -> 7.00 | H74: ='Actual inputs'!H30 -> 7.00 | I74: ='Actual inputs'!I30 -> 7.00 | J74: ='Actual inputs'!J30 -> 7.00 | K74: ='Actual inputs'!K30 -> 7.00 | L74: ='Actual inputs'!L30 -> 7.00 | M74: =IF($E$4=1,IF(ISNUMBER(M75),M75,NA()),IF($E$4=2,IF(ISNUMBER(M76),M76,NA()),NA())) -> 7.00 | N74: =IF($E$4=1,IF(ISNUMBER(N75),N75,NA()),IF($E$4=2,IF(ISNUMBER(N76),N76,NA()),NA())) -> 7.00 | O74: =IF($E$4=1,IF(ISNUMBER(O75),O75,NA()),IF($E$4=2,IF(ISNUMBER(O76),O76,NA()),NA())) -> 7.00 | P74: =IF($E$4=1,IF(ISNUMBER(P75),P75,NA()),IF($E$4=2,IF(ISNUMBER(P76),P76,NA()),NA())) -> 7.00
C75: Base | M75: 7.00 | N75: 7.00 | O75: 7.00 | P75: 7.00
C76: Downside | M76: 7.80 | N76: 8.00 | O76: 8.20 | P76: 8.40
C77: Input token cache share — active | E77: ='Actual inputs'!E31 -> 20.0% | F77: ='Actual inputs'!F31 -> 22.0% | G77: ='Actual inputs'!G31 -> 24.0% | H77: ='Actual inputs'!H31 -> 26.0% | I77: ='Actual inputs'!I31 -> 28.0% | J77: ='Actual inputs'!J31 -> 30.0% | K77: ='Actual inputs'!K31 -> 32.0% | L77: ='Actual inputs'!L31 -> 34.0% | M77: =IF($E$4=1,IF(ISNUMBER(M78),M78,NA()),IF($E$4=2,IF(ISNUMBER(M79),M79,NA()),NA())) -> 36.0% | N77: =IF($E$4=1,IF(ISNUMBER(N78),N78,NA()),IF($E$4=2,IF(ISNUMBER(N79),N79,NA()),NA())) -> 38.0% | O77: =IF($E$4=1,IF(ISNUMBER(O78),O78,NA()),IF($E$4=2,IF(ISNUMBER(O79),O79,NA()),NA())) -> 40.0% | P77: =IF($E$4=1,IF(ISNUMBER(P78),P78,NA()),IF($E$4=2,IF(ISNUMBER(P79),P79,NA()),NA())) -> 42.0%
C78: Base | M78: 36.0% | N78: 38.0% | O78: 40.0% | P78: 42.0%
C79: Downside | M79: 30.0% | N79: 30.0% | O79: 30.0% | P79: 30.0%
C80: Cached input discount — active | E80: ='Actual inputs'!E32 -> 80.0% | F80: ='Actual inputs'!F32 -> 80.0% | G80: ='Actual inputs'!G32 -> 80.0% | H80: ='Actual inputs'!H32 -> 80.0% | I80: ='Actual inputs'!I32 -> 80.0% | J80: ='Actual inputs'!J32 -> 80.0% | K80: ='Actual inputs'!K32 -> 80.0% | L80: ='Actual inputs'!L32 -> 80.0% | M80: =IF($E$4=1,IF(ISNUMBER(M81),M81,NA()),IF($E$4=2,IF(ISNUMBER(M82),M82,NA()),NA())) -> 80.0% | N80: =IF($E$4=1,IF(ISNUMBER(N81),N81,NA()),IF($E$4=2,IF(ISNUMBER(N82),N82,NA()),NA())) -> 80.0% | O80: =IF($E$4=1,IF(ISNUMBER(O81),O81,NA()),IF($E$4=2,IF(ISNUMBER(O82),O82,NA()),NA())) -> 80.0% | P80: =IF($E$4=1,IF(ISNUMBER(P81),P81,NA()),IF($E$4=2,IF(ISNUMBER(P82),P82,NA()),NA())) -> 80.0%
C81: Base | M81: 80.0% | N81: 80.0% | O81: 80.0% | P81: 80.0%
C82: Downside | M82: 80.0% | N82: 80.0% | O82: 80.0% | P82: 80.0%
C83: Enterprise workspaces — active | E83: ='Actual inputs'!E33 -> 14.0 | F83: ='Actual inputs'!F33 -> 15.0 | G83: ='Actual inputs'!G33 -> 17.0 | H83: ='Actual inputs'!H33 -> 18.0 | I83: ='Actual inputs'!I33 -> 20.0 | J83: ='Actual inputs'!J33 -> 21.0 | K83: ='Actual inputs'!K33 -> 22.0 | L83: ='Actual inputs'!L33 -> 24.0 | M83: =IF($E$4=1,IF(ISNUMBER(M84),M84,NA()),IF($E$4=2,IF(ISNUMBER(M85),M85,NA()),NA())) -> 25.0 | N83: =IF($E$4=1,IF(ISNUMBER(N84),N84,NA()),IF($E$4=2,IF(ISNUMBER(N85),N85,NA()),NA())) -> 27.0 | O83: =IF($E$4=1,IF(ISNUMBER(O84),O84,NA()),IF($E$4=2,IF(ISNUMBER(O85),O85,NA()),NA())) -> 28.0 | P83: =IF($E$4=1,IF(ISNUMBER(P84),P84,NA()),IF($E$4=2,IF(ISNUMBER(P85),P85,NA()),NA())) -> 29.0
C84: Base | M84: 25.0 | N84: 27.0 | O84: 28.0 | P84: 29.0
C85: Downside | M85: 23.0 | N85: 24.0 | O85: 25.0 | P85: 25.0
C86: Enterprise monthly platform fee — active | E86: ='Actual inputs'!E34 -> 4,300 | F86: ='Actual inputs'!F34 -> 4,300 | G86: ='Actual inputs'!G34 -> 4,300 | H86: ='Actual inputs'!H34 -> 4,300 | I86: ='Actual inputs'!I34 -> 4,300 | J86: ='Actual inputs'!J34 -> 4,300 | K86: ='Actual inputs'!K34 -> 4,300 | L86: ='Actual inputs'!L34 -> 4,300 | M86: =IF($E$4=1,IF(ISNUMBER(M87),M87,NA()),IF($E$4=2,IF(ISNUMBER(M88),M88,NA()),NA())) -> 4,300 | N86: =IF($E$4=1,IF(ISNUMBER(N87),N87,NA()),IF($E$4=2,IF(ISNUMBER(N88),N88,NA()),NA())) -> 4,300 | O86: =IF($E$4=1,IF(ISNUMBER(O87),O87,NA()),IF($E$4=2,IF(ISNUMBER(O88),O88,NA()),NA())) -> 4,300 | P86: =IF($E$4=1,IF(ISNUMBER(P87),P87,NA()),IF($E$4=2,IF(ISNUMBER(P88),P88,NA()),NA())) -> 4,300
C87: Base | M87: 4,300 | N87: 4,300 | O87: 4,300 | P87: 4,300
C88: Downside | M88: 4,300 | N88: 4,300 | O88: 4,300 | P88: 4,300
C89: Compute hours — active | E89: ='Actual inputs'!E35 -> 5000.0 | F89: ='Actual inputs'!F35 -> 5700.0 | G89: ='Actual inputs'!G35 -> 6400.0 | H89: ='Actual inputs'!H35 -> 7100.0 | I89: ='Actual inputs'!I35 -> 7800.0 | J89: ='Actual inputs'!J35 -> 8500.0 | K89: ='Actual inputs'!K35 -> 9200.0 | L89: ='Actual inputs'!L35 -> 9900.0 | M89: =IF($E$4=1,IF(ISNUMBER(M90),M90,NA()),IF($E$4=2,IF(ISNUMBER(M91),M91,NA()),NA())) -> 10600.0 | N89: =IF($E$4=1,IF(ISNUMBER(N90),N90,NA()),IF($E$4=2,IF(ISNUMBER(N91),N91,NA()),NA())) -> 11300.0 | O89: =IF($E$4=1,IF(ISNUMBER(O90),O90,NA()),IF($E$4=2,IF(ISNUMBER(O91),O91,NA()),NA())) -> 12000.0 | P89: =IF($E$4=1,IF(ISNUMBER(P90),P90,NA()),IF($E$4=2,IF(ISNUMBER(P91),P91,NA()),NA())) -> 12700.0
C90: Base | M90: 10600.0 | N90: 11300.0 | O90: 12000.0 | P90: 12700.0
C91: Downside | M91: 11200.0 | N91: 13000.0 | O91: 14700.0 | P91: 16500.0
C92: Compute hourly cost — active | E92: ='Actual inputs'!E36 -> 3.10 | F92: ='Actual inputs'!F36 -> 3.10 | G92: ='Actual inputs'!G36 -> 3.10 | H92: ='Actual inputs'!H36 -> 3.10 | I92: ='Actual inputs'!I36 -> 3.10 | J92: ='Actual inputs'!J36 -> 3.10 | K92: ='Actual inputs'!K36 -> 3.10 | L92: ='Actual inputs'!L36 -> 3.10 | M92: =IF($E$4=1,IF(ISNUMBER(M93),M93,NA()),IF($E$4=2,IF(ISNUMBER(M94),M94,NA()),NA())) -> 3.10 | N92: =IF($E$4=1,IF(ISNUMBER(N93),N93,NA()),IF($E$4=2,IF(ISNUMBER(N94),N94,NA()),NA())) -> 3.10 | O92: =IF($E$4=1,IF(ISNUMBER(O93),O93,NA()),IF($E$4=2,IF(ISNUMBER(O94),O94,NA()),NA())) -> 3.10 | P92: =IF($E$4=1,IF(ISNUMBER(P93),P93,NA()),IF($E$4=2,IF(ISNUMBER(P94),P94,NA()),NA())) -> 3.10
C93: Base | M93: 3.10 | N93: 3.10 | O93: 3.10 | P93: 3.10
C94: Downside | M94: 3.10 | N94: 3.10 | O94: 3.10 | P94: 3.10
C95: Monthly cloud commitment — active | E95: ='Actual inputs'!E37 -> 25,000 | F95: ='Actual inputs'!F37 -> 25,000 | G95: ='Actual inputs'!G37 -> 25,000 | H95: ='Actual inputs'!H37 -> 25,000 | I95: ='Actual inputs'!I37 -> 25,000 | J95: ='Actual inputs'!J37 -> 25,000 | K95: ='Actual inputs'!K37 -> 32,000 | L95: ='Actual inputs'!L37 -> 32,000 | M95: =IF($E$4=1,IF(ISNUMBER(M96),M96,NA()),IF($E$4=2,IF(ISNUMBER(M97),M97,NA()),NA())) -> 42,000 | N95: =IF($E$4=1,IF(ISNUMBER(N96),N96,NA()),IF($E$4=2,IF(ISNUMBER(N97),N97,NA()),NA())) -> 42,000 | O95: =IF($E$4=1,IF(ISNUMBER(O96),O96,NA()),IF($E$4=2,IF(ISNUMBER(O97),O97,NA()),NA())) -> 42,000 | P95: =IF($E$4=1,IF(ISNUMBER(P96),P96,NA()),IF($E$4=2,IF(ISNUMBER(P97),P97,NA()),NA())) -> 42,000
C96: Base | M96: 42,000 | N96: 42,000 | O96: 42,000 | P96: 42,000
C97: Downside | M97: 42,000 | N97: 42,000 | O97: 42,000 | P97: 42,000
C98: Storage security and observability — active | E98: ='Actual inputs'!E38 -> 9,500 | F98: ='Actual inputs'!F38 -> 10,350 | G98: ='Actual inputs'!G38 -> 11,200 | H98: ='Actual inputs'!H38 -> 12,050 | I98: ='Actual inputs'!I38 -> 12,900 | J98: ='Actual inputs'!J38 -> 13,750 | K98: ='Actual inputs'!K38 -> 14,600 | L98: ='Actual inputs'!L38 -> 15,450 | M98: =IF($E$4=1,IF(ISNUMBER(M99),M99,NA()),IF($E$4=2,IF(ISNUMBER(M100),M100,NA()),NA())) -> 16,300 | N98: =IF($E$4=1,IF(ISNUMBER(N99),N99,NA()),IF($E$4=2,IF(ISNUMBER(N100),N100,NA()),NA())) -> 17,150 | O98: =IF($E$4=1,IF(ISNUMBER(O99),O99,NA()),IF($E$4=2,IF(ISNUMBER(O100),O100,NA()),NA())) -> 18,000 | P98: =IF($E$4=1,IF(ISNUMBER(P99),P99,NA()),IF($E$4=2,IF(ISNUMBER(P100),P100,NA()),NA())) -> 18,850
C99: Base | M99: 16,300 | N99: 17,150 | O99: 18,000 | P99: 18,850
C100: Downside | M100: 16,500 | N100: 18,500 | O100: 20,500 | P100: 23,000

Sheet P&L
C2: P&L
C4: Selected case | E4: ='Assumptions'!$G$4 -> Base | H4: EUR · entirely fictional
E6: Actual | F6: Actual | G6: Actual | H6: Actual | I6: Actual | J6: Actual | K6: Actual | L6: Actual | M6: Forecast | N6: Forecast | O6: Forecast | P6: Forecast
E7: 2026-01-01 | F7: 2026-02-01 | G7: 2026-03-01 | H7: 2026-04-01 | I7: 2026-05-01 | J7: 2026-06-01 | K7: 2026-07-01 | L7: 2026-08-01 | M7: 2026-09-01 | N7: 2026-10-01 | O7: 2026-11-01 | P7: 2026-12-01
C8: Subscription revenue | E8: ='Revenue'!E10 -> 82,680 | F8: ='Revenue'!F10 -> 89,835 | G8: ='Revenue'!G10 -> 96,990 | H8: ='Revenue'!H10 -> 104,145 | I8: ='Revenue'!I10 -> 111,300 | J8: ='Revenue'!J10 -> 118,455 | K8: ='Revenue'!K10 -> 125,610 | L8: ='Revenue'!L10 -> 132,765 | M8: ='Revenue'!M10 -> 139,920 | N8: ='Revenue'!N10 -> 147,075 | O8: ='Revenue'!O10 -> 154,230 | P8: ='Revenue'!P10 -> 161,385
C9: Usage / onboarding revenue | E9: ='Revenue'!E13 -> 92,800 | F9: ='Revenue'!F13 -> 98,600 | G9: ='Revenue'!G13 -> 107,300 | H9: ='Revenue'!H13 -> 114,000 | I9: ='Revenue'!I13 -> 125,400 | J9: ='Revenue'!J13 -> 137,200 | K9: ='Revenue'!K13 -> 154,000 | L9: ='Revenue'!L13 -> 173,250 | M9: ='Revenue'!M13 -> 189,000 | N9: ='Revenue'!N13 -> 210,600 | O9: ='Revenue'!O13 -> 233,200 | P9: ='Revenue'!P13 -> 259,700
C10: Enterprise platform revenue | E10: ='Revenue'!E16 -> 60,200 | F10: ='Revenue'!F16 -> 64,500 | G10: ='Revenue'!G16 -> 73,100 | H10: ='Revenue'!H16 -> 77,400 | I10: ='Revenue'!I16 -> 86,000 | J10: ='Revenue'!J16 -> 90,300 | K10: ='Revenue'!K16 -> 94,600 | L10: ='Revenue'!L16 -> 103,200 | M10: ='Revenue'!M16 -> 107,500 | N10: ='Revenue'!N16 -> 116,100 | O10: ='Revenue'!O16 -> 120,400 | P10: ='Revenue'!P16 -> 124,700
C11: Total revenue | E11: ='Revenue'!E17 -> 235,680 | F11: ='Revenue'!F17 -> 252,935 | G11: ='Revenue'!G17 -> 277,390 | H11: ='Revenue'!H17 -> 295,545 | I11: ='Revenue'!I17 -> 322,700 | J11: ='Revenue'!J17 -> 345,955 | K11: ='Revenue'!K17 -> 374,210 | L11: ='Revenue'!L17 -> 409,215 | M11: ='Revenue'!M17 -> 436,420 | N11: ='Revenue'!N17 -> 473,775 | O11: ='Revenue'!O17 -> 507,830 | P11: ='Revenue'!P17 -> 545,785
C12: Support payroll | E12: =-'Payroll'!E10 -> (37,100) | F12: =-'Payroll'!F10 -> (38,425) | G12: =-'Payroll'!G10 -> (39,750) | H12: =-'Payroll'!H10 -> (41,075) | I12: =-'Payroll'!I10 -> (42,400) | J12: =-'Payroll'!J10 -> (43,725) | K12: =-'Payroll'!K10 -> (45,050) | L12: =-'Payroll'!L10 -> (46,375) | M12: =-'Payroll'!M10 -> (47,700) | N12: =-'Payroll'!N10 -> (49,025) | O12: =-'Payroll'!O10 -> (50,350) | P12: =-'Payroll'!P10 -> (51,675)
C13: Hosting / model costs | E13: =-'Revenue'!E25 -> (46,028) | F13: =-'Revenue'!F25 -> (48,562) | G13: =-'Revenue'!G25 -> (52,475) | H13: =-'Revenue'!H25 -> (56,327) | I13: =-'Revenue'!I25 -> (61,517) | J13: =-'Revenue'!J25 -> (68,014) | K13: =-'Revenue'!K25 -> (77,167) | L13: =-'Revenue'!L25 -> (86,178) | M13: =-'Revenue'!M25 -> (95,049) | N13: =-'Revenue'!N25 -> (105,127) | O13: =-'Revenue'!O25 -> (117,719) | P13: =-'Revenue'!P25 -> (130,110)
C14: Cloud commitments and platform costs | E14: =-'Revenue'!E31-'Revenue'!E33 -> (34,500) | F14: =-'Revenue'!F31-'Revenue'!F33 -> (35,350) | G14: =-'Revenue'!G31-'Revenue'!G33 -> (36,200) | H14: =-'Revenue'!H31-'Revenue'!H33 -> (37,050) | I14: =-'Revenue'!I31-'Revenue'!I33 -> (37,900) | J14: =-'Revenue'!J31-'Revenue'!J33 -> (40,100) | K14: =-'Revenue'!K31-'Revenue'!K33 -> (46,600) | L14: =-'Revenue'!L31-'Revenue'!L33 -> (47,450) | M14: =-'Revenue'!M31-'Revenue'!M33 -> (58,300) | N14: =-'Revenue'!N31-'Revenue'!N33 -> (59,150) | O14: =-'Revenue'!O31-'Revenue'!O33 -> (60,000) | P14: =-'Revenue'!P31-'Revenue'!P33 -> (60,850)
C15: Total cost of revenue | E15: ='P&L'!E12+'P&L'!E13+'P&L'!E14 -> (117,628) | F15: ='P&L'!F12+'P&L'!F13+'P&L'!F14 -> (122,337) | G15: ='P&L'!G12+'P&L'!G13+'P&L'!G14 -> (128,425) | H15: ='P&L'!H12+'P&L'!H13+'P&L'!H14 -> (134,452) | I15: ='P&L'!I12+'P&L'!I13+'P&L'!I14 -> (141,817) | J15: ='P&L'!J12+'P&L'!J13+'P&L'!J14 -> (151,839) | K15: ='P&L'!K12+'P&L'!K13+'P&L'!K14 -> (168,817) | L15: ='P&L'!L12+'P&L'!L13+'P&L'!L14 -> (180,003) | M15: ='P&L'!M12+'P&L'!M13+'P&L'!M14 -> (201,049) | N15: ='P&L'!N12+'P&L'!N13+'P&L'!N14 -> (213,302) | O15: ='P&L'!O12+'P&L'!O13+'P&L'!O14 -> (228,069) | P15: ='P&L'!P12+'P&L'!P13+'P&L'!P14 -> (242,635)
C16: Gross profit | E16: ='P&L'!E11+'P&L'!E15 -> 118,052 | F16: ='P&L'!F11+'P&L'!F15 -> 130,598 | G16: ='P&L'!G11+'P&L'!G15 -> 148,965 | H16: ='P&L'!H11+'P&L'!H15 -> 161,093 | I16: ='P&L'!I11+'P&L'!I15 -> 180,883 | J16: ='P&L'!J11+'P&L'!J15 -> 194,116 | K16: ='P&L'!K11+'P&L'!K15 -> 205,393 | L16: ='P&L'!L11+'P&L'!L15 -> 229,212 | M16: ='P&L'!M11+'P&L'!M15 -> 235,371 | N16: ='P&L'!N11+'P&L'!N15 -> 260,473 | O16: ='P&L'!O11+'P&L'!O15 -> 279,761 | P16: ='P&L'!P11+'P&L'!P15 -> 303,150
C17: Gross margin | E17: ='P&L'!E16/'P&L'!E11 -> 50.1% | F17: ='P&L'!F16/'P&L'!F11 -> 51.6% | G17: ='P&L'!G16/'P&L'!G11 -> 53.7% | H17: ='P&L'!H16/'P&L'!H11 -> 54.5% | I17: ='P&L'!I16/'P&L'!I11 -> 56.1% | J17: ='P&L'!J16/'P&L'!J11 -> 56.1% | K17: ='P&L'!K16/'P&L'!K11 -> 54.9% | L17: ='P&L'!L16/'P&L'!L11 -> 56.0% | M17: ='P&L'!M16/'P&L'!M11 -> 53.9% | N17: ='P&L'!N16/'P&L'!N11 -> 55.0% | O17: ='P&L'!O16/'P&L'!O11 -> 55.1% | P17: ='P&L'!P16/'P&L'!P11 -> 55.5%
C18: Product development payroll | E18: =-'Payroll'!E13 -> (89,700) | F18: =-'Payroll'!F13 -> (93,150) | G18: =-'Payroll'!G13 -> (96,600) | H18: =-'Payroll'!H13 -> (100,050) | I18: =-'Payroll'!I13 -> (103,500) | J18: =-'Payroll'!J13 -> (106,950) | K18: =-'Payroll'!K13 -> (110,400) | L18: =-'Payroll'!L13 -> (113,850) | M18: =-'Payroll'!M13 -> (117,300) | N18: =-'Payroll'!N13 -> (120,750) | O18: =-'Payroll'!O13 -> (124,200) | P18: =-'Payroll'!P13 -> (127,650)
C19: Sales payroll | E19: =-'Payroll'!E16 -> (31,000) | F19: =-'Payroll'!F16 -> (32,550) | G19: =-'Payroll'!G16 -> (34,100) | H19: =-'Payroll'!H16 -> (35,650) | I19: =-'Payroll'!I16 -> (37,200) | J19: =-'Payroll'!J16 -> (38,750) | K19: =-'Payroll'!K16 -> (40,300) | L19: =-'Payroll'!L16 -> (41,850) | M19: =-'Payroll'!M16 -> (43,400) | N19: =-'Payroll'!N16 -> (44,950) | O19: =-'Payroll'!O16 -> (46,500) | P19: =-'Payroll'!P16 -> (48,050)
C20: Acquisition and brand spend | E20: =-'Assumptions'!E32 -> (24,000) | F20: =-'Assumptions'!F32 -> (25,200) | G20: =-'Assumptions'!G32 -> (26,400) | H20: =-'Assumptions'!H32 -> (27,600) | I20: =-'Assumptions'!I32 -> (28,800) | J20: =-'Assumptions'!J32 -> (30,000) | K20: =-'Assumptions'!K32 -> (31,200) | L20: =-'Assumptions'!L32 -> (32,400) | M20: =-'Assumptions'!M32 -> (33,600) | N20: =-'Assumptions'!N32 -> (34,800) | O20: =-'Assumptions'!O32 -> (36,000) | P20: =-'Assumptions'!P32 -> (37,200)
C21: Administration payroll | E21: =-'Payroll'!E19 -> (23,600) | F21: =-'Payroll'!F19 -> (23,600) | G21: =-'Payroll'!G19 -> (23,600) | H21: =-'Payroll'!H19 -> (23,600) | I21: =-'Payroll'!I19 -> (23,600) | J21: =-'Payroll'!J19 -> (23,600) | K21: =-'Payroll'!K19 -> (23,600) | L21: =-'Payroll'!L19 -> (23,600) | M21: =-'Payroll'!M19 -> (23,600) | N21: =-'Payroll'!N19 -> (23,600) | O21: =-'Payroll'!O19 -> (23,600) | P21: =-'Payroll'!P19 -> (23,600)
C22: Office and administration | E22: =-'Assumptions'!E35 -> (13,000) | F22: =-'Assumptions'!F35 -> (13,000) | G22: =-'Assumptions'!G35 -> (13,000) | H22: =-'Assumptions'!H35 -> (13,000) | I22: =-'Assumptions'!I35 -> (13,000) | J22: =-'Assumptions'!J35 -> (13,000) | K22: =-'Assumptions'!K35 -> (13,000) | L22: =-'Assumptions'!L35 -> (13,000) | M22: =-'Assumptions'!M35 -> (13,000) | N22: =-'Assumptions'!N35 -> (13,000) | O22: =-'Assumptions'!O35 -> (13,000) | P22: =-'Assumptions'!P35 -> (13,000)
C23: Professional fees | E23: =-'Assumptions'!E38 -> (6,500) | F23: =-'Assumptions'!F38 -> (6,500) | G23: =-'Assumptions'!G38 -> (6,500) | H23: =-'Assumptions'!H38 -> (6,500) | I23: =-'Assumptions'!I38 -> (6,500) | J23: =-'Assumptions'!J38 -> (6,500) | K23: =-'Assumptions'!K38 -> (6,500) | L23: =-'Assumptions'!L38 -> (6,500) | M23: =-'Assumptions'!M38 -> (6,500) | N23: =-'Assumptions'!N38 -> (6,500) | O23: =-'Assumptions'!O38 -> (6,500) | P23: =-'Assumptions'!P38 -> (6,500)
C24: Operating expenses | E24: ='P&L'!E18+'P&L'!E19+'P&L'!E20+'P&L'!E21+'P&L'!E22+'P&L'!E23 -> (187,800) | F24: ='P&L'!F18+'P&L'!F19+'P&L'!F20+'P&L'!F21+'P&L'!F22+'P&L'!F23 -> (194,000) | G24: ='P&L'!G18+'P&L'!G19+'P&L'!G20+'P&L'!G21+'P&L'!G22+'P&L'!G23 -> (200,200) | H24: ='P&L'!H18+'P&L'!H19+'P&L'!H20+'P&L'!H21+'P&L'!H22+'P&L'!H23 -> (206,400) | I24: ='P&L'!I18+'P&L'!I19+'P&L'!I20+'P&L'!I21+'P&L'!I22+'P&L'!I23 -> (212,600) | J24: ='P&L'!J18+'P&L'!J19+'P&L'!J20+'P&L'!J21+'P&L'!J22+'P&L'!J23 -> (218,800) | K24: ='P&L'!K18+'P&L'!K19+'P&L'!K20+'P&L'!K21+'P&L'!K22+'P&L'!K23 -> (225,000) | L24: ='P&L'!L18+'P&L'!L19+'P&L'!L20+'P&L'!L21+'P&L'!L22+'P&L'!L23 -> (231,200) | M24: ='P&L'!M18+'P&L'!M19+'P&L'!M20+'P&L'!M21+'P&L'!M22+'P&L'!M23 -> (237,400) | N24: ='P&L'!N18+'P&L'!N19+'P&L'!N20+'P&L'!N21+'P&L'!N22+'P&L'!N23 -> (243,600) | O24: ='P&L'!O18+'P&L'!O19+'P&L'!O20+'P&L'!O21+'P&L'!O22+'P&L'!O23 -> (249,800) | P24: ='P&L'!P18+'P&L'!P19+'P&L'!P20+'P&L'!P21+'P&L'!P22+'P&L'!P23 -> (256,000)
C25: EBITDA | E25: ='P&L'!E16+'P&L'!E24 -> (69,748) | F25: ='P&L'!F16+'P&L'!F24 -> (63,402) | G25: ='P&L'!G16+'P&L'!G24 -> (51,235) | H25: ='P&L'!H16+'P&L'!H24 -> (45,307) | I25: ='P&L'!I16+'P&L'!I24 -> (31,717) | J25: ='P&L'!J16+'P&L'!J24 -> (24,684) | K25: ='P&L'!K16+'P&L'!K24 -> (19,607) | L25: ='P&L'!L16+'P&L'!L24 -> (1,988) | M25: ='P&L'!M16+'P&L'!M24 -> (2,029) | N25: ='P&L'!N16+'P&L'!N24 -> 16,873 | O25: ='P&L'!O16+'P&L'!O24 -> 29,961 | P25: ='P&L'!P16+'P&L'!P24 -> 47,150
C26: EBITDA margin | E26: ='P&L'!E25/'P&L'!E11 -> (29.6%) | F26: ='P&L'!F25/'P&L'!F11 -> (25.1%) | G26: ='P&L'!G25/'P&L'!G11 -> (18.5%) | H26: ='P&L'!H25/'P&L'!H11 -> (15.3%) | I26: ='P&L'!I25/'P&L'!I11 -> (9.8%) | J26: ='P&L'!J25/'P&L'!J11 -> (7.1%) | K26: ='P&L'!K25/'P&L'!K11 -> (5.2%) | L26: ='P&L'!L25/'P&L'!L11 -> (0.5%) | M26: ='P&L'!M25/'P&L'!M11 -> (0.5%) | N26: ='P&L'!N25/'P&L'!N11 -> 3.6% | O26: ='P&L'!O25/'P&L'!O11 -> 5.9% | P26: ='P&L'!P25/'P&L'!P11 -> 8.6%
C27: Depreciation | E27: =-'Assets debt'!E12 -> (3,222) | F27: =-'Assets debt'!F12 -> (3,458) | G27: =-'Assets debt'!G12 -> (3,708) | H27: =-'Assets debt'!H12 -> (3,972) | I27: =-'Assets debt'!I12 -> (4,250) | J27: =-'Assets debt'!J12 -> (4,542) | K27: =-'Assets debt'!K12 -> (4,847) | L27: =-'Assets debt'!L12 -> (5,167) | M27: =-'Assets debt'!M12 -> (5,500) | N27: =-'Assets debt'!N12 -> (5,847) | O27: =-'Assets debt'!O12 -> (6,208) | P27: =-'Assets debt'!P12 -> (6,583)
C28: Operating profit | E28: ='P&L'!E25+'P&L'!E27 -> (72,970) | F28: ='P&L'!F25+'P&L'!F27 -> (66,860) | G28: ='P&L'!G25+'P&L'!G27 -> (54,943) | H28: ='P&L'!H25+'P&L'!H27 -> (49,279) | I28: ='P&L'!I25+'P&L'!I27 -> (35,967) | J28: ='P&L'!J25+'P&L'!J27 -> (29,226) | K28: ='P&L'!K25+'P&L'!K27 -> (24,454) | L28: ='P&L'!L25+'P&L'!L27 -> (7,155) | M28: ='P&L'!M25+'P&L'!M27 -> (7,529) | N28: ='P&L'!N25+'P&L'!N27 -> 11,026 | O28: ='P&L'!O25+'P&L'!O27 -> 23,752 | P28: ='P&L'!P25+'P&L'!P27 -> 40,566
C29: Interest | E29: =-'Assets debt'!E18 -> (1,300) | F29: =-'Assets debt'!F18 -> (1,273) | G29: =-'Assets debt'!G18 -> (1,246) | H29: =-'Assets debt'!H18 -> (1,219) | I29: =-'Assets debt'!I18 -> (1,192) | J29: =-'Assets debt'!J18 -> (1,165) | K29: =-'Assets debt'!K18 -> (1,138) | L29: =-'Assets debt'!L18 -> (1,110) | M29: =-'Assets debt'!M18 -> (1,083) | N29: =-'Assets debt'!N18 -> (1,056) | O29: =-'Assets debt'!O18 -> (1,029) | P29: =-'Assets debt'!P18 -> (1,002)
C30: Profit before tax | E30: ='P&L'!E28+'P&L'!E29 -> (74,270) | F30: ='P&L'!F28+'P&L'!F29 -> (68,133) | G30: ='P&L'!G28+'P&L'!G29 -> (56,189) | H30: ='P&L'!H28+'P&L'!H29 -> (50,498) | I30: ='P&L'!I28+'P&L'!I29 -> (37,158) | J30: ='P&L'!J28+'P&L'!J29 -> (30,390) | K30: ='P&L'!K28+'P&L'!K29 -> (25,591) | L30: ='P&L'!L28+'P&L'!L29 -> (8,266) | M30: ='P&L'!M28+'P&L'!M29 -> (8,613) | N30: ='P&L'!N28+'P&L'!N29 -> 9,969 | O30: ='P&L'!O28+'P&L'!O29 -> 22,723 | P30: ='P&L'!P28+'P&L'!P29 -> 39,564
C31: Illustrative current tax | E31: =-MAX(0,'P&L'!E30)*'Actual inputs'!$E$61 -> 0 | F31: =-MAX(0,'P&L'!F30)*'Actual inputs'!$E$61 -> 0 | G31: =-MAX(0,'P&L'!G30)*'Actual inputs'!$E$61 -> 0 | H31: =-MAX(0,'P&L'!H30)*'Actual inputs'!$E$61 -> 0 | I31: =-MAX(0,'P&L'!I30)*'Actual inputs'!$E$61 -> 0 | J31: =-MAX(0,'P&L'!J30)*'Actual inputs'!$E$61 -> 0 | K31: =-MAX(0,'P&L'!K30)*'Actual inputs'!$E$61 -> 0 | L31: =-MAX(0,'P&L'!L30)*'Actual inputs'!$E$61 -> 0 | M31: =-MAX(0,'P&L'!M30)*'Actual inputs'!$E$61 -> 0 | N31: =-MAX(0,'P&L'!N30)*'Actual inputs'!$E$61 -> (1,994) | O31: =-MAX(0,'P&L'!O30)*'Actual inputs'!$E$61 -> (4,545) | P31: =-MAX(0,'P&L'!P30)*'Actual inputs'!$E$61 -> (7,913)
C32: Net profit | E32: ='P&L'!E30+'P&L'!E31 -> (74,270) | F32: ='P&L'!F30+'P&L'!F31 -> (68,133) | G32: ='P&L'!G30+'P&L'!G31 -> (56,189) | H32: ='P&L'!H30+'P&L'!H31 -> (50,498) | I32: ='P&L'!I30+'P&L'!I31 -> (37,158) | J32: ='P&L'!J30+'P&L'!J31 -> (30,390) | K32: ='P&L'!K30+'P&L'!K31 -> (25,591) | L32: ='P&L'!L30+'P&L'!L31 -> (8,266) | M32: ='P&L'!M30+'P&L'!M31 -> (8,613) | N32: ='P&L'!N30+'P&L'!N31 -> 7,976 | O32: ='P&L'!O30+'P&L'!O31 -> 18,179 | P32: ='P&L'!P30+'P&L'!P31 -> 31,651

Sheet Balance sheet
C2: Balance sheet
C4: Selected case | E4: ='Assumptions'!$G$4 -> Base | H4: EUR · entirely fictional
E6: Actual | F6: Actual | G6: Actual | H6: Actual | I6: Actual | J6: Actual | K6: Actual | L6: Actual | M6: Forecast | N6: Forecast | O6: Forecast | P6: Forecast
E7: 2026-01-01 | F7: 2026-02-01 | G7: 2026-03-01 | H7: 2026-04-01 | I7: 2026-05-01 | J7: 2026-06-01 | K7: 2026-07-01 | L7: 2026-08-01 | M7: 2026-09-01 | N7: 2026-10-01 | O7: 2026-11-01 | P7: 2026-12-01
C8: Cash / (unfunded requirement) | E8: ='Cash flow'!E23 -> 1,811,977 | F8: ='Cash flow'!F23 -> 1,727,902 | G8: ='Cash flow'!G23 -> 1,646,747 | H8: ='Cash flow'!H23 -> 1,579,822 | I8: ='Cash flow'!I23 -> 1,529,238 | J8: ='Cash flow'!J23 -> 1,471,990 | K8: ='Cash flow'!K23 -> 1,429,346 | L8: ='Cash flow'!L23 -> 1,407,072 | M8: ='Cash flow'!M23 -> 1,391,999 | N8: ='Cash flow'!N23 -> 1,380,597 | O8: ='Cash flow'!O23 -> 1,376,399 | P8: ='Cash flow'!P23 -> 1,384,423
C9: Receivables | E9: ='Working capital'!E11 -> 162,500 | F9: ='Working capital'!F11 -> 180,000 | G9: ='Working capital'!G11 -> 197,500 | H9: ='Working capital'!H11 -> 215,000 | I9: ='Working capital'!I11 -> 232,500 | J9: ='Working capital'!J11 -> 250,000 | K9: ='Working capital'!K11 -> 267,500 | L9: ='Working capital'!L11 -> 285,000 | M9: ='Working capital'!M11 -> 366,371 | N9: ='Working capital'!N11 -> 387,278 | O9: ='Working capital'!O11 -> 425,879 | P9: ='Working capital'!P11 -> 442,750
C10: Prepayments | E10: ='Working capital'!E17 -> 30,000 | F10: ='Working capital'!F17 -> 30,000 | G10: ='Working capital'!G17 -> 30,000 | H10: ='Working capital'!H17 -> 30,000 | I10: ='Working capital'!I17 -> 30,000 | J10: ='Working capital'!J17 -> 30,000 | K10: ='Working capital'!K17 -> 30,000 | L10: ='Working capital'!L17 -> 30,000 | M10: ='Working capital'!M17 -> 30,000 | N10: ='Working capital'!N17 -> 30,000 | O10: ='Working capital'!O17 -> 30,000 | P10: ='Working capital'!P17 -> 30,000
C11: Tax prepayment | E11: =MAX(0,-'Assets debt'!E22) -> 0 | F11: =MAX(0,-'Assets debt'!F22) -> 0 | G11: =MAX(0,-'Assets debt'!G22) -> 0 | H11: =MAX(0,-'Assets debt'!H22) -> 0 | I11: =MAX(0,-'Assets debt'!I22) -> 0 | J11: =MAX(0,-'Assets debt'!J22) -> 4,000 | K11: =MAX(0,-'Assets debt'!K22) -> 4,000 | L11: =MAX(0,-'Assets debt'!L22) -> 4,000 | M11: =MAX(0,-'Assets debt'!M22) -> 16,000 | N11: =MAX(0,-'Assets debt'!N22) -> 14,006 | O11: =MAX(0,-'Assets debt'!O22) -> 9,461 | P11: =MAX(0,-'Assets debt'!P22) -> 13,549
C12: Current assets | E12: ='Balance sheet'!E8+'Balance sheet'!E9+'Balance sheet'!E10+'Balance sheet'!E11 -> 2,004,477 | F12: ='Balance sheet'!F8+'Balance sheet'!F9+'Balance sheet'!F10+'Balance sheet'!F11 -> 1,937,902 | G12: ='Balance sheet'!G8+'Balance sheet'!G9+'Balance sheet'!G10+'Balance sheet'!G11 -> 1,874,247 | H12: ='Balance sheet'!H8+'Balance sheet'!H9+'Balance sheet'!H10+'Balance sheet'!H11 -> 1,824,822 | I12: ='Balance sheet'!I8+'Balance sheet'!I9+'Balance sheet'!I10+'Balance sheet'!I11 -> 1,791,738 | J12: ='Balance sheet'!J8+'Balance sheet'!J9+'Balance sheet'!J10+'Balance sheet'!J11 -> 1,755,990 | K12: ='Balance sheet'!K8+'Balance sheet'!K9+'Balance sheet'!K10+'Balance sheet'!K11 -> 1,730,846 | L12: ='Balance sheet'!L8+'Balance sheet'!L9+'Balance sheet'!L10+'Balance sheet'!L11 -> 1,726,072 | M12: ='Balance sheet'!M8+'Balance sheet'!M9+'Balance sheet'!M10+'Balance sheet'!M11 -> 1,804,370 | N12: ='Balance sheet'!N8+'Balance sheet'!N9+'Balance sheet'!N10+'Balance sheet'!N11 -> 1,811,881 | O12: ='Balance sheet'!O8+'Balance sheet'!O9+'Balance sheet'!O10+'Balance sheet'!O11 -> 1,841,740 | P12: ='Balance sheet'!P8+'Balance sheet'!P9+'Balance sheet'!P10+'Balance sheet'!P11 -> 1,870,722
C13: Fixed assets at cost | E13: ='Assets debt'!E10 -> 188,000 | F13: ='Assets debt'!F10 -> 196,500 | G13: ='Assets debt'!G10 -> 205,500 | H13: ='Assets debt'!H10 -> 215,000 | I13: ='Assets debt'!I10 -> 225,000 | J13: ='Assets debt'!J10 -> 235,500 | K13: ='Assets debt'!K10 -> 246,500 | L13: ='Assets debt'!L10 -> 258,000 | M13: ='Assets debt'!M10 -> 270,000 | N13: ='Assets debt'!N10 -> 282,500 | O13: ='Assets debt'!O10 -> 295,500 | P13: ='Assets debt'!P10 -> 309,000
C14: Accumulated depreciation | E14: ='Assets debt'!E13 -> 51,222 | F14: ='Assets debt'!F13 -> 54,681 | G14: ='Assets debt'!G13 -> 58,389 | H14: ='Assets debt'!H13 -> 62,361 | I14: ='Assets debt'!I13 -> 66,611 | J14: ='Assets debt'!J13 -> 71,153 | K14: ='Assets debt'!K13 -> 76,000 | L14: ='Assets debt'!L13 -> 81,167 | M14: ='Assets debt'!M13 -> 86,667 | N14: ='Assets debt'!N13 -> 92,514 | O14: ='Assets debt'!O13 -> 98,722 | P14: ='Assets debt'!P13 -> 105,306
C15: Net fixed assets | E15: ='Assets debt'!E14 -> 136,778 | F15: ='Assets debt'!F14 -> 141,819 | G15: ='Assets debt'!G14 -> 147,111 | H15: ='Assets debt'!H14 -> 152,639 | I15: ='Assets debt'!I14 -> 158,389 | J15: ='Assets debt'!J14 -> 164,347 | K15: ='Assets debt'!K14 -> 170,500 | L15: ='Assets debt'!L14 -> 176,833 | M15: ='Assets debt'!M14 -> 183,333 | N15: ='Assets debt'!N14 -> 189,986 | O15: ='Assets debt'!O14 -> 196,778 | P15: ='Assets debt'!P14 -> 203,694
C16: Total assets | E16: ='Balance sheet'!E12+'Balance sheet'!E15 -> 2,141,255 | F16: ='Balance sheet'!F12+'Balance sheet'!F15 -> 2,079,722 | G16: ='Balance sheet'!G12+'Balance sheet'!G15 -> 2,021,358 | H16: ='Balance sheet'!H12+'Balance sheet'!H15 -> 1,977,461 | I16: ='Balance sheet'!I12+'Balance sheet'!I15 -> 1,950,127 | J16: ='Balance sheet'!J12+'Balance sheet'!J15 -> 1,920,337 | K16: ='Balance sheet'!K12+'Balance sheet'!K15 -> 1,901,346 | L16: ='Balance sheet'!L12+'Balance sheet'!L15 -> 1,902,905 | M16: ='Balance sheet'!M12+'Balance sheet'!M15 -> 1,987,704 | N16: ='Balance sheet'!N12+'Balance sheet'!N15 -> 2,001,867 | O16: ='Balance sheet'!O12+'Balance sheet'!O15 -> 2,038,518 | P16: ='Balance sheet'!P12+'Balance sheet'!P15 -> 2,074,416
C17: Payables | E17: ='Working capital'!E16 -> 66,375 | F17: ='Working capital'!F16 -> 74,750 | G17: ='Working capital'!G16 -> 83,125 | H17: ='Working capital'!H16 -> 91,500 | I17: ='Working capital'!I16 -> 99,875 | J17: ='Working capital'!J16 -> 108,250 | K17: ='Working capital'!K16 -> 116,625 | L17: ='Working capital'!L16 -> 125,000 | M17: ='Working capital'!M16 -> 220,186 | N17: ='Working capital'!N16 -> 224,925 | O17: ='Working capital'!O16 -> 245,171 | P17: ='Working capital'!P16 -> 251,193
C18: Payroll accruals | E18: ='Working capital'!E18 -> 32,000 | F18: ='Working capital'!F18 -> 32,000 | G18: ='Working capital'!G18 -> 32,000 | H18: ='Working capital'!H18 -> 32,000 | I18: ='Working capital'!I18 -> 32,000 | J18: ='Working capital'!J18 -> 32,000 | K18: ='Working capital'!K18 -> 32,000 | L18: ='Working capital'!L18 -> 32,000 | M18: ='Working capital'!M18 -> 32,000 | N18: ='Working capital'!N18 -> 32,000 | O18: ='Working capital'!O18 -> 32,000 | P18: ='Working capital'!P18 -> 32,000
C19: Deferred revenue | E19: ='Revenue'!E36 -> 45,150 | F19: ='Revenue'!F36 -> 48,375 | G19: ='Revenue'!G36 -> 54,825 | H19: ='Revenue'!H36 -> 58,050 | I19: ='Revenue'!I36 -> 64,500 | J19: ='Revenue'!J36 -> 67,725 | K19: ='Revenue'!K36 -> 70,950 | L19: ='Revenue'!L36 -> 77,400 | M19: ='Revenue'!M36 -> 80,625 | N19: ='Revenue'!N36 -> 87,075 | O19: ='Revenue'!O36 -> 90,300 | P19: ='Revenue'!P36 -> 93,525
C20: Tax payable | E20: =MAX(0,'Assets debt'!E22) -> 18,000 | F20: =MAX(0,'Assets debt'!F22) -> 18,000 | G20: =MAX(0,'Assets debt'!G22) -> 6,000 | H20: =MAX(0,'Assets debt'!H22) -> 6,000 | I20: =MAX(0,'Assets debt'!I22) -> 6,000 | J20: =MAX(0,'Assets debt'!J22) -> 0 | K20: =MAX(0,'Assets debt'!K22) -> 0 | L20: =MAX(0,'Assets debt'!L22) -> 0 | M20: =MAX(0,'Assets debt'!M22) -> 0 | N20: =MAX(0,'Assets debt'!N22) -> 0 | O20: =MAX(0,'Assets debt'!O22) -> 0 | P20: =MAX(0,'Assets debt'!P22) -> 0
C21: Current operating liabilities | E21: ='Balance sheet'!E17+'Balance sheet'!E18+'Balance sheet'!E19+'Balance sheet'!E20 -> 161,525 | F21: ='Balance sheet'!F17+'Balance sheet'!F18+'Balance sheet'!F19+'Balance sheet'!F20 -> 173,125 | G21: ='Balance sheet'!G17+'Balance sheet'!G18+'Balance sheet'!G19+'Balance sheet'!G20 -> 175,950 | H21: ='Balance sheet'!H17+'Balance sheet'!H18+'Balance sheet'!H19+'Balance sheet'!H20 -> 187,550 | I21: ='Balance sheet'!I17+'Balance sheet'!I18+'Balance sheet'!I19+'Balance sheet'!I20 -> 202,375 | J21: ='Balance sheet'!J17+'Balance sheet'!J18+'Balance sheet'!J19+'Balance sheet'!J20 -> 207,975 | K21: ='Balance sheet'!K17+'Balance sheet'!K18+'Balance sheet'!K19+'Balance sheet'!K20 -> 219,575 | L21: ='Balance sheet'!L17+'Balance sheet'!L18+'Balance sheet'!L19+'Balance sheet'!L20 -> 234,400 | M21: ='Balance sheet'!M17+'Balance sheet'!M18+'Balance sheet'!M19+'Balance sheet'!M20 -> 332,811 | N21: ='Balance sheet'!N17+'Balance sheet'!N18+'Balance sheet'!N19+'Balance sheet'!N20 -> 344,000 | O21: ='Balance sheet'!O17+'Balance sheet'!O18+'Balance sheet'!O19+'Balance sheet'!O20 -> 367,471 | P21: ='Balance sheet'!P17+'Balance sheet'!P18+'Balance sheet'!P19+'Balance sheet'!P20 -> 376,718
C22: Debt | E22: ='Assets debt'!E17 -> 235,000 | F22: ='Assets debt'!F17 -> 230,000 | G22: ='Assets debt'!G17 -> 225,000 | H22: ='Assets debt'!H17 -> 220,000 | I22: ='Assets debt'!I17 -> 215,000 | J22: ='Assets debt'!J17 -> 210,000 | K22: ='Assets debt'!K17 -> 205,000 | L22: ='Assets debt'!L17 -> 200,000 | M22: ='Assets debt'!M17 -> 195,000 | N22: ='Assets debt'!N17 -> 190,000 | O22: ='Assets debt'!O17 -> 185,000 | P22: ='Assets debt'!P17 -> 180,000
C23: Total liabilities | E23: ='Balance sheet'!E21+'Balance sheet'!E22 -> 396,525 | F23: ='Balance sheet'!F21+'Balance sheet'!F22 -> 403,125 | G23: ='Balance sheet'!G21+'Balance sheet'!G22 -> 400,950 | H23: ='Balance sheet'!H21+'Balance sheet'!H22 -> 407,550 | I23: ='Balance sheet'!I21+'Balance sheet'!I22 -> 417,375 | J23: ='Balance sheet'!J21+'Balance sheet'!J22 -> 417,975 | K23: ='Balance sheet'!K21+'Balance sheet'!K22 -> 424,575 | L23: ='Balance sheet'!L21+'Balance sheet'!L22 -> 434,400 | M23: ='Balance sheet'!M21+'Balance sheet'!M22 -> 527,811 | N23: ='Balance sheet'!N21+'Balance sheet'!N22 -> 534,000 | O23: ='Balance sheet'!O21+'Balance sheet'!O22 -> 552,471 | P23: ='Balance sheet'!P21+'Balance sheet'!P22 -> 556,718
C24: Share capital | E24: ='Actual inputs'!$E$54 -> 500,000 | F24: ='Actual inputs'!$E$54 -> 500,000 | G24: ='Actual inputs'!$E$54 -> 500,000 | H24: ='Actual inputs'!$E$54 -> 500,000 | I24: ='Actual inputs'!$E$54 -> 500,000 | J24: ='Actual inputs'!$E$54 -> 500,000 | K24: ='Actual inputs'!$E$54 -> 500,000 | L24: ='Actual inputs'!$E$54 -> 500,000 | M24: ='Actual inputs'!$E$54 -> 500,000 | N24: ='Actual inputs'!$E$54 -> 500,000 | O24: ='Actual inputs'!$E$54 -> 500,000 | P24: ='Actual inputs'!$E$54 -> 500,000
C25: Retained earnings | E25: ='Actual inputs'!$E$65+'P&L'!E32 -> 1,244,730 | F25: ='Balance sheet'!E25+'P&L'!F32 -> 1,176,597 | G25: ='Balance sheet'!F25+'P&L'!G32 -> 1,120,408 | H25: ='Balance sheet'!G25+'P&L'!H32 -> 1,069,911 | I25: ='Balance sheet'!H25+'P&L'!I32 -> 1,032,752 | J25: ='Balance sheet'!I25+'P&L'!J32 -> 1,002,362 | K25: ='Balance sheet'!J25+'P&L'!K32 -> 976,771 | L25: ='Balance sheet'!K25+'P&L'!L32 -> 968,505 | M25: ='Balance sheet'!L25+'P&L'!M32 -> 959,892 | N25: ='Balance sheet'!M25+'P&L'!N32 -> 967,868 | O25: ='Balance sheet'!N25+'P&L'!O32 -> 986,046 | P25: ='Balance sheet'!O25+'P&L'!P32 -> 1,017,698
C26: Equity | E26: ='Balance sheet'!E24+'Balance sheet'!E25 -> 1,744,730 | F26: ='Balance sheet'!F24+'Balance sheet'!F25 -> 1,676,597 | G26: ='Balance sheet'!G24+'Balance sheet'!G25 -> 1,620,408 | H26: ='Balance sheet'!H24+'Balance sheet'!H25 -> 1,569,911 | I26: ='Balance sheet'!I24+'Balance sheet'!I25 -> 1,532,752 | J26: ='Balance sheet'!J24+'Balance sheet'!J25 -> 1,502,362 | K26: ='Balance sheet'!K24+'Balance sheet'!K25 -> 1,476,771 | L26: ='Balance sheet'!L24+'Balance sheet'!L25 -> 1,468,505 | M26: ='Balance sheet'!M24+'Balance sheet'!M25 -> 1,459,892 | N26: ='Balance sheet'!N24+'Balance sheet'!N25 -> 1,467,868 | O26: ='Balance sheet'!O24+'Balance sheet'!O25 -> 1,486,046 | P26: ='Balance sheet'!P24+'Balance sheet'!P25 -> 1,517,698
C27: Liabilities and equity | E27: ='Balance sheet'!E23+'Balance sheet'!E26 -> 2,141,255 | F27: ='Balance sheet'!F23+'Balance sheet'!F26 -> 2,079,722 | G27: ='Balance sheet'!G23+'Balance sheet'!G26 -> 2,021,358 | H27: ='Balance sheet'!H23+'Balance sheet'!H26 -> 1,977,461 | I27: ='Balance sheet'!I23+'Balance sheet'!I26 -> 1,950,127 | J27: ='Balance sheet'!J23+'Balance sheet'!J26 -> 1,920,337 | K27: ='Balance sheet'!K23+'Balance sheet'!K26 -> 1,901,346 | L27: ='Balance sheet'!L23+'Balance sheet'!L26 -> 1,902,905 | M27: ='Balance sheet'!M23+'Balance sheet'!M26 -> 1,987,704 | N27: ='Balance sheet'!N23+'Balance sheet'!N26 -> 2,001,867 | O27: ='Balance sheet'!O23+'Balance sheet'!O26 -> 2,038,518 | P27: ='Balance sheet'!P23+'Balance sheet'!P26 -> 2,074,416

Sheet Cash flow
C2: Cash flow
C4: Selected case | E4: ='Assumptions'!$G$4 -> Base | H4: EUR · entirely fictional
E6: Actual | F6: Actual | G6: Actual | H6: Actual | I6: Actual | J6: Actual | K6: Actual | L6: Actual | M6: Forecast | N6: Forecast | O6: Forecast | P6: Forecast
E7: 2026-01-01 | F7: 2026-02-01 | G7: 2026-03-01 | H7: 2026-04-01 | I7: 2026-05-01 | J7: 2026-06-01 | K7: 2026-07-01 | L7: 2026-08-01 | M7: 2026-09-01 | N7: 2026-10-01 | O7: 2026-11-01 | P7: 2026-12-01
C8: Net profit | E8: ='P&L'!E32 -> (74,270) | F8: ='P&L'!F32 -> (68,133) | G8: ='P&L'!G32 -> (56,189) | H8: ='P&L'!H32 -> (50,498) | I8: ='P&L'!I32 -> (37,158) | J8: ='P&L'!J32 -> (30,390) | K8: ='P&L'!K32 -> (25,591) | L8: ='P&L'!L32 -> (8,266) | M8: ='P&L'!M32 -> (8,613) | N8: ='P&L'!N32 -> 7,976 | O8: ='P&L'!O32 -> 18,179 | P8: ='P&L'!P32 -> 31,651
C9: Depreciation add-back | E9: ='Assets debt'!E12 -> 3,222 | F9: ='Assets debt'!F12 -> 3,458 | G9: ='Assets debt'!G12 -> 3,708 | H9: ='Assets debt'!H12 -> 3,972 | I9: ='Assets debt'!I12 -> 4,250 | J9: ='Assets debt'!J12 -> 4,542 | K9: ='Assets debt'!K12 -> 4,847 | L9: ='Assets debt'!L12 -> 5,167 | M9: ='Assets debt'!M12 -> 5,500 | N9: ='Assets debt'!N12 -> 5,847 | O9: ='Assets debt'!O12 -> 6,208 | P9: ='Assets debt'!P12 -> 6,583
C10: Receivables cash effect | E10: ='Actual inputs'!$E$45-'Balance sheet'!E9 -> (17,500) | F10: ='Balance sheet'!E9-'Balance sheet'!F9 -> (17,500) | G10: ='Balance sheet'!F9-'Balance sheet'!G9 -> (17,500) | H10: ='Balance sheet'!G9-'Balance sheet'!H9 -> (17,500) | I10: ='Balance sheet'!H9-'Balance sheet'!I9 -> (17,500) | J10: ='Balance sheet'!I9-'Balance sheet'!J9 -> (17,500) | K10: ='Balance sheet'!J9-'Balance sheet'!K9 -> (17,500) | L10: ='Balance sheet'!K9-'Balance sheet'!L9 -> (17,500) | M10: ='Balance sheet'!L9-'Balance sheet'!M9 -> (81,371) | N10: ='Balance sheet'!M9-'Balance sheet'!N9 -> (20,907) | O10: ='Balance sheet'!N9-'Balance sheet'!O9 -> (38,601) | P10: ='Balance sheet'!O9-'Balance sheet'!P9 -> (16,871)
C11: Prepayment cash effect | E11: ='Actual inputs'!$E$48-'Balance sheet'!E10 -> 0 | F11: ='Balance sheet'!E10-'Balance sheet'!F10 -> 0 | G11: ='Balance sheet'!F10-'Balance sheet'!G10 -> 0 | H11: ='Balance sheet'!G10-'Balance sheet'!H10 -> 0 | I11: ='Balance sheet'!H10-'Balance sheet'!I10 -> 0 | J11: ='Balance sheet'!I10-'Balance sheet'!J10 -> 0 | K11: ='Balance sheet'!J10-'Balance sheet'!K10 -> 0 | L11: ='Balance sheet'!K10-'Balance sheet'!L10 -> 0 | M11: ='Balance sheet'!L10-'Balance sheet'!M10 -> 0 | N11: ='Balance sheet'!M10-'Balance sheet'!N10 -> 0 | O11: ='Balance sheet'!N10-'Balance sheet'!O10 -> 0 | P11: ='Balance sheet'!O10-'Balance sheet'!P10 -> 0
C12: Payable cash effect | E12: ='Balance sheet'!E17-'Actual inputs'!$E$46 -> 8,375 | F12: ='Balance sheet'!F17-'Balance sheet'!E17 -> 8,375 | G12: ='Balance sheet'!G17-'Balance sheet'!F17 -> 8,375 | H12: ='Balance sheet'!H17-'Balance sheet'!G17 -> 8,375 | I12: ='Balance sheet'!I17-'Balance sheet'!H17 -> 8,375 | J12: ='Balance sheet'!J17-'Balance sheet'!I17 -> 8,375 | K12: ='Balance sheet'!K17-'Balance sheet'!J17 -> 8,375 | L12: ='Balance sheet'!L17-'Balance sheet'!K17 -> 8,375 | M12: ='Balance sheet'!M17-'Balance sheet'!L17 -> 95,186 | N12: ='Balance sheet'!N17-'Balance sheet'!M17 -> 4,738 | O12: ='Balance sheet'!O17-'Balance sheet'!N17 -> 20,247 | P12: ='Balance sheet'!P17-'Balance sheet'!O17 -> 6,022
C13: Accrual cash effect | E13: ='Balance sheet'!E18-'Actual inputs'!$E$49 -> 0 | F13: ='Balance sheet'!F18-'Balance sheet'!E18 -> 0 | G13: ='Balance sheet'!G18-'Balance sheet'!F18 -> 0 | H13: ='Balance sheet'!H18-'Balance sheet'!G18 -> 0 | I13: ='Balance sheet'!I18-'Balance sheet'!H18 -> 0 | J13: ='Balance sheet'!J18-'Balance sheet'!I18 -> 0 | K13: ='Balance sheet'!K18-'Balance sheet'!J18 -> 0 | L13: ='Balance sheet'!L18-'Balance sheet'!K18 -> 0 | M13: ='Balance sheet'!M18-'Balance sheet'!L18 -> 0 | N13: ='Balance sheet'!N18-'Balance sheet'!M18 -> 0 | O13: ='Balance sheet'!O18-'Balance sheet'!N18 -> 0 | P13: ='Balance sheet'!P18-'Balance sheet'!O18 -> 0
C14: Deferred-revenue cash effect | E14: ='Balance sheet'!E19-'Actual inputs'!$E$47 -> (44,850) | F14: ='Balance sheet'!F19-'Balance sheet'!E19 -> 3,225 | G14: ='Balance sheet'!G19-'Balance sheet'!F19 -> 6,450 | H14: ='Balance sheet'!H19-'Balance sheet'!G19 -> 3,225 | I14: ='Balance sheet'!I19-'Balance sheet'!H19 -> 6,450 | J14: ='Balance sheet'!J19-'Balance sheet'!I19 -> 3,225 | K14: ='Balance sheet'!K19-'Balance sheet'!J19 -> 3,225 | L14: ='Balance sheet'!L19-'Balance sheet'!K19 -> 6,450 | M14: ='Balance sheet'!M19-'Balance sheet'!L19 -> 3,225 | N14: ='Balance sheet'!N19-'Balance sheet'!M19 -> 6,450 | O14: ='Balance sheet'!O19-'Balance sheet'!N19 -> 3,225 | P14: ='Balance sheet'!P19-'Balance sheet'!O19 -> 3,225
C15: Current-tax balance cash effect | E15: ='Assets debt'!E22-'Assets debt'!E19 -> 0 | F15: ='Assets debt'!F22-'Assets debt'!F19 -> 0 | G15: ='Assets debt'!G22-'Assets debt'!G19 -> (12,000) | H15: ='Assets debt'!H22-'Assets debt'!H19 -> 0 | I15: ='Assets debt'!I22-'Assets debt'!I19 -> 0 | J15: ='Assets debt'!J22-'Assets debt'!J19 -> (10,000) | K15: ='Assets debt'!K22-'Assets debt'!K19 -> 0 | L15: ='Assets debt'!L22-'Assets debt'!L19 -> 0 | M15: ='Assets debt'!M22-'Assets debt'!M19 -> (12,000) | N15: ='Assets debt'!N22-'Assets debt'!N19 -> 1,994 | O15: ='Assets debt'!O22-'Assets debt'!O19 -> 4,545 | P15: ='Assets debt'!P22-'Assets debt'!P19 -> (4,087)
C16: Operating cash flow | E16: ='Cash flow'!E8+'Cash flow'!E9+'Cash flow'!E10+'Cash flow'!E11+'Cash flow'!E12+'Cash flow'!E13+'Cash flow'!E14+'Cash flow'!E15 -> (125,023) | F16: ='Cash flow'!F8+'Cash flow'!F9+'Cash flow'!F10+'Cash flow'!F11+'Cash flow'!F12+'Cash flow'!F13+'Cash flow'!F14+'Cash flow'!F15 -> (70,575) | G16: ='Cash flow'!G8+'Cash flow'!G9+'Cash flow'!G10+'Cash flow'!G11+'Cash flow'!G12+'Cash flow'!G13+'Cash flow'!G14+'Cash flow'!G15 -> (67,155) | H16: ='Cash flow'!H8+'Cash flow'!H9+'Cash flow'!H10+'Cash flow'!H11+'Cash flow'!H12+'Cash flow'!H13+'Cash flow'!H14+'Cash flow'!H15 -> (52,425) | I16: ='Cash flow'!I8+'Cash flow'!I9+'Cash flow'!I10+'Cash flow'!I11+'Cash flow'!I12+'Cash flow'!I13+'Cash flow'!I14+'Cash flow'!I15 -> (35,583) | J16: ='Cash flow'!J8+'Cash flow'!J9+'Cash flow'!J10+'Cash flow'!J11+'Cash flow'!J12+'Cash flow'!J13+'Cash flow'!J14+'Cash flow'!J15 -> (41,749) | K16: ='Cash flow'!K8+'Cash flow'!K9+'Cash flow'!K10+'Cash flow'!K11+'Cash flow'!K12+'Cash flow'!K13+'Cash flow'!K14+'Cash flow'!K15 -> (26,644) | L16: ='Cash flow'!L8+'Cash flow'!L9+'Cash flow'!L10+'Cash flow'!L11+'Cash flow'!L12+'Cash flow'!L13+'Cash flow'!L14+'Cash flow'!L15 -> (5,774) | M16: ='Cash flow'!M8+'Cash flow'!M9+'Cash flow'!M10+'Cash flow'!M11+'Cash flow'!M12+'Cash flow'!M13+'Cash flow'!M14+'Cash flow'!M15 -> 1,928 | N16: ='Cash flow'!N8+'Cash flow'!N9+'Cash flow'!N10+'Cash flow'!N11+'Cash flow'!N12+'Cash flow'!N13+'Cash flow'!N14+'Cash flow'!N15 -> 6,098 | O16: ='Cash flow'!O8+'Cash flow'!O9+'Cash flow'!O10+'Cash flow'!O11+'Cash flow'!O12+'Cash flow'!O13+'Cash flow'!O14+'Cash flow'!O15 -> 13,802 | P16: ='Cash flow'!P8+'Cash flow'!P9+'Cash flow'!P10+'Cash flow'!P11+'Cash flow'!P12+'Cash flow'!P13+'Cash flow'!P14+'Cash flow'!P15 -> 26,524
C17: Capital expenditure | E17: =-'Assets debt'!E9 -> (8,000) | F17: =-'Assets debt'!F9 -> (8,500) | G17: =-'Assets debt'!G9 -> (9,000) | H17: =-'Assets debt'!H9 -> (9,500) | I17: =-'Assets debt'!I9 -> (10,000) | J17: =-'Assets debt'!J9 -> (10,500) | K17: =-'Assets debt'!K9 -> (11,000) | L17: =-'Assets debt'!L9 -> (11,500) | M17: =-'Assets debt'!M9 -> (12,000) | N17: =-'Assets debt'!N9 -> (12,500) | O17: =-'Assets debt'!O9 -> (13,000) | P17: =-'Assets debt'!P9 -> (13,500)
C18: Investing cash flow | E18: ='Cash flow'!E17 -> (8,000) | F18: ='Cash flow'!F17 -> (8,500) | G18: ='Cash flow'!G17 -> (9,000) | H18: ='Cash flow'!H17 -> (9,500) | I18: ='Cash flow'!I17 -> (10,000) | J18: ='Cash flow'!J17 -> (10,500) | K18: ='Cash flow'!K17 -> (11,000) | L18: ='Cash flow'!L17 -> (11,500) | M18: ='Cash flow'!M17 -> (12,000) | N18: ='Cash flow'!N17 -> (12,500) | O18: ='Cash flow'!O17 -> (13,000) | P18: ='Cash flow'!P17 -> (13,500)
C19: Principal repayment | E19: =-'Assets debt'!E16 -> (5,000) | F19: =-'Assets debt'!F16 -> (5,000) | G19: =-'Assets debt'!G16 -> (5,000) | H19: =-'Assets debt'!H16 -> (5,000) | I19: =-'Assets debt'!I16 -> (5,000) | J19: =-'Assets debt'!J16 -> (5,000) | K19: =-'Assets debt'!K16 -> (5,000) | L19: =-'Assets debt'!L16 -> (5,000) | M19: =-'Assets debt'!M16 -> (5,000) | N19: =-'Assets debt'!N16 -> (5,000) | O19: =-'Assets debt'!O16 -> (5,000) | P19: =-'Assets debt'!P16 -> (5,000)
C20: Financing cash flow | E20: ='Cash flow'!E19 -> (5,000) | F20: ='Cash flow'!F19 -> (5,000) | G20: ='Cash flow'!G19 -> (5,000) | H20: ='Cash flow'!H19 -> (5,000) | I20: ='Cash flow'!I19 -> (5,000) | J20: ='Cash flow'!J19 -> (5,000) | K20: ='Cash flow'!K19 -> (5,000) | L20: ='Cash flow'!L19 -> (5,000) | M20: ='Cash flow'!M19 -> (5,000) | N20: ='Cash flow'!N19 -> (5,000) | O20: ='Cash flow'!O19 -> (5,000) | P20: ='Cash flow'!P19 -> (5,000)
C21: Net cash change | E21: ='Cash flow'!E16+'Cash flow'!E18+'Cash flow'!E20 -> (138,023) | F21: ='Cash flow'!F16+'Cash flow'!F18+'Cash flow'!F20 -> (84,075) | G21: ='Cash flow'!G16+'Cash flow'!G18+'Cash flow'!G20 -> (81,155) | H21: ='Cash flow'!H16+'Cash flow'!H18+'Cash flow'!H20 -> (66,925) | I21: ='Cash flow'!I16+'Cash flow'!I18+'Cash flow'!I20 -> (50,583) | J21: ='Cash flow'!J16+'Cash flow'!J18+'Cash flow'!J20 -> (57,249) | K21: ='Cash flow'!K16+'Cash flow'!K18+'Cash flow'!K20 -> (42,644) | L21: ='Cash flow'!L16+'Cash flow'!L18+'Cash flow'!L20 -> (22,274) | M21: ='Cash flow'!M16+'Cash flow'!M18+'Cash flow'!M20 -> (15,072) | N21: ='Cash flow'!N16+'Cash flow'!N18+'Cash flow'!N20 -> (11,402) | O21: ='Cash flow'!O16+'Cash flow'!O18+'Cash flow'!O20 -> (4,198) | P21: ='Cash flow'!P16+'Cash flow'!P18+'Cash flow'!P20 -> 8,024
C22: Opening cash | E22: ='Actual inputs'!$E$44 -> 1,950,000 | F22: ='Cash flow'!E23 -> 1,811,977 | G22: ='Cash flow'!F23 -> 1,727,902 | H22: ='Cash flow'!G23 -> 1,646,747 | I22: ='Cash flow'!H23 -> 1,579,822 | J22: ='Cash flow'!I23 -> 1,529,238 | K22: ='Cash flow'!J23 -> 1,471,990 | L22: ='Cash flow'!K23 -> 1,429,346 | M22: ='Cash flow'!L23 -> 1,407,072 | N22: ='Cash flow'!M23 -> 1,391,999 | O22: ='Cash flow'!N23 -> 1,380,597 | P22: ='Cash flow'!O23 -> 1,376,399
C23: Closing cash | E23: ='Cash flow'!E22+'Cash flow'!E21 -> 1,811,977 | F23: ='Cash flow'!F22+'Cash flow'!F21 -> 1,727,902 | G23: ='Cash flow'!G22+'Cash flow'!G21 -> 1,646,747 | H23: ='Cash flow'!H22+'Cash flow'!H21 -> 1,579,822 | I23: ='Cash flow'!I22+'Cash flow'!I21 -> 1,529,238 | J23: ='Cash flow'!J22+'Cash flow'!J21 -> 1,471,990 | K23: ='Cash flow'!K22+'Cash flow'!K21 -> 1,429,346 | L23: ='Cash flow'!L22+'Cash flow'!L21 -> 1,407,072 | M23: ='Cash flow'!M22+'Cash flow'!M21 -> 1,391,999 | N23: ='Cash flow'!N22+'Cash flow'!N21 -> 1,380,597 | O23: ='Cash flow'!O22+'Cash flow'!O21 -> 1,376,399 | P23: ='Cash flow'!P22+'Cash flow'!P21 -> 1,384,423

Sheet 13 week cash
C2: 13 week cash
C4: Selected case | E4: ='Assumptions'!$G$4 -> Base | H4: EUR · entirely fictional
C6: Week starts (first period partial) | E6: 2026-09-01 | F6: 2026-09-07 | G6: 2026-09-14 | H6: 2026-09-21 | I6: 2026-09-28 | J6: 2026-10-05 | K6: 2026-10-12 | L6: 2026-10-19 | M6: 2026-10-26 | N6: 2026-11-02 | O6: 2026-11-09 | P6: 2026-11-16 | Q6: 2026-11-23
C7: Week ends | E7: 2026-09-06 | F7: 2026-09-13 | G7: 2026-09-20 | H7: 2026-09-27 | I7: 2026-10-04 | J7: 2026-10-11 | K7: 2026-10-18 | L7: 2026-10-25 | M7: 2026-11-01 | N7: 2026-11-08 | O7: 2026-11-15 | P7: 2026-11-22 | Q7: 2026-11-29
C8: Opening cash | E8: ='Balance sheet'!L8 -> 1,407,072 | F8: =E17 -> 1,455,122 | G8: =F17 -> 1,481,522 | H8: =G17 -> 1,567,752 | I8: =H17 -> 1,365,352 | J8: =I17 -> 1,391,999 | K8: =J17 -> 1,379,499 | L8: =K17 -> 1,489,965 | M8: =L17 -> 1,251,640 | N8: =M17 -> 1,380,597 | O8: =N17 -> 1,367,597 | P8: =O17 -> 1,484,364 | Q8: =P17 -> 1,484,364
C9: Customer receipts | E9: =SUMIFS($F$28:$F79,$D$28:$D$79,"receipts",$E$28:$E$79,">="&E$6,$E$28:$E$79,"<="&E$7) -> 65,550 | F9: =SUMIFS($F$28:$F79,$D$28:$D$79,"receipts",$E$28:$E$79,">="&F$6,$E$28:$E$79,"<="&F$7) -> 68,400 | G9: =SUMIFS($F$28:$F79,$D$28:$D$79,"receipts",$E$28:$E$79,">="&G$6,$E$28:$E$79,"<="&G$7) -> 109,923 | H9: =SUMIFS($F$28:$F79,$D$28:$D$79,"receipts",$E$28:$E$79,">="&H$6,$E$28:$E$79,"<="&H$7) -> 74,100 | I9: =SUMIFS($F$28:$F79,$D$28:$D$79,"receipts",$E$28:$E$79,">="&I$6,$E$28:$E$79,"<="&I$7) -> 40,301 | J9: =SUMIFS($F$28:$F79,$D$28:$D$79,"receipts",$E$28:$E$79,">="&J$6,$E$28:$E$79,"<="&J$7) -> 0 | K9: =SUMIFS($F$28:$F79,$D$28:$D$79,"receipts",$E$28:$E$79,">="&K$6,$E$28:$E$79,"<="&K$7) -> 206,693 | L9: =SUMIFS($F$28:$F79,$D$28:$D$79,"receipts",$E$28:$E$79,">="&L$6,$E$28:$E$79,"<="&L$7) -> 0 | M9: =SUMIFS($F$28:$F79,$D$28:$D$79,"receipts",$E$28:$E$79,">="&M$6,$E$28:$E$79,"<="&M$7) -> 252,625 | N9: =SUMIFS($F$28:$F79,$D$28:$D$79,"receipts",$E$28:$E$79,">="&N$6,$E$28:$E$79,"<="&N$7) -> 0 | O9: =SUMIFS($F$28:$F79,$D$28:$D$79,"receipts",$E$28:$E$79,">="&O$6,$E$28:$E$79,"<="&O$7) -> 212,604 | P9: =SUMIFS($F$28:$F79,$D$28:$D$79,"receipts",$E$28:$E$79,">="&P$6,$E$28:$E$79,"<="&P$7) -> 0 | Q9: =SUMIFS($F$28:$F79,$D$28:$D$79,"receipts",$E$28:$E$79,">="&Q$6,$E$28:$E$79,"<="&Q$7) -> 259,850
C10: Vendor payments | E10: =SUMIFS($F$28:$F79,$D$28:$D$79,"suppliers",$E$28:$E$79,">="&E$6,$E$28:$E$79,"<="&E$7) -> (17,500) | F10: =SUMIFS($F$28:$F79,$D$28:$D$79,"suppliers",$E$28:$E$79,">="&F$6,$E$28:$E$79,"<="&F$7) -> (30,000) | G10: =SUMIFS($F$28:$F79,$D$28:$D$79,"suppliers",$E$28:$E$79,">="&G$6,$E$28:$E$79,"<="&G$7) -> (23,693) | H10: =SUMIFS($F$28:$F79,$D$28:$D$79,"suppliers",$E$28:$E$79,">="&H$6,$E$28:$E$79,"<="&H$7) -> (32,500) | I10: =SUMIFS($F$28:$F79,$D$28:$D$79,"suppliers",$E$28:$E$79,">="&I$6,$E$28:$E$79,"<="&I$7) -> (7,570) | J10: =SUMIFS($F$28:$F79,$D$28:$D$79,"suppliers",$E$28:$E$79,">="&J$6,$E$28:$E$79,"<="&J$7) -> 0 | K10: =SUMIFS($F$28:$F79,$D$28:$D$79,"suppliers",$E$28:$E$79,">="&K$6,$E$28:$E$79,"<="&K$7) -> (96,227) | L10: =SUMIFS($F$28:$F79,$D$28:$D$79,"suppliers",$E$28:$E$79,">="&L$6,$E$28:$E$79,"<="&L$7) -> 0 | M10: =SUMIFS($F$28:$F79,$D$28:$D$79,"suppliers",$E$28:$E$79,">="&M$6,$E$28:$E$79,"<="&M$7) -> (117,611) | N10: =SUMIFS($F$28:$F79,$D$28:$D$79,"suppliers",$E$28:$E$79,">="&N$6,$E$28:$E$79,"<="&N$7) -> 0 | O10: =SUMIFS($F$28:$F79,$D$28:$D$79,"suppliers",$E$28:$E$79,">="&O$6,$E$28:$E$79,"<="&O$7) -> (95,838) | P10: =SUMIFS($F$28:$F79,$D$28:$D$79,"suppliers",$E$28:$E$79,">="&P$6,$E$28:$E$79,"<="&P$7) -> 0 | Q10: =SUMIFS($F$28:$F79,$D$28:$D$79,"suppliers",$E$28:$E$79,">="&Q$6,$E$28:$E$79,"<="&Q$7) -> (117,135)
C11: Loaded payroll | E11: =SUMIFS($F$28:$F79,$D$28:$D$79,"payroll",$E$28:$E$79,">="&E$6,$E$28:$E$79,"<="&E$7) -> 0 | F11: =SUMIFS($F$28:$F79,$D$28:$D$79,"payroll",$E$28:$E$79,">="&F$6,$E$28:$E$79,"<="&F$7) -> 0 | G11: =SUMIFS($F$28:$F79,$D$28:$D$79,"payroll",$E$28:$E$79,">="&G$6,$E$28:$E$79,"<="&G$7) -> 0 | H11: =SUMIFS($F$28:$F79,$D$28:$D$79,"payroll",$E$28:$E$79,">="&H$6,$E$28:$E$79,"<="&H$7) -> (232,000) | I11: =SUMIFS($F$28:$F79,$D$28:$D$79,"payroll",$E$28:$E$79,">="&I$6,$E$28:$E$79,"<="&I$7) -> 0 | J11: =SUMIFS($F$28:$F79,$D$28:$D$79,"payroll",$E$28:$E$79,">="&J$6,$E$28:$E$79,"<="&J$7) -> 0 | K11: =SUMIFS($F$28:$F79,$D$28:$D$79,"payroll",$E$28:$E$79,">="&K$6,$E$28:$E$79,"<="&K$7) -> 0 | L11: =SUMIFS($F$28:$F79,$D$28:$D$79,"payroll",$E$28:$E$79,">="&L$6,$E$28:$E$79,"<="&L$7) -> (238,325) | M11: =SUMIFS($F$28:$F79,$D$28:$D$79,"payroll",$E$28:$E$79,">="&M$6,$E$28:$E$79,"<="&M$7) -> 0 | N11: =SUMIFS($F$28:$F79,$D$28:$D$79,"payroll",$E$28:$E$79,">="&N$6,$E$28:$E$79,"<="&N$7) -> 0 | O11: =SUMIFS($F$28:$F79,$D$28:$D$79,"payroll",$E$28:$E$79,">="&O$6,$E$28:$E$79,"<="&O$7) -> 0 | P11: =SUMIFS($F$28:$F79,$D$28:$D$79,"payroll",$E$28:$E$79,">="&P$6,$E$28:$E$79,"<="&P$7) -> 0 | Q11: =SUMIFS($F$28:$F79,$D$28:$D$79,"payroll",$E$28:$E$79,">="&Q$6,$E$28:$E$79,"<="&Q$7) -> (244,650)
C12: Current tax | E12: =SUMIFS($F$28:$F79,$D$28:$D$79,"tax",$E$28:$E$79,">="&E$6,$E$28:$E$79,"<="&E$7) -> 0 | F12: =SUMIFS($F$28:$F79,$D$28:$D$79,"tax",$E$28:$E$79,">="&F$6,$E$28:$E$79,"<="&F$7) -> 0 | G12: =SUMIFS($F$28:$F79,$D$28:$D$79,"tax",$E$28:$E$79,">="&G$6,$E$28:$E$79,"<="&G$7) -> 0 | H12: =SUMIFS($F$28:$F79,$D$28:$D$79,"tax",$E$28:$E$79,">="&H$6,$E$28:$E$79,"<="&H$7) -> (12,000) | I12: =SUMIFS($F$28:$F79,$D$28:$D$79,"tax",$E$28:$E$79,">="&I$6,$E$28:$E$79,"<="&I$7) -> 0 | J12: =SUMIFS($F$28:$F79,$D$28:$D$79,"tax",$E$28:$E$79,">="&J$6,$E$28:$E$79,"<="&J$7) -> 0 | K12: =SUMIFS($F$28:$F79,$D$28:$D$79,"tax",$E$28:$E$79,">="&K$6,$E$28:$E$79,"<="&K$7) -> 0 | L12: =SUMIFS($F$28:$F79,$D$28:$D$79,"tax",$E$28:$E$79,">="&L$6,$E$28:$E$79,"<="&L$7) -> 0 | M12: =SUMIFS($F$28:$F79,$D$28:$D$79,"tax",$E$28:$E$79,">="&M$6,$E$28:$E$79,"<="&M$7) -> 0 | N12: =SUMIFS($F$28:$F79,$D$28:$D$79,"tax",$E$28:$E$79,">="&N$6,$E$28:$E$79,"<="&N$7) -> 0 | O12: =SUMIFS($F$28:$F79,$D$28:$D$79,"tax",$E$28:$E$79,">="&O$6,$E$28:$E$79,"<="&O$7) -> 0 | P12: =SUMIFS($F$28:$F79,$D$28:$D$79,"tax",$E$28:$E$79,">="&P$6,$E$28:$E$79,"<="&P$7) -> 0 | Q12: =SUMIFS($F$28:$F79,$D$28:$D$79,"tax",$E$28:$E$79,">="&Q$6,$E$28:$E$79,"<="&Q$7) -> 0
C13: Interest | E13: =SUMIFS($F$28:$F79,$D$28:$D$79,"interest",$E$28:$E$79,">="&E$6,$E$28:$E$79,"<="&E$7) -> 0 | F13: =SUMIFS($F$28:$F79,$D$28:$D$79,"interest",$E$28:$E$79,">="&F$6,$E$28:$E$79,"<="&F$7) -> 0 | G13: =SUMIFS($F$28:$F79,$D$28:$D$79,"interest",$E$28:$E$79,">="&G$6,$E$28:$E$79,"<="&G$7) -> 0 | H13: =SUMIFS($F$28:$F79,$D$28:$D$79,"interest",$E$28:$E$79,">="&H$6,$E$28:$E$79,"<="&H$7) -> 0 | I13: =SUMIFS($F$28:$F79,$D$28:$D$79,"interest",$E$28:$E$79,">="&I$6,$E$28:$E$79,"<="&I$7) -> (1,083) | J13: =SUMIFS($F$28:$F79,$D$28:$D$79,"interest",$E$28:$E$79,">="&J$6,$E$28:$E$79,"<="&J$7) -> 0 | K13: =SUMIFS($F$28:$F79,$D$28:$D$79,"interest",$E$28:$E$79,">="&K$6,$E$28:$E$79,"<="&K$7) -> 0 | L13: =SUMIFS($F$28:$F79,$D$28:$D$79,"interest",$E$28:$E$79,">="&L$6,$E$28:$E$79,"<="&L$7) -> 0 | M13: =SUMIFS($F$28:$F79,$D$28:$D$79,"interest",$E$28:$E$79,">="&M$6,$E$28:$E$79,"<="&M$7) -> (1,056) | N13: =SUMIFS($F$28:$F79,$D$28:$D$79,"interest",$E$28:$E$79,">="&N$6,$E$28:$E$79,"<="&N$7) -> 0 | O13: =SUMIFS($F$28:$F79,$D$28:$D$79,"interest",$E$28:$E$79,">="&O$6,$E$28:$E$79,"<="&O$7) -> 0 | P13: =SUMIFS($F$28:$F79,$D$28:$D$79,"interest",$E$28:$E$79,">="&P$6,$E$28:$E$79,"<="&P$7) -> 0 | Q13: =SUMIFS($F$28:$F79,$D$28:$D$79,"interest",$E$28:$E$79,">="&Q$6,$E$28:$E$79,"<="&Q$7) -> (1,029)
C14: Capital expenditure | E14: =SUMIFS($F$28:$F79,$D$28:$D$79,"capex",$E$28:$E$79,">="&E$6,$E$28:$E$79,"<="&E$7) -> 0 | F14: =SUMIFS($F$28:$F79,$D$28:$D$79,"capex",$E$28:$E$79,">="&F$6,$E$28:$E$79,"<="&F$7) -> (12,000) | G14: =SUMIFS($F$28:$F79,$D$28:$D$79,"capex",$E$28:$E$79,">="&G$6,$E$28:$E$79,"<="&G$7) -> 0 | H14: =SUMIFS($F$28:$F79,$D$28:$D$79,"capex",$E$28:$E$79,">="&H$6,$E$28:$E$79,"<="&H$7) -> 0 | I14: =SUMIFS($F$28:$F79,$D$28:$D$79,"capex",$E$28:$E$79,">="&I$6,$E$28:$E$79,"<="&I$7) -> 0 | J14: =SUMIFS($F$28:$F79,$D$28:$D$79,"capex",$E$28:$E$79,">="&J$6,$E$28:$E$79,"<="&J$7) -> (12,500) | K14: =SUMIFS($F$28:$F79,$D$28:$D$79,"capex",$E$28:$E$79,">="&K$6,$E$28:$E$79,"<="&K$7) -> 0 | L14: =SUMIFS($F$28:$F79,$D$28:$D$79,"capex",$E$28:$E$79,">="&L$6,$E$28:$E$79,"<="&L$7) -> 0 | M14: =SUMIFS($F$28:$F79,$D$28:$D$79,"capex",$E$28:$E$79,">="&M$6,$E$28:$E$79,"<="&M$7) -> 0 | N14: =SUMIFS($F$28:$F79,$D$28:$D$79,"capex",$E$28:$E$79,">="&N$6,$E$28:$E$79,"<="&N$7) -> (13,000) | O14: =SUMIFS($F$28:$F79,$D$28:$D$79,"capex",$E$28:$E$79,">="&O$6,$E$28:$E$79,"<="&O$7) -> 0 | P14: =SUMIFS($F$28:$F79,$D$28:$D$79,"capex",$E$28:$E$79,">="&P$6,$E$28:$E$79,"<="&P$7) -> 0 | Q14: =SUMIFS($F$28:$F79,$D$28:$D$79,"capex",$E$28:$E$79,">="&Q$6,$E$28:$E$79,"<="&Q$7) -> 0
C15: Debt principal | E15: =SUMIFS($F$28:$F79,$D$28:$D$79,"principal",$E$28:$E$79,">="&E$6,$E$28:$E$79,"<="&E$7) -> 0 | F15: =SUMIFS($F$28:$F79,$D$28:$D$79,"principal",$E$28:$E$79,">="&F$6,$E$28:$E$79,"<="&F$7) -> 0 | G15: =SUMIFS($F$28:$F79,$D$28:$D$79,"principal",$E$28:$E$79,">="&G$6,$E$28:$E$79,"<="&G$7) -> 0 | H15: =SUMIFS($F$28:$F79,$D$28:$D$79,"principal",$E$28:$E$79,">="&H$6,$E$28:$E$79,"<="&H$7) -> 0 | I15: =SUMIFS($F$28:$F79,$D$28:$D$79,"principal",$E$28:$E$79,">="&I$6,$E$28:$E$79,"<="&I$7) -> (5,000) | J15: =SUMIFS($F$28:$F79,$D$28:$D$79,"principal",$E$28:$E$79,">="&J$6,$E$28:$E$79,"<="&J$7) -> 0 | K15: =SUMIFS($F$28:$F79,$D$28:$D$79,"principal",$E$28:$E$79,">="&K$6,$E$28:$E$79,"<="&K$7) -> 0 | L15: =SUMIFS($F$28:$F79,$D$28:$D$79,"principal",$E$28:$E$79,">="&L$6,$E$28:$E$79,"<="&L$7) -> 0 | M15: =SUMIFS($F$28:$F79,$D$28:$D$79,"principal",$E$28:$E$79,">="&M$6,$E$28:$E$79,"<="&M$7) -> (5,000) | N15: =SUMIFS($F$28:$F79,$D$28:$D$79,"principal",$E$28:$E$79,">="&N$6,$E$28:$E$79,"<="&N$7) -> 0 | O15: =SUMIFS($F$28:$F79,$D$28:$D$79,"principal",$E$28:$E$79,">="&O$6,$E$28:$E$79,"<="&O$7) -> 0 | P15: =SUMIFS($F$28:$F79,$D$28:$D$79,"principal",$E$28:$E$79,">="&P$6,$E$28:$E$79,"<="&P$7) -> 0 | Q15: =SUMIFS($F$28:$F79,$D$28:$D$79,"principal",$E$28:$E$79,">="&Q$6,$E$28:$E$79,"<="&Q$7) -> (5,000)
C16: Net cash change | E16: =SUM(E9:E15) -> 48,050 | F16: =SUM(F9:F15) -> 26,400 | G16: =SUM(G9:G15) -> 86,230 | H16: =SUM(H9:H15) -> (202,400) | I16: =SUM(I9:I15) -> 26,648 | J16: =SUM(J9:J15) -> (12,500) | K16: =SUM(K9:K15) -> 110,466 | L16: =SUM(L9:L15) -> (238,325) | M16: =SUM(M9:M15) -> 128,957 | N16: =SUM(N9:N15) -> (13,000) | O16: =SUM(O9:O15) -> 116,767 | P16: =SUM(P9:P15) -> 0 | Q16: =SUM(Q9:Q15) -> (107,964)
C17: Closing cash | E17: =E8+E16 -> 1,455,122 | F17: =F8+F16 -> 1,481,522 | G17: =G8+G16 -> 1,567,752 | H17: =H8+H16 -> 1,365,352 | I17: =I8+I16 -> 1,391,999 | J17: =J8+J16 -> 1,379,499 | K17: =K8+K16 -> 1,489,965 | L17: =L8+L16 -> 1,251,640 | M17: =M8+M16 -> 1,380,597 | N17: =N8+N16 -> 1,367,597 | O17: =O8+O16 -> 1,484,364 | P17: =P8+P16 -> 1,484,364 | Q17: =Q8+Q16 -> 1,376,399
C18: Minimum reserve | E18: ='Actual inputs'!$E$62 -> 250,000 | F18: ='Actual inputs'!$E$62 -> 250,000 | G18: ='Actual inputs'!$E$62 -> 250,000 | H18: ='Actual inputs'!$E$62 -> 250,000 | I18: ='Actual inputs'!$E$62 -> 250,000 | J18: ='Actual inputs'!$E$62 -> 250,000 | K18: ='Actual inputs'!$E$62 -> 250,000 | L18: ='Actual inputs'!$E$62 -> 250,000 | M18: ='Actual inputs'!$E$62 -> 250,000 | N18: ='Actual inputs'!$E$62 -> 250,000 | O18: ='Actual inputs'!$E$62 -> 250,000 | P18: ='Actual inputs'!$E$62 -> 250,000 | Q18: ='Actual inputs'!$E$62 -> 250,000
C19: Headroom / (shortfall) | E19: =E17-E18 -> 1,205,122 | F19: =F17-F18 -> 1,231,522 | G19: =G17-G18 -> 1,317,752 | H19: =H17-H18 -> 1,115,352 | I19: =I17-I18 -> 1,141,999 | J19: =J17-J18 -> 1,129,499 | K19: =K17-K18 -> 1,239,965 | L19: =L17-L18 -> 1,001,640 | M19: =M17-M18 -> 1,130,597 | N19: =N17-N18 -> 1,117,597 | O19: =O17-O18 -> 1,234,364 | P19: =P17-P18 -> 1,234,364 | Q19: =Q17-Q18 -> 1,126,399
C21: Lowest end-of-day cash | E21: =MIN(H96:H185) -> 1,239,714 | G21: Date | H21: =INDEX(C96:C185,MATCH(E21,H96:H185,0)) -> 2026-11-25
C23: Opening cash includes all 31 August activity. Forecast ends 29 November.
C25: Dated cash events
C27: Reference | D27: Cash type | E27: Date | F27: Amount | G27: Basis
C28: AR-001 | D28: receipts | E28: ='Working capital'!I26 -> 2026-09-04 | F28: ='Working capital'!F26 -> 25,650 | G28: Opening receivable
C29: AR-002 | D29: receipts | E29: ='Working capital'!I27 -> 2026-09-11 | F29: ='Working capital'!F27 -> 34,200 | G29: Opening receivable
C30: AR-003 | D30: receipts | E30: ='Working capital'!I28 -> 2026-09-18 | F30: ='Working capital'!F28 -> 37,050 | G30: Opening receivable
C31: AR-004 | D31: receipts | E31: ='Working capital'!I29 -> 2026-09-04 | F31: ='Working capital'!F29 -> 39,900 | G31: Opening receivable
C32: AR-005 | D32: receipts | E32: ='Working capital'!I30 -> 2026-09-11 | F32: ='Working capital'!F30 -> 34,200 | G32: Opening receivable
C33: AR-006 | D33: receipts | E33: ='Working capital'!I31 -> 2026-09-18 | F33: ='Working capital'!F31 -> 39,900 | G33: Opening receivable
C34: AR-007 | D34: receipts | E34: ='Working capital'!I32 -> 2026-09-25 | F34: ='Working capital'!F32 -> 37,050 | G34: Opening receivable
C35: AR-008 | D35: receipts | E35: ='Working capital'!I33 -> 2026-09-25 | F35: ='Working capital'!F33 -> 37,050 | G35: Opening receivable
C36: AP-001 | D36: suppliers | E36: ='Working capital'!L40 -> 00:00:00 | F36: =-'Working capital'!M40 -> 0 | G36: Approved opening AP
C37: AP-002 | D37: suppliers | E37: ='Working capital'!L41 -> 2026-09-11 | F37: =-'Working capital'!M41 -> (15,000) | G37: Approved opening AP
C38: AP-003 | D38: suppliers | E38: ='Working capital'!L42 -> 00:00:00 | F38: =-'Working capital'!M42 -> 0 | G38: Approved opening AP
C39: AP-004 | D39: suppliers | E39: ='Working capital'!L43 -> 2026-09-04 | F39: =-'Working capital'!M43 -> (17,500) | G39: Approved opening AP
C40: AP-005 | D40: suppliers | E40: ='Working capital'!L44 -> 2026-09-11 | F40: =-'Working capital'!M44 -> (15,000) | G40: Approved opening AP
C41: AP-006 | D41: suppliers | E41: ='Working capital'!L45 -> 2026-09-18 | F41: =-'Working capital'!M45 -> (17,500) | G41: Approved opening AP
C42: AP-007 | D42: suppliers | E42: ='Working capital'!L46 -> 2026-09-25 | F42: =-'Working capital'!M46 -> (16,250) | G42: Approved opening AP
C43: AP-008 | D43: suppliers | E43: ='Working capital'!L47 -> 2026-09-25 | F43: =-'Working capital'!M47 -> (16,250) | G43: Approved opening AP
C44: 2026-09-receipts-15 | D44: receipts | E44: 2026-09-15 | F44: =('Working capital'!M10-SUMIFS($F$28:$F$43,$D$28:$D$43,"receipts",$E$28:$E$43,">="&46266,$E$28:$E$43,"<="&46295))*0.45 -> 32,973 | G44: Monthly plan timing
C45: 2026-09-receipts-28 | D45: receipts | E45: 2026-09-28 | F45: =('Working capital'!M10-SUMIFS($F$28:$F$43,$D$28:$D$43,"receipts",$E$28:$E$43,">="&46266,$E$28:$E$43,"<="&46295))*0.55 -> 40,301 | G45: Monthly plan timing
C46: 2026-09-suppliers-15 | D46: suppliers | E46: 2026-09-15 | F46: =(-'Working capital'!M15-SUMIFS($F$28:$F$43,$D$28:$D$43,"suppliers",$E$28:$E$43,">="&46266,$E$28:$E$43,"<="&46295))*0.45 -> (6,193) | G46: Monthly plan timing
C47: 2026-09-suppliers-28 | D47: suppliers | E47: 2026-09-28 | F47: =(-'Working capital'!M15-SUMIFS($F$28:$F$43,$D$28:$D$43,"suppliers",$E$28:$E$43,">="&46266,$E$28:$E$43,"<="&46295))*0.55 -> (7,570) | G47: Monthly plan timing
C48: 2026-09-payroll-25 | D48: payroll | E48: 2026-09-25 | F48: =(-'Payroll'!M21-SUMIFS($F$28:$F$43,$D$28:$D$43,"payroll",$E$28:$E$43,">="&46266,$E$28:$E$43,"<="&46295))*1 -> (232,000) | G48: Monthly plan timing
C49: 2026-09-tax-21 | D49: tax | E49: 2026-09-21 | F49: =(-'Assets debt'!M21-SUMIFS($F$28:$F$43,$D$28:$D$43,"tax",$E$28:$E$43,">="&46266,$E$28:$E$43,"<="&46295))*1 -> (12,000) | G49: Monthly plan timing
C50: 2026-09-interest-28 | D50: interest | E50: 2026-09-28 | F50: =(-'Assets debt'!M18-SUMIFS($F$28:$F$43,$D$28:$D$43,"interest",$E$28:$E$43,">="&46266,$E$28:$E$43,"<="&46295))*1 -> (1,083) | G50: Monthly plan timing
C51: 2026-09-capex-8 | D51: capex | E51: 2026-09-08 | F51: =(-'Assets debt'!M9-SUMIFS($F$28:$F$43,$D$28:$D$43,"capex",$E$28:$E$43,">="&46266,$E$28:$E$43,"<="&46295))*1 -> (12,000) | G51: Monthly plan timing
C52: 2026-09-principal-28 | D52: principal | E52: 2026-09-28 | F52: =(-'Assets debt'!M16-SUMIFS($F$28:$F$43,$D$28:$D$43,"principal",$E$28:$E$43,">="&46266,$E$28:$E$43,"<="&46295))*1 -> (5,000) | G52: Monthly plan timing
C53: 2026-10-receipts-15 | D53: receipts | E53: 2026-10-15 | F53: =('Working capital'!N10-SUMIFS($F$28:$F$43,$D$28:$D$43,"receipts",$E$28:$E$43,">="&46296,$E$28:$E$43,"<="&46326))*0.45 -> 206,693 | G53: Monthly plan timing
C54: 2026-10-receipts-28 | D54: receipts | E54: 2026-10-28 | F54: =('Working capital'!N10-SUMIFS($F$28:$F$43,$D$28:$D$43,"receipts",$E$28:$E$43,">="&46296,$E$28:$E$43,"<="&46326))*0.55 -> 252,625 | G54: Monthly plan timing
C55: 2026-10-suppliers-15 | D55: suppliers | E55: 2026-10-15 | F55: =(-'Working capital'!N15-SUMIFS($F$28:$F$43,$D$28:$D$43,"suppliers",$E$28:$E$43,">="&46296,$E$28:$E$43,"<="&46326))*0.45 -> (96,227) | G55: Monthly plan timing
C56: 2026-10-suppliers-28 | D56: suppliers | E56: 2026-10-28 | F56: =(-'Working capital'!N15-SUMIFS($F$28:$F$43,$D$28:$D$43,"suppliers",$E$28:$E$43,">="&46296,$E$28:$E$43,"<="&46326))*0.55 -> (117,611) | G56: Monthly plan timing
C57: 2026-10-payroll-25 | D57: payroll | E57: 2026-10-25 | F57: =(-'Payroll'!N21-SUMIFS($F$28:$F$43,$D$28:$D$43,"payroll",$E$28:$E$43,">="&46296,$E$28:$E$43,"<="&46326))*1 -> (238,325) | G57: Monthly plan timing
C58: 2026-10-tax-21 | D58: tax | E58: 2026-10-21 | F58: =(-'Assets debt'!N21-SUMIFS($F$28:$F$43,$D$28:$D$43,"tax",$E$28:$E$43,">="&46296,$E$28:$E$43,"<="&46326))*1 -> 0 | G58: Monthly plan timing
C59: 2026-10-interest-28 | D59: interest | E59: 2026-10-28 | F59: =(-'Assets debt'!N18-SUMIFS($F$28:$F$43,$D$28:$D$43,"interest",$E$28:$E$43,">="&46296,$E$28:$E$43,"<="&46326))*1 -> (1,056) | G59: Monthly plan timing
C60: 2026-10-capex-8 | D60: capex | E60: 2026-10-08 | F60: =(-'Assets debt'!N9-SUMIFS($F$28:$F$43,$D$28:$D$43,"capex",$E$28:$E$43,">="&46296,$E$28:$E$43,"<="&46326))*1 -> (12,500) | G60: Monthly plan timing
C61: 2026-10-principal-28 | D61: principal | E61: 2026-10-28 | F61: =(-'Assets debt'!N16-SUMIFS($F$28:$F$43,$D$28:$D$43,"principal",$E$28:$E$43,">="&46296,$E$28:$E$43,"<="&46326))*1 -> (5,000) | G61: Monthly plan timing
C62: 2026-11-receipts-15 | D62: receipts | E62: 2026-11-15 | F62: =('Working capital'!O10-SUMIFS($F$28:$F$43,$D$28:$D$43,"receipts",$E$28:$E$43,">="&46327,$E$28:$E$43,"<="&46356))*0.45 -> 212,604 | G62: Monthly plan timing
C63: 2026-11-receipts-28 | D63: receipts | E63: 2026-11-28 | F63: =('Working capital'!O10-SUMIFS($F$28:$F$43,$D$28:$D$43,"receipts",$E$28:$E$43,">="&46327,$E$28:$E$43,"<="&46356))*0.55 -> 259,850 | G63: Monthly plan timing
C64: 2026-11-suppliers-15 | D64: suppliers | E64: 2026-11-15 | F64: =(-'Working capital'!O15-SUMIFS($F$28:$F$43,$D$28:$D$43,"suppliers",$E$28:$E$43,">="&46327,$E$28:$E$43,"<="&46356))*0.45 -> (95,838) | G64: Monthly plan timing
C65: 2026-11-suppliers-28 | D65: suppliers | E65: 2026-11-28 | F65: =(-'Working capital'!O15-SUMIFS($F$28:$F$43,$D$28:$D$43,"suppliers",$E$28:$E$43,">="&46327,$E$28:$E$43,"<="&46356))*0.55 -> (117,135) | G65: Monthly plan timing
C66: 2026-11-payroll-25 | D66: payroll | E66: 2026-11-25 | F66: =(-'Payroll'!O21-SUMIFS($F$28:$F$43,$D$28:$D$43,"payroll",$E$28:$E$43,">="&46327,$E$28:$E$43,"<="&46356))*1 -> (244,650) | G66: Monthly plan timing
C67: 2026-11-tax-21 | D67: tax | E67: 2026-11-21 | F67: =(-'Assets debt'!O21-SUMIFS($F$28:$F$43,$D$28:$D$43,"tax",$E$28:$E$43,">="&46327,$E$28:$E$43,"<="&46356))*1 -> 0 | G67: Monthly plan timing
C68: 2026-11-interest-28 | D68: interest | E68: 2026-11-28 | F68: =(-'Assets debt'!O18-SUMIFS($F$28:$F$43,$D$28:$D$43,"interest",$E$28:$E$43,">="&46327,$E$28:$E$43,"<="&46356))*1 -> (1,029) | G68: Monthly plan timing
C69: 2026-11-capex-8 | D69: capex | E69: 2026-11-08 | F69: =(-'Assets debt'!O9-SUMIFS($F$28:$F$43,$D$28:$D$43,"capex",$E$28:$E$43,">="&46327,$E$28:$E$43,"<="&46356))*1 -> (13,000) | G69: Monthly plan timing
C70: 2026-11-principal-28 | D70: principal | E70: 2026-11-28 | F70: =(-'Assets debt'!O16-SUMIFS($F$28:$F$43,$D$28:$D$43,"principal",$E$28:$E$43,">="&46327,$E$28:$E$43,"<="&46356))*1 -> (5,000) | G70: Monthly plan timing
C71: 2026-12-receipts-15 | D71: receipts | E71: 2026-12-15 | F71: =('Working capital'!P10-SUMIFS($F$28:$F$43,$D$28:$D$43,"receipts",$E$28:$E$43,">="&46357,$E$28:$E$43,"<="&46387))*0.45 -> 239,463 | G71: Monthly plan timing
C72: 2026-12-receipts-28 | D72: receipts | E72: 2026-12-28 | F72: =('Working capital'!P10-SUMIFS($F$28:$F$43,$D$28:$D$43,"receipts",$E$28:$E$43,">="&46357,$E$28:$E$43,"<="&46387))*0.55 -> 292,677 | G72: Monthly plan timing
C73: 2026-12-suppliers-15 | D73: suppliers | E73: 2026-12-15 | F73: =(-'Working capital'!P15-SUMIFS($F$28:$F$43,$D$28:$D$43,"suppliers",$E$28:$E$43,">="&46357,$E$28:$E$43,"<="&46387))*0.45 -> (108,737) | G73: Monthly plan timing
C74: 2026-12-suppliers-28 | D74: suppliers | E74: 2026-12-28 | F74: =(-'Working capital'!P15-SUMIFS($F$28:$F$43,$D$28:$D$43,"suppliers",$E$28:$E$43,">="&46357,$E$28:$E$43,"<="&46387))*0.55 -> (132,901) | G74: Monthly plan timing
C75: 2026-12-payroll-25 | D75: payroll | E75: 2026-12-25 | F75: =(-'Payroll'!P21-SUMIFS($F$28:$F$43,$D$28:$D$43,"payroll",$E$28:$E$43,">="&46357,$E$28:$E$43,"<="&46387))*1 -> (250,975) | G75: Monthly plan timing
C76: 2026-12-tax-21 | D76: tax | E76: 2026-12-21 | F76: =(-'Assets debt'!P21-SUMIFS($F$28:$F$43,$D$28:$D$43,"tax",$E$28:$E$43,">="&46357,$E$28:$E$43,"<="&46387))*1 -> (12,000) | G76: Monthly plan timing
C77: 2026-12-interest-28 | D77: interest | E77: 2026-12-28 | F77: =(-'Assets debt'!P18-SUMIFS($F$28:$F$43,$D$28:$D$43,"interest",$E$28:$E$43,">="&46357,$E$28:$E$43,"<="&46387))*1 -> (1,002) | G77: Monthly plan timing
C78: 2026-12-capex-8 | D78: capex | E78: 2026-12-08 | F78: =(-'Assets debt'!P9-SUMIFS($F$28:$F$43,$D$28:$D$43,"capex",$E$28:$E$43,">="&46357,$E$28:$E$43,"<="&46387))*1 -> (13,500) | G78: Monthly plan timing
C79: 2026-12-principal-28 | D79: principal | E79: 2026-12-28 | F79: =(-'Assets debt'!P16-SUMIFS($F$28:$F$43,$D$28:$D$43,"principal",$E$28:$E$43,">="&46357,$E$28:$E$43,"<="&46387))*1 -> (5,000) | G79: Monthly plan timing
C93: Daily scheduled cash
C95: Date | D95: Opening | E95: Receipts | F95: Payments | G95: Net cash | H95: Closing | I95: Reserve | J95: Headroom
C96: 2026-09-01 | D96: ='Balance sheet'!L8 -> 1407071.797 | E96: =SUMIFS($F$28:$F79,$E$28:$E$79,C96,$F$28:$F79,">0") -> 0 | F96: =SUMIFS($F$28:$F79,$E$28:$E$79,C96,$F$28:$F79,"<0") -> 0 | G96: =E96+F96 -> 0 | H96: =D96+G96 -> 1,407,072 | I96: ='Actual inputs'!$E$62 -> 250,000 | J96: =H96-I96 -> 1,157,072
C97: 2026-09-02 | D97: =H96 -> 1407071.797 | E97: =SUMIFS($F$28:$F79,$E$28:$E$79,C97,$F$28:$F79,">0") -> 0 | F97: =SUMIFS($F$28:$F79,$E$28:$E$79,C97,$F$28:$F79,"<0") -> 0 | G97: =E97+F97 -> 0 | H97: =D97+G97 -> 1,407,072 | I97: ='Actual inputs'!$E$62 -> 250,000 | J97: =H97-I97 -> 1,157,072
C98: 2026-09-03 | D98: =H97 -> 1407071.797 | E98: =SUMIFS($F$28:$F79,$E$28:$E$79,C98,$F$28:$F79,">0") -> 0 | F98: =SUMIFS($F$28:$F79,$E$28:$E$79,C98,$F$28:$F79,"<0") -> 0 | G98: =E98+F98 -> 0 | H98: =D98+G98 -> 1,407,072 | I98: ='Actual inputs'!$E$62 -> 250,000 | J98: =H98-I98 -> 1,157,072
C99: 2026-09-04 | D99: =H98 -> 1407071.797 | E99: =SUMIFS($F$28:$F79,$E$28:$E$79,C99,$F$28:$F79,">0") -> 65,550 | F99: =SUMIFS($F$28:$F79,$E$28:$E$79,C99,$F$28:$F79,"<0") -> (17,500) | G99: =E99+F99 -> 48,050 | H99: =D99+G99 -> 1,455,122 | I99: ='Actual inputs'!$E$62 -> 250,000 | J99: =H99-I99 -> 1,205,122
C100: 2026-09-05 | D100: =H99 -> 1455121.797 | E100: =SUMIFS($F$28:$F79,$E$28:$E$79,C100,$F$28:$F79,">0") -> 0 | F100: =SUMIFS($F$28:$F79,$E$28:$E$79,C100,$F$28:$F79,"<0") -> 0 | G100: =E100+F100 -> 0 | H100: =D100+G100 -> 1,455,122 | I100: ='Actual inputs'!$E$62 -> 250,000 | J100: =H100-I100 -> 1,205,122
C101: 2026-09-06 | D101: =H100 -> 1455121.797 | E101: =SUMIFS($F$28:$F79,$E$28:$E$79,C101,$F$28:$F79,">0") -> 0 | F101: =SUMIFS($F$28:$F79,$E$28:$E$79,C101,$F$28:$F79,"<0") -> 0 | G101: =E101+F101 -> 0 | H101: =D101+G101 -> 1,455,122 | I101: ='Actual inputs'!$E$62 -> 250,000 | J101: =H101-I101 -> 1,205,122
C102: 2026-09-07 | D102: =H101 -> 1455121.797 | E102: =SUMIFS($F$28:$F79,$E$28:$E$79,C102,$F$28:$F79,">0") -> 0 | F102: =SUMIFS($F$28:$F79,$E$28:$E$79,C102,$F$28:$F79,"<0") -> 0 | G102: =E102+F102 -> 0 | H102: =D102+G102 -> 1,455,122 | I102: ='Actual inputs'!$E$62 -> 250,000 | J102: =H102-I102 -> 1,205,122
C103: 2026-09-08 | D103: =H102 -> 1455121.797 | E103: =SUMIFS($F$28:$F79,$E$28:$E$79,C103,$F$28:$F79,">0") -> 0 | F103: =SUMIFS($F$28:$F79,$E$28:$E$79,C103,$F$28:$F79,"<0") -> (12,000) | G103: =E103+F103 -> (12,000) | H103: =D103+G103 -> 1,443,122 | I103: ='Actual inputs'!$E$62 -> 250,000 | J103: =H103-I103 -> 1,193,122
C104: 2026-09-09 | D104: =H103 -> 1443121.797 | E104: =SUMIFS($F$28:$F79,$E$28:$E$79,C104,$F$28:$F79,">0") -> 0 | F104: =SUMIFS($F$28:$F79,$E$28:$E$79,C104,$F$28:$F79,"<0") -> 0 | G104: =E104+F104 -> 0 | H104: =D104+G104 -> 1,443,122 | I104: ='Actual inputs'!$E$62 -> 250,000 | J104: =H104-I104 -> 1,193,122
C105: 2026-09-10 | D105: =H104 -> 1443121.797 | E105: =SUMIFS($F$28:$F79,$E$28:$E$79,C105,$F$28:$F79,">0") -> 0 | F105: =SUMIFS($F$28:$F79,$E$28:$E$79,C105,$F$28:$F79,"<0") -> 0 | G105: =E105+F105 -> 0 | H105: =D105+G105 -> 1,443,122 | I105: ='Actual inputs'!$E$62 -> 250,000 | J105: =H105-I105 -> 1,193,122
C106: 2026-09-11 | D106: =H105 -> 1443121.797 | E106: =SUMIFS($F$28:$F79,$E$28:$E$79,C106,$F$28:$F79,">0") -> 68,400 | F106: =SUMIFS($F$28:$F79,$E$28:$E$79,C106,$F$28:$F79,"<0") -> (30,000) | G106: =E106+F106 -> 38,400 | H106: =D106+G106 -> 1,481,522 | I106: ='Actual inputs'!$E$62 -> 250,000 | J106: =H106-I106 -> 1,231,522
C107: 2026-09-12 | D107: =H106 -> 1481521.797 | E107: =SUMIFS($F$28:$F79,$E$28:$E$79,C107,$F$28:$F79,">0") -> 0 | F107: =SUMIFS($F$28:$F79,$E$28:$E$79,C107,$F$28:$F79,"<0") -> 0 | G107: =E107+F107 -> 0 | H107: =D107+G107 -> 1,481,522 | I107: ='Actual inputs'!$E$62 -> 250,000 | J107: =H107-I107 -> 1,231,522
C108: 2026-09-13 | D108: =H107 -> 1481521.797 | E108: =SUMIFS($F$28:$F79,$E$28:$E$79,C108,$F$28:$F79,">0") -> 0 | F108: =SUMIFS($F$28:$F79,$E$28:$E$79,C108,$F$28:$F79,"<0") -> 0 | G108: =E108+F108 -> 0 | H108: =D108+G108 -> 1,481,522 | I108: ='Actual inputs'!$E$62 -> 250,000 | J108: =H108-I108 -> 1,231,522
C109: 2026-09-14 | D109: =H108 -> 1481521.797 | E109: =SUMIFS($F$28:$F79,$E$28:$E$79,C109,$F$28:$F79,">0") -> 0 | F109: =SUMIFS($F$28:$F79,$E$28:$E$79,C109,$F$28:$F79,"<0") -> 0 | G109: =E109+F109 -> 0 | H109: =D109+G109 -> 1,481,522 | I109: ='Actual inputs'!$E$62 -> 250,000 | J109: =H109-I109 -> 1,231,522
C110: 2026-09-15 | D110: =H109 -> 1481521.797 | E110: =SUMIFS($F$28:$F79,$E$28:$E$79,C110,$F$28:$F79,">0") -> 32,973 | F110: =SUMIFS($F$28:$F79,$E$28:$E$79,C110,$F$28:$F79,"<0") -> (6,193) | G110: =E110+F110 -> 26,780 | H110: =D110+G110 -> 1,508,302 | I110: ='Actual inputs'!$E$62 -> 250,000 | J110: =H110-I110 -> 1,258,302
C111: 2026-09-16 | D111: =H110 -> 1508301.692 | E111: =SUMIFS($F$28:$F79,$E$28:$E$79,C111,$F$28:$F79,">0") -> 0 | F111: =SUMIFS($F$28:$F79,$E$28:$E$79,C111,$F$28:$F79,"<0") -> 0 | G111: =E111+F111 -> 0 | H111: =D111+G111 -> 1,508,302 | I111: ='Actual inputs'!$E$62 -> 250,000 | J111: =H111-I111 -> 1,258,302
C112: 2026-09-17 | D112: =H111 -> 1508301.692 | E112: =SUMIFS($F$28:$F79,$E$28:$E$79,C112,$F$28:$F79,">0") -> 0 | F112: =SUMIFS($F$28:$F79,$E$28:$E$79,C112,$F$28:$F79,"<0") -> 0 | G112: =E112+F112 -> 0 | H112: =D112+G112 -> 1,508,302 | I112: ='Actual inputs'!$E$62 -> 250,000 | J112: =H112-I112 -> 1,258,302
C113: 2026-09-18 | D113: =H112 -> 1508301.692 | E113: =SUMIFS($F$28:$F79,$E$28:$E$79,C113,$F$28:$F79,">0") -> 76,950 | F113: =SUMIFS($F$28:$F79,$E$28:$E$79,C113,$F$28:$F79,"<0") -> (17,500) | G113: =E113+F113 -> 59,450 | H113: =D113+G113 -> 1,567,752 | I113: ='Actual inputs'!$E$62 -> 250,000 | J113: =H113-I113 -> 1,317,752
C114: 2026-09-19 | D114: =H113 -> 1567751.692 | E114: =SUMIFS($F$28:$F79,$E$28:$E$79,C114,$F$28:$F79,">0") -> 0 | F114: =SUMIFS($F$28:$F79,$E$28:$E$79,C114,$F$28:$F79,"<0") -> 0 | G114: =E114+F114 -> 0 | H114: =D114+G114 -> 1,567,752 | I114: ='Actual inputs'!$E$62 -> 250,000 | J114: =H114-I114 -> 1,317,752
C115: 2026-09-20 | D115: =H114 -> 1567751.692 | E115: =SUMIFS($F$28:$F79,$E$28:$E$79,C115,$F$28:$F79,">0") -> 0 | F115: =SUMIFS($F$28:$F79,$E$28:$E$79,C115,$F$28:$F79,"<0") -> 0 | G115: =E115+F115 -> 0 | H115: =D115+G115 -> 1,567,752 | I115: ='Actual inputs'!$E$62 -> 250,000 | J115: =H115-I115 -> 1,317,752
C116: 2026-09-21 | D116: =H115 -> 1567751.692 | E116: =SUMIFS($F$28:$F79,$E$28:$E$79,C116,$F$28:$F79,">0") -> 0 | F116: =SUMIFS($F$28:$F79,$E$28:$E$79,C116,$F$28:$F79,"<0") -> (12,000) | G116: =E116+F116 -> (12,000) | H116: =D116+G116 -> 1,555,752 | I116: ='Actual inputs'!$E$62 -> 250,000 | J116: =H116-I116 -> 1,305,752
C117: 2026-09-22 | D117: =H116 -> 1555751.692 | E117: =SUMIFS($F$28:$F79,$E$28:$E$79,C117,$F$28:$F79,">0") -> 0 | F117: =SUMIFS($F$28:$F79,$E$28:$E$79,C117,$F$28:$F79,"<0") -> 0 | G117: =E117+F117 -> 0 | H117: =D117+G117 -> 1,555,752 | I117: ='Actual inputs'!$E$62 -> 250,000 | J117: =H117-I117 -> 1,305,752
C118: 2026-09-23 | D118: =H117 -> 1555751.692 | E118: =SUMIFS($F$28:$F79,$E$28:$E$79,C118,$F$28:$F79,">0") -> 0 | F118: =SUMIFS($F$28:$F79,$E$28:$E$79,C118,$F$28:$F79,"<0") -> 0 | G118: =E118+F118 -> 0 | H118: =D118+G118 -> 1,555,752 | I118: ='Actual inputs'!$E$62 -> 250,000 | J118: =H118-I118 -> 1,305,752
C119: 2026-09-24 | D119: =H118 -> 1555751.692 | E119: =SUMIFS($F$28:$F79,$E$28:$E$79,C119,$F$28:$F79,">0") -> 0 | F119: =SUMIFS($F$28:$F79,$E$28:$E$79,C119,$F$28:$F79,"<0") -> 0 | G119: =E119+F119 -> 0 | H119: =D119+G119 -> 1,555,752 | I119: ='Actual inputs'!$E$62 -> 250,000 | J119: =H119-I119 -> 1,305,752
C120: 2026-09-25 | D120: =H119 -> 1555751.692 | E120: =SUMIFS($F$28:$F79,$E$28:$E$79,C120,$F$28:$F79,">0") -> 74,100 | F120: =SUMIFS($F$28:$F79,$E$28:$E$79,C120,$F$28:$F79,"<0") -> (264,500) | G120: =E120+F120 -> (190,400) | H120: =D120+G120 -> 1,365,352 | I120: ='Actual inputs'!$E$62 -> 250,000 | J120: =H120-I120 -> 1,115,352
C121: 2026-09-26 | D121: =H120 -> 1365351.692 | E121: =SUMIFS($F$28:$F79,$E$28:$E$79,C121,$F$28:$F79,">0") -> 0 | F121: =SUMIFS($F$28:$F79,$E$28:$E$79,C121,$F$28:$F79,"<0") -> 0 | G121: =E121+F121 -> 0 | H121: =D121+G121 -> 1,365,352 | I121: ='Actual inputs'!$E$62 -> 250,000 | J121: =H121-I121 -> 1,115,352
C122: 2026-09-27 | D122: =H121 -> 1365351.692 | E122: =SUMIFS($F$28:$F79,$E$28:$E$79,C122,$F$28:$F79,">0") -> 0 | F122: =SUMIFS($F$28:$F79,$E$28:$E$79,C122,$F$28:$F79,"<0") -> 0 | G122: =E122+F122 -> 0 | H122: =D122+G122 -> 1,365,352 | I122: ='Actual inputs'!$E$62 -> 250,000 | J122: =H122-I122 -> 1,115,352
C123: 2026-09-28 | D123: =H122 -> 1365351.692 | E123: =SUMIFS($F$28:$F79,$E$28:$E$79,C123,$F$28:$F79,">0") -> 40,301 | F123: =SUMIFS($F$28:$F79,$E$28:$E$79,C123,$F$28:$F79,"<0") -> (13,653) | G123: =E123+F123 -> 26,648 | H123: =D123+G123 -> 1,391,999 | I123: ='Actual inputs'!$E$62 -> 250,000 | J123: =H123-I123 -> 1,141,999
C124: 2026-09-29 | D124: =H123 -> 1391999.34 | E124: =SUMIFS($F$28:$F79,$E$28:$E$79,C124,$F$28:$F79,">0") -> 0 | F124: =SUMIFS($F$28:$F79,$E$28:$E$79,C124,$F$28:$F79,"<0") -> 0 | G124: =E124+F124 -> 0 | H124: =D124+G124 -> 1,391,999 | I124: ='Actual inputs'!$E$62 -> 250,000 | J124: =H124-I124 -> 1,141,999
C125: 2026-09-30 | D125: =H124 -> 1391999.34 | E125: =SUMIFS($F$28:$F79,$E$28:$E$79,C125,$F$28:$F79,">0") -> 0 | F125: =SUMIFS($F$28:$F79,$E$28:$E$79,C125,$F$28:$F79,"<0") -> 0 | G125: =E125+F125 -> 0 | H125: =D125+G125 -> 1,391,999 | I125: ='Actual inputs'!$E$62 -> 250,000 | J125: =H125-I125 -> 1,141,999
C126: 2026-10-01 | D126: =H125 -> 1391999.34 | E126: =SUMIFS($F$28:$F79,$E$28:$E$79,C126,$F$28:$F79,">0") -> 0 | F126: =SUMIFS($F$28:$F79,$E$28:$E$79,C126,$F$28:$F79,"<0") -> 0 | G126: =E126+F126 -> 0 | H126: =D126+G126 -> 1,391,999 | I126: ='Actual inputs'!$E$62 -> 250,000 | J126: =H126-I126 -> 1,141,999
C127: 2026-10-02 | D127: =H126 -> 1391999.34 | E127: =SUMIFS($F$28:$F79,$E$28:$E$79,C127,$F$28:$F79,">0") -> 0 | F127: =SUMIFS($F$28:$F79,$E$28:$E$79,C127,$F$28:$F79,"<0") -> 0 | G127: =E127+F127 -> 0 | H127: =D127+G127 -> 1,391,999 | I127: ='Actual inputs'!$E$62 -> 250,000 | J127: =H127-I127 -> 1,141,999
C128: 2026-10-03 | D128: =H127 -> 1391999.34 | E128: =SUMIFS($F$28:$F79,$E$28:$E$79,C128,$F$28:$F79,">0") -> 0 | F128: =SUMIFS($F$28:$F79,$E$28:$E$79,C128,$F$28:$F79,"<0") -> 0 | G128: =E128+F128 -> 0 | H128: =D128+G128 -> 1,391,999 | I128: ='Actual inputs'!$E$62 -> 250,000 | J128: =H128-I128 -> 1,141,999
C129: 2026-10-04 | D129: =H128 -> 1391999.34 | E129: =SUMIFS($F$28:$F79,$E$28:$E$79,C129,$F$28:$F79,">0") -> 0 | F129: =SUMIFS($F$28:$F79,$E$28:$E$79,C129,$F$28:$F79,"<0") -> 0 | G129: =E129+F129 -> 0 | H129: =D129+G129 -> 1,391,999 | I129: ='Actual inputs'!$E$62 -> 250,000 | J129: =H129-I129 -> 1,141,999
C130: 2026-10-05 | D130: =H129 -> 1391999.34 | E130: =SUMIFS($F$28:$F79,$E$28:$E$79,C130,$F$28:$F79,">0") -> 0 | F130: =SUMIFS($F$28:$F79,$E$28:$E$79,C130,$F$28:$F79,"<0") -> 0 | G130: =E130+F130 -> 0 | H130: =D130+G130 -> 1,391,999 | I130: ='Actual inputs'!$E$62 -> 250,000 | J130: =H130-I130 -> 1,141,999
C131: 2026-10-06 | D131: =H130 -> 1391999.34 | E131: =SUMIFS($F$28:$F79,$E$28:$E$79,C131,$F$28:$F79,">0") -> 0 | F131: =SUMIFS($F$28:$F79,$E$28:$E$79,C131,$F$28:$F79,"<0") -> 0 | G131: =E131+F131 -> 0 | H131: =D131+G131 -> 1,391,999 | I131: ='Actual inputs'!$E$62 -> 250,000 | J131: =H131-I131 -> 1,141,999
C132: 2026-10-07 | D132: =H131 -> 1391999.34 | E132: =SUMIFS($F$28:$F79,$E$28:$E$79,C132,$F$28:$F79,">0") -> 0 | F132: =SUMIFS($F$28:$F79,$E$28:$E$79,C132,$F$28:$F79,"<0") -> 0 | G132: =E132+F132 -> 0 | H132: =D132+G132 -> 1,391,999 | I132: ='Actual inputs'!$E$62 -> 250,000 | J132: =H132-I132 -> 1,141,999
C133: 2026-10-08 | D133: =H132 -> 1391999.34 | E133: =SUMIFS($F$28:$F79,$E$28:$E$79,C133,$F$28:$F79,">0") -> 0 | F133: =SUMIFS($F$28:$F79,$E$28:$E$79,C133,$F$28:$F79,"<0") -> (12,500) | G133: =E133+F133 -> (12,500) | H133: =D133+G133 -> 1,379,499 | I133: ='Actual inputs'!$E$62 -> 250,000 | J133: =H133-I133 -> 1,129,499
C134: 2026-10-09 | D134: =H133 -> 1379499.34 | E134: =SUMIFS($F$28:$F79,$E$28:$E$79,C134,$F$28:$F79,">0") -> 0 | F134: =SUMIFS($F$28:$F79,$E$28:$E$79,C134,$F$28:$F79,"<0") -> 0 | G134: =E134+F134 -> 0 | H134: =D134+G134 -> 1,379,499 | I134: ='Actual inputs'!$E$62 -> 250,000 | J134: =H134-I134 -> 1,129,499
C135: 2026-10-10 | D135: =H134 -> 1379499.34 | E135: =SUMIFS($F$28:$F79,$E$28:$E$79,C135,$F$28:$F79,">0") -> 0 | F135: =SUMIFS($F$28:$F79,$E$28:$E$79,C135,$F$28:$F79,"<0") -> 0 | G135: =E135+F135 -> 0 | H135: =D135+G135 -> 1,379,499 | I135: ='Actual inputs'!$E$62 -> 250,000 | J135: =H135-I135 -> 1,129,499
C136: 2026-10-11 | D136: =H135 -> 1379499.34 | E136: =SUMIFS($F$28:$F79,$E$28:$E$79,C136,$F$28:$F79,">0") -> 0 | F136: =SUMIFS($F$28:$F79,$E$28:$E$79,C136,$F$28:$F79,"<0") -> 0 | G136: =E136+F136 -> 0 | H136: =D136+G136 -> 1,379,499 | I136: ='Actual inputs'!$E$62 -> 250,000 | J136: =H136-I136 -> 1,129,499
C137: 2026-10-12 | D137: =H136 -> 1379499.34 | E137: =SUMIFS($F$28:$F79,$E$28:$E$79,C137,$F$28:$F79,">0") -> 0 | F137: =SUMIFS($F$28:$F79,$E$28:$E$79,C137,$F$28:$F79,"<0") -> 0 | G137: =E137+F137 -> 0 | H137: =D137+G137 -> 1,379,499 | I137: ='Actual inputs'!$E$62 -> 250,000 | J137: =H137-I137 -> 1,129,499
C138: 2026-10-13 | D138: =H137 -> 1379499.34 | E138: =SUMIFS($F$28:$F79,$E$28:$E$79,C138,$F$28:$F79,">0") -> 0 | F138: =SUMIFS($F$28:$F79,$E$28:$E$79,C138,$F$28:$F79,"<0") -> 0 | G138: =E138+F138 -> 0 | H138: =D138+G138 -> 1,379,499 | I138: ='Actual inputs'!$E$62 -> 250,000 | J138: =H138-I138 -> 1,129,499
C139: 2026-10-14 | D139: =H138 -> 1379499.34 | E139: =SUMIFS($F$28:$F79,$E$28:$E$79,C139,$F$28:$F79,">0") -> 0 | F139: =SUMIFS($F$28:$F79,$E$28:$E$79,C139,$F$28:$F79,"<0") -> 0 | G139: =E139+F139 -> 0 | H139: =D139+G139 -> 1,379,499 | I139: ='Actual inputs'!$E$62 -> 250,000 | J139: =H139-I139 -> 1,129,499
C140: 2026-10-15 | D140: =H139 -> 1379499.34 | E140: =SUMIFS($F$28:$F79,$E$28:$E$79,C140,$F$28:$F79,">0") -> 206,693 | F140: =SUMIFS($F$28:$F79,$E$28:$E$79,C140,$F$28:$F79,"<0") -> (96,227) | G140: =E140+F140 -> 110,466 | H140: =D140+G140 -> 1,489,965 | I140: ='Actual inputs'!$E$62 -> 250,000 | J140: =H140-I140 -> 1,239,965
C141: 2026-10-16 | D141: =H140 -> 1489964.85 | E141: =SUMIFS($F$28:$F79,$E$28:$E$79,C141,$F$28:$F79,">0") -> 0 | F141: =SUMIFS($F$28:$F79,$E$28:$E$79,C141,$F$28:$F79,"<0") -> 0 | G141: =E141+F141 -> 0 | H141: =D141+G141 -> 1,489,965 | I141: ='Actual inputs'!$E$62 -> 250,000 | J141: =H141-I141 -> 1,239,965
C142: 2026-10-17 | D142: =H141 -> 1489964.85 | E142: =SUMIFS($F$28:$F79,$E$28:$E$79,C142,$F$28:$F79,">0") -> 0 | F142: =SUMIFS($F$28:$F79,$E$28:$E$79,C142,$F$28:$F79,"<0") -> 0 | G142: =E142+F142 -> 0 | H142: =D142+G142 -> 1,489,965 | I142: ='Actual inputs'!$E$62 -> 250,000 | J142: =H142-I142 -> 1,239,965
C143: 2026-10-18 | D143: =H142 -> 1489964.85 | E143: =SUMIFS($F$28:$F79,$E$28:$E$79,C143,$F$28:$F79,">0") -> 0 | F143: =SUMIFS($F$28:$F79,$E$28:$E$79,C143,$F$28:$F79,"<0") -> 0 | G143: =E143+F143 -> 0 | H143: =D143+G143 -> 1,489,965 | I143: ='Actual inputs'!$E$62 -> 250,000 | J143: =H143-I143 -> 1,239,965
C144: 2026-10-19 | D144: =H143 -> 1489964.85 | E144: =SUMIFS($F$28:$F79,$E$28:$E$79,C144,$F$28:$F79,">0") -> 0 | F144: =SUMIFS($F$28:$F79,$E$28:$E$79,C144,$F$28:$F79,"<0") -> 0 | G144: =E144+F144 -> 0 | H144: =D144+G144 -> 1,489,965 | I144: ='Actual inputs'!$E$62 -> 250,000 | J144: =H144-I144 -> 1,239,965
C145: 2026-10-20 | D145: =H144 -> 1489964.85 | E145: =SUMIFS($F$28:$F79,$E$28:$E$79,C145,$F$28:$F79,">0") -> 0 | F145: =SUMIFS($F$28:$F79,$E$28:$E$79,C145,$F$28:$F79,"<0") -> 0 | G145: =E145+F145 -> 0 | H145: =D145+G145 -> 1,489,965 | I145: ='Actual inputs'!$E$62 -> 250,000 | J145: =H145-I145 -> 1,239,965
C146: 2026-10-21 | D146: =H145 -> 1489964.85 | E146: =SUMIFS($F$28:$F79,$E$28:$E$79,C146,$F$28:$F79,">0") -> 0 | F146: =SUMIFS($F$28:$F79,$E$28:$E$79,C146,$F$28:$F79,"<0") -> 0 | G146: =E146+F146 -> 0 | H146: =D146+G146 -> 1,489,965 | I146: ='Actual inputs'!$E$62 -> 250,000 | J146: =H146-I146 -> 1,239,965
C147: 2026-10-22 | D147: =H146 -> 1489964.85 | E147: =SUMIFS($F$28:$F79,$E$28:$E$79,C147,$F$28:$F79,">0") -> 0 | F147: =SUMIFS($F$28:$F79,$E$28:$E$79,C147,$F$28:$F79,"<0") -> 0 | G147: =E147+F147 -> 0 | H147: =D147+G147 -> 1,489,965 | I147: ='Actual inputs'!$E$62 -> 250,000 | J147: =H147-I147 -> 1,239,965
C148: 2026-10-23 | D148: =H147 -> 1489964.85 | E148: =SUMIFS($F$28:$F79,$E$28:$E$79,C148,$F$28:$F79,">0") -> 0 | F148: =SUMIFS($F$28:$F79,$E$28:$E$79,C148,$F$28:$F79,"<0") -> 0 | G148: =E148+F148 -> 0 | H148: =D148+G148 -> 1,489,965 | I148: ='Actual inputs'!$E$62 -> 250,000 | J148: =H148-I148 -> 1,239,965
C149: 2026-10-24 | D149: =H148 -> 1489964.85 | E149: =SUMIFS($F$28:$F79,$E$28:$E$79,C149,$F$28:$F79,">0") -> 0 | F149: =SUMIFS($F$28:$F79,$E$28:$E$79,C149,$F$28:$F79,"<0") -> 0 | G149: =E149+F149 -> 0 | H149: =D149+G149 -> 1,489,965 | I149: ='Actual inputs'!$E$62 -> 250,000 | J149: =H149-I149 -> 1,239,965
C150: 2026-10-25 | D150: =H149 -> 1489964.85 | E150: =SUMIFS($F$28:$F79,$E$28:$E$79,C150,$F$28:$F79,">0") -> 0 | F150: =SUMIFS($F$28:$F79,$E$28:$E$79,C150,$F$28:$F79,"<0") -> (238,325) | G150: =E150+F150 -> (238,325) | H150: =D150+G150 -> 1,251,640 | I150: ='Actual inputs'!$E$62 -> 250,000 | J150: =H150-I150 -> 1,001,640
C151: 2026-10-26 | D151: =H150 -> 1251639.85 | E151: =SUMIFS($F$28:$F79,$E$28:$E$79,C151,$F$28:$F79,">0") -> 0 | F151: =SUMIFS($F$28:$F79,$E$28:$E$79,C151,$F$28:$F79,"<0") -> 0 | G151: =E151+F151 -> 0 | H151: =D151+G151 -> 1,251,640 | I151: ='Actual inputs'!$E$62 -> 250,000 | J151: =H151-I151 -> 1,001,640
C152: 2026-10-27 | D152: =H151 -> 1251639.85 | E152: =SUMIFS($F$28:$F79,$E$28:$E$79,C152,$F$28:$F79,">0") -> 0 | F152: =SUMIFS($F$28:$F79,$E$28:$E$79,C152,$F$28:$F79,"<0") -> 0 | G152: =E152+F152 -> 0 | H152: =D152+G152 -> 1,251,640 | I152: ='Actual inputs'!$E$62 -> 250,000 | J152: =H152-I152 -> 1,001,640
C153: 2026-10-28 | D153: =H152 -> 1251639.85 | E153: =SUMIFS($F$28:$F79,$E$28:$E$79,C153,$F$28:$F79,">0") -> 252,625 | F153: =SUMIFS($F$28:$F79,$E$28:$E$79,C153,$F$28:$F79,"<0") -> (123,668) | G153: =E153+F153 -> 128,957 | H153: =D153+G153 -> 1,380,597 | I153: ='Actual inputs'!$E$62 -> 250,000 | J153: =H153-I153 -> 1,130,597
C154: 2026-10-29 | D154: =H153 -> 1380597.001 | E154: =SUMIFS($F$28:$F79,$E$28:$E$79,C154,$F$28:$F79,">0") -> 0 | F154: =SUMIFS($F$28:$F79,$E$28:$E$79,C154,$F$28:$F79,"<0") -> 0 | G154: =E154+F154 -> 0 | H154: =D154+G154 -> 1,380,597 | I154: ='Actual inputs'!$E$62 -> 250,000 | J154: =H154-I154 -> 1,130,597
C155: 2026-10-30 | D155: =H154 -> 1380597.001 | E155: =SUMIFS($F$28:$F79,$E$28:$E$79,C155,$F$28:$F79,">0") -> 0 | F155: =SUMIFS($F$28:$F79,$E$28:$E$79,C155,$F$28:$F79,"<0") -> 0 | G155: =E155+F155 -> 0 | H155: =D155+G155 -> 1,380,597 | I155: ='Actual inputs'!$E$62 -> 250,000 | J155: =H155-I155 -> 1,130,597
C156: 2026-10-31 | D156: =H155 -> 1380597.001 | E156: =SUMIFS($F$28:$F79,$E$28:$E$79,C156,$F$28:$F79,">0") -> 0 | F156: =SUMIFS($F$28:$F79,$E$28:$E$79,C156,$F$28:$F79,"<0") -> 0 | G156: =E156+F156 -> 0 | H156: =D156+G156 -> 1,380,597 | I156: ='Actual inputs'!$E$62 -> 250,000 | J156: =H156-I156 -> 1,130,597
C157: 2026-11-01 | D157: =H156 -> 1380597.001 | E157: =SUMIFS($F$28:$F79,$E$28:$E$79,C157,$F$28:$F79,">0") -> 0 | F157: =SUMIFS($F$28:$F79,$E$28:$E$79,C157,$F$28:$F79,"<0") -> 0 | G157: =E157+F157 -> 0 | H157: =D157+G157 -> 1,380,597 | I157: ='Actual inputs'!$E$62 -> 250,000 | J157: =H157-I157 -> 1,130,597
C158: 2026-11-02 | D158: =H157 -> 1380597.001 | E158: =SUMIFS($F$28:$F79,$E$28:$E$79,C158,$F$28:$F79,">0") -> 0 | F158: =SUMIFS($F$28:$F79,$E$28:$E$79,C158,$F$28:$F79,"<0") -> 0 | G158: =E158+F158 -> 0 | H158: =D158+G158 -> 1,380,597 | I158: ='Actual inputs'!$E$62 -> 250,000 | J158: =H158-I158 -> 1,130,597
C159: 2026-11-03 | D159: =H158 -> 1380597.001 | E159: =SUMIFS($F$28:$F79,$E$28:$E$79,C159,$F$28:$F79,">0") -> 0 | F159: =SUMIFS($F$28:$F79,$E$28:$E$79,C159,$F$28:$F79,"<0") -> 0 | G159: =E159+F159 -> 0 | H159: =D159+G159 -> 1,380,597 | I159: ='Actual inputs'!$E$62 -> 250,000 | J159: =H159-I159 -> 1,130,597
C160: 2026-11-04 | D160: =H159 -> 1380597.001 | E160: =SUMIFS($F$28:$F79,$E$28:$E$79,C160,$F$28:$F79,">0") -> 0 | F160: =SUMIFS($F$28:$F79,$E$28:$E$79,C160,$F$28:$F79,"<0") -> 0 | G160: =E160+F160 -> 0 | H160: =D160+G160 -> 1,380,597 | I160: ='Actual inputs'!$E$62 -> 250,000 | J160: =H160-I160 -> 1,130,597
C161: 2026-11-05 | D161: =H160 -> 1380597.001 | E161: =SUMIFS($F$28:$F79,$E$28:$E$79,C161,$F$28:$F79,">0") -> 0 | F161: =SUMIFS($F$28:$F79,$E$28:$E$79,C161,$F$28:$F79,"<0") -> 0 | G161: =E161+F161 -> 0 | H161: =D161+G161 -> 1,380,597 | I161: ='Actual inputs'!$E$62 -> 250,000 | J161: =H161-I161 -> 1,130,597
C162: 2026-11-06 | D162: =H161 -> 1380597.001 | E162: =SUMIFS($F$28:$F79,$E$28:$E$79,C162,$F$28:$F79,">0") -> 0 | F162: =SUMIFS($F$28:$F79,$E$28:$E$79,C162,$F$28:$F79,"<0") -> 0 | G162: =E162+F162 -> 0 | H162: =D162+G162 -> 1,380,597 | I162: ='Actual inputs'!$E$62 -> 250,000 | J162: =H162-I162 -> 1,130,597
C163: 2026-11-07 | D163: =H162 -> 1380597.001 | E163: =SUMIFS($F$28:$F79,$E$28:$E$79,C163,$F$28:$F79,">0") -> 0 | F163: =SUMIFS($F$28:$F79,$E$28:$E$79,C163,$F$28:$F79,"<0") -> 0 | G163: =E163+F163 -> 0 | H163: =D163+G163 -> 1,380,597 | I163: ='Actual inputs'!$E$62 -> 250,000 | J163: =H163-I163 -> 1,130,597
C164: 2026-11-08 | D164: =H163 -> 1380597.001 | E164: =SUMIFS($F$28:$F79,$E$28:$E$79,C164,$F$28:$F79,">0") -> 0 | F164: =SUMIFS($F$28:$F79,$E$28:$E$79,C164,$F$28:$F79,"<0") -> (13,000) | G164: =E164+F164 -> (13,000) | H164: =D164+G164 -> 1,367,597 | I164: ='Actual inputs'!$E$62 -> 250,000 | J164: =H164-I164 -> 1,117,597
C165: 2026-11-09 | D165: =H164 -> 1367597.001 | E165: =SUMIFS($F$28:$F79,$E$28:$E$79,C165,$F$28:$F79,">0") -> 0 | F165: =SUMIFS($F$28:$F79,$E$28:$E$79,C165,$F$28:$F79,"<0") -> 0 | G165: =E165+F165 -> 0 | H165: =D165+G165 -> 1,367,597 | I165: ='Actual inputs'!$E$62 -> 250,000 | J165: =H165-I165 -> 1,117,597
C166: 2026-11-10 | D166: =H165 -> 1367597.001 | E166: =SUMIFS($F$28:$F79,$E$28:$E$79,C166,$F$28:$F79,">0") -> 0 | F166: =SUMIFS($F$28:$F79,$E$28:$E$79,C166,$F$28:$F79,"<0") -> 0 | G166: =E166+F166 -> 0 | H166: =D166+G166 -> 1,367,597 | I166: ='Actual inputs'!$E$62 -> 250,000 | J166: =H166-I166 -> 1,117,597
C167: 2026-11-11 | D167: =H166 -> 1367597.001 | E167: =SUMIFS($F$28:$F79,$E$28:$E$79,C167,$F$28:$F79,">0") -> 0 | F167: =SUMIFS($F$28:$F79,$E$28:$E$79,C167,$F$28:$F79,"<0") -> 0 | G167: =E167+F167 -> 0 | H167: =D167+G167 -> 1,367,597 | I167: ='Actual inputs'!$E$62 -> 250,000 | J167: =H167-I167 -> 1,117,597
C168: 2026-11-12 | D168: =H167 -> 1367597.001 | E168: =SUMIFS($F$28:$F79,$E$28:$E$79,C168,$F$28:$F79,">0") -> 0 | F168: =SUMIFS($F$28:$F79,$E$28:$E$79,C168,$F$28:$F79,"<0") -> 0 | G168: =E168+F168 -> 0 | H168: =D168+G168 -> 1,367,597 | I168: ='Actual inputs'!$E$62 -> 250,000 | J168: =H168-I168 -> 1,117,597
C169: 2026-11-13 | D169: =H168 -> 1367597.001 | E169: =SUMIFS($F$28:$F79,$E$28:$E$79,C169,$F$28:$F79,">0") -> 0 | F169: =SUMIFS($F$28:$F79,$E$28:$E$79,C169,$F$28:$F79,"<0") -> 0 | G169: =E169+F169 -> 0 | H169: =D169+G169 -> 1,367,597 | I169: ='Actual inputs'!$E$62 -> 250,000 | J169: =H169-I169 -> 1,117,597
C170: 2026-11-14 | D170: =H169 -> 1367597.001 | E170: =SUMIFS($F$28:$F79,$E$28:$E$79,C170,$F$28:$F79,">0") -> 0 | F170: =SUMIFS($F$28:$F79,$E$28:$E$79,C170,$F$28:$F79,"<0") -> 0 | G170: =E170+F170 -> 0 | H170: =D170+G170 -> 1,367,597 | I170: ='Actual inputs'!$E$62 -> 250,000 | J170: =H170-I170 -> 1,117,597
C171: 2026-11-15 | D171: =H170 -> 1367597.001 | E171: =SUMIFS($F$28:$F79,$E$28:$E$79,C171,$F$28:$F79,">0") -> 212,604 | F171: =SUMIFS($F$28:$F79,$E$28:$E$79,C171,$F$28:$F79,"<0") -> (95,838) | G171: =E171+F171 -> 116,767 | H171: =D171+G171 -> 1,484,364 | I171: ='Actual inputs'!$E$62 -> 250,000 | J171: =H171-I171 -> 1,234,364
C172: 2026-11-16 | D172: =H171 -> 1484363.71 | E172: =SUMIFS($F$28:$F79,$E$28:$E$79,C172,$F$28:$F79,">0") -> 0 | F172: =SUMIFS($F$28:$F79,$E$28:$E$79,C172,$F$28:$F79,"<0") -> 0 | G172: =E172+F172 -> 0 | H172: =D172+G172 -> 1,484,364 | I172: ='Actual inputs'!$E$62 -> 250,000 | J172: =H172-I172 -> 1,234,364
C173: 2026-11-17 | D173: =H172 -> 1484363.71 | E173: =SUMIFS($F$28:$F79,$E$28:$E$79,C173,$F$28:$F79,">0") -> 0 | F173: =SUMIFS($F$28:$F79,$E$28:$E$79,C173,$F$28:$F79,"<0") -> 0 | G173: =E173+F173 -> 0 | H173: =D173+G173 -> 1,484,364 | I173: ='Actual inputs'!$E$62 -> 250,000 | J173: =H173-I173 -> 1,234,364
C174: 2026-11-18 | D174: =H173 -> 1484363.71 | E174: =SUMIFS($F$28:$F79,$E$28:$E$79,C174,$F$28:$F79,">0") -> 0 | F174: =SUMIFS($F$28:$F79,$E$28:$E$79,C174,$F$28:$F79,"<0") -> 0 | G174: =E174+F174 -> 0 | H174: =D174+G174 -> 1,484,364 | I174: ='Actual inputs'!$E$62 -> 250,000 | J174: =H174-I174 -> 1,234,364
C175: 2026-11-19 | D175: =H174 -> 1484363.71 | E175: =SUMIFS($F$28:$F79,$E$28:$E$79,C175,$F$28:$F79,">0") -> 0 | F175: =SUMIFS($F$28:$F79,$E$28:$E$79,C175,$F$28:$F79,"<0") -> 0 | G175: =E175+F175 -> 0 | H175: =D175+G175 -> 1,484,364 | I175: ='Actual inputs'!$E$62 -> 250,000 | J175: =H175-I175 -> 1,234,364
C176: 2026-11-20 | D176: =H175 -> 1484363.71 | E176: =SUMIFS($F$28:$F79,$E$28:$E$79,C176,$F$28:$F79,">0") -> 0 | F176: =SUMIFS($F$28:$F79,$E$28:$E$79,C176,$F$28:$F79,"<0") -> 0 | G176: =E176+F176 -> 0 | H176: =D176+G176 -> 1,484,364 | I176: ='Actual inputs'!$E$62 -> 250,000 | J176: =H176-I176 -> 1,234,364
C177: 2026-11-21 | D177: =H176 -> 1484363.71 | E177: =SUMIFS($F$28:$F79,$E$28:$E$79,C177,$F$28:$F79,">0") -> 0 | F177: =SUMIFS($F$28:$F79,$E$28:$E$79,C177,$F$28:$F79,"<0") -> 0 | G177: =E177+F177 -> 0 | H177: =D177+G177 -> 1,484,364 | I177: ='Actual inputs'!$E$62 -> 250,000 | J177: =H177-I177 -> 1,234,364
C178: 2026-11-22 | D178: =H177 -> 1484363.71 | E178: =SUMIFS($F$28:$F79,$E$28:$E$79,C178,$F$28:$F79,">0") -> 0 | F178: =SUMIFS($F$28:$F79,$E$28:$E$79,C178,$F$28:$F79,"<0") -> 0 | G178: =E178+F178 -> 0 | H178: =D178+G178 -> 1,484,364 | I178: ='Actual inputs'!$E$62 -> 250,000 | J178: =H178-I178 -> 1,234,364
C179: 2026-11-23 | D179: =H178 -> 1484363.71 | E179: =SUMIFS($F$28:$F79,$E$28:$E$79,C179,$F$28:$F79,">0") -> 0 | F179: =SUMIFS($F$28:$F79,$E$28:$E$79,C179,$F$28:$F79,"<0") -> 0 | G179: =E179+F179 -> 0 | H179: =D179+G179 -> 1,484,364 | I179: ='Actual inputs'!$E$62 -> 250,000 | J179: =H179-I179 -> 1,234,364
C180: 2026-11-24 | D180: =H179 -> 1484363.71 | E180: =SUMIFS($F$28:$F79,$E$28:$E$79,C180,$F$28:$F79,">0") -> 0 | F180: =SUMIFS($F$28:$F79,$E$28:$E$79,C180,$F$28:$F79,"<0") -> 0 | G180: =E180+F180 -> 0 | H180: =D180+G180 -> 1,484,364 | I180: ='Actual inputs'!$E$62 -> 250,000 | J180: =H180-I180 -> 1,234,364
C181: 2026-11-25 | D181: =H180 -> 1484363.71 | E181: =SUMIFS($F$28:$F79,$E$28:$E$79,C181,$F$28:$F79,">0") -> 0 | F181: =SUMIFS($F$28:$F79,$E$28:$E$79,C181,$F$28:$F79,"<0") -> (244,650) | G181: =E181+F181 -> (244,650) | H181: =D181+G181 -> 1,239,714 | I181: ='Actual inputs'!$E$62 -> 250,000 | J181: =H181-I181 -> 989,714
C182: 2026-11-26 | D182: =H181 -> 1239713.71 | E182: =SUMIFS($F$28:$F79,$E$28:$E$79,C182,$F$28:$F79,">0") -> 0 | F182: =SUMIFS($F$28:$F79,$E$28:$E$79,C182,$F$28:$F79,"<0") -> 0 | G182: =E182+F182 -> 0 | H182: =D182+G182 -> 1,239,714 | I182: ='Actual inputs'!$E$62 -> 250,000 | J182: =H182-I182 -> 989,714
C183: 2026-11-27 | D183: =H182 -> 1239713.71 | E183: =SUMIFS($F$28:$F79,$E$28:$E$79,C183,$F$28:$F79,">0") -> 0 | F183: =SUMIFS($F$28:$F79,$E$28:$E$79,C183,$F$28:$F79,"<0") -> 0 | G183: =E183+F183 -> 0 | H183: =D183+G183 -> 1,239,714 | I183: ='Actual inputs'!$E$62 -> 250,000 | J183: =H183-I183 -> 989,714
C184: 2026-11-28 | D184: =H183 -> 1239713.71 | E184: =SUMIFS($F$28:$F79,$E$28:$E$79,C184,$F$28:$F79,">0") -> 259,850 | F184: =SUMIFS($F$28:$F79,$E$28:$E$79,C184,$F$28:$F79,"<0") -> (123,164) | G184: =E184+F184 -> 136,686 | H184: =D184+G184 -> 1,376,399 | I184: ='Actual inputs'!$E$62 -> 250,000 | J184: =H184-I184 -> 1,126,399
C185: 2026-11-29 | D185: =H184 -> 1376399.411 | E185: =SUMIFS($F$28:$F79,$E$28:$E$79,C185,$F$28:$F79,">0") -> 0 | F185: =SUMIFS($F$28:$F79,$E$28:$E$79,C185,$F$28:$F79,"<0") -> 0 | G185: =E185+F185 -> 0 | H185: =D185+G185 -> 1,376,399 | I185: ='Actual inputs'!$E$62 -> 250,000 | J185: =H185-I185 -> 1,126,399

Sheet Revenue
C2: Revenue
C4: Selected case | E4: ='Assumptions'!$G$4 -> Base | H4: EUR · entirely fictional
E6: Actual | F6: Actual | G6: Actual | H6: Actual | I6: Actual | J6: Actual | K6: Actual | L6: Actual | M6: Forecast | N6: Forecast | O6: Forecast | P6: Forecast
E7: 2026-01-01 | F7: 2026-02-01 | G7: 2026-03-01 | H7: 2026-04-01 | I7: 2026-05-01 | J7: 2026-06-01 | K7: 2026-07-01 | L7: 2026-08-01 | M7: 2026-09-01 | N7: 2026-10-01 | O7: 2026-11-01 | P7: 2026-12-01
C8: Subscription accounts | E8: ='Assumptions'!E56 -> 520.0 | F8: ='Assumptions'!F56 -> 565.0 | G8: ='Assumptions'!G56 -> 610.0 | H8: ='Assumptions'!H56 -> 655.0 | I8: ='Assumptions'!I56 -> 700.0 | J8: ='Assumptions'!J56 -> 745.0 | K8: ='Assumptions'!K56 -> 790.0 | L8: ='Assumptions'!L56 -> 835.0 | M8: ='Assumptions'!M56 -> 880.0 | N8: ='Assumptions'!N56 -> 925.0 | O8: ='Assumptions'!O56 -> 970.0 | P8: ='Assumptions'!P56 -> 1015.0
C9: Subscription monthly price | E9: ='Assumptions'!E59 -> 159 | F9: ='Assumptions'!F59 -> 159 | G9: ='Assumptions'!G59 -> 159 | H9: ='Assumptions'!H59 -> 159 | I9: ='Assumptions'!I59 -> 159 | J9: ='Assumptions'!J59 -> 159 | K9: ='Assumptions'!K59 -> 159 | L9: ='Assumptions'!L59 -> 159 | M9: ='Assumptions'!M59 -> 159 | N9: ='Assumptions'!N59 -> 159 | O9: ='Assumptions'!O59 -> 159 | P9: ='Assumptions'!P59 -> 159
C10: Subscription revenue | E10: ='Revenue'!E8*'Revenue'!E9 -> 82,680 | F10: ='Revenue'!F8*'Revenue'!F9 -> 89,835 | G10: ='Revenue'!G8*'Revenue'!G9 -> 96,990 | H10: ='Revenue'!H8*'Revenue'!H9 -> 104,145 | I10: ='Revenue'!I8*'Revenue'!I9 -> 111,300 | J10: ='Revenue'!J8*'Revenue'!J9 -> 118,455 | K10: ='Revenue'!K8*'Revenue'!K9 -> 125,610 | L10: ='Revenue'!L8*'Revenue'!L9 -> 132,765 | M10: ='Revenue'!M8*'Revenue'!M9 -> 139,920 | N10: ='Revenue'!N8*'Revenue'!N9 -> 147,075 | O10: ='Revenue'!O8*'Revenue'!O9 -> 154,230 | P10: ='Revenue'!P8*'Revenue'!P9 -> 161,385
C11: Metered million tokens | E11: ='Assumptions'!E62 -> 16000.0 | F11: ='Assumptions'!F62 -> 17000.0 | G11: ='Assumptions'!G62 -> 18500.0 | H11: ='Assumptions'!H62 -> 20000.0 | I11: ='Assumptions'!I62 -> 22000.0 | J11: ='Assumptions'!J62 -> 24500.0 | K11: ='Assumptions'!K62 -> 28000.0 | L11: ='Assumptions'!L62 -> 31500.0 | M11: ='Assumptions'!M62 -> 35000.0 | N11: ='Assumptions'!N62 -> 39000.0 | O11: ='Assumptions'!O62 -> 44000.0 | P11: ='Assumptions'!P62 -> 49000.0
C12: Realised revenue / million tokens | E12: ='Assumptions'!E65 -> 5.80 | F12: ='Assumptions'!F65 -> 5.80 | G12: ='Assumptions'!G65 -> 5.80 | H12: ='Assumptions'!H65 -> 5.70 | I12: ='Assumptions'!I65 -> 5.70 | J12: ='Assumptions'!J65 -> 5.60 | K12: ='Assumptions'!K65 -> 5.50 | L12: ='Assumptions'!L65 -> 5.50 | M12: ='Assumptions'!M65 -> 5.40 | N12: ='Assumptions'!N65 -> 5.40 | O12: ='Assumptions'!O65 -> 5.30 | P12: ='Assumptions'!P65 -> 5.30
C13: Usage revenue | E13: ='Revenue'!E11*'Revenue'!E12 -> 92,800 | F13: ='Revenue'!F11*'Revenue'!F12 -> 98,600 | G13: ='Revenue'!G11*'Revenue'!G12 -> 107,300 | H13: ='Revenue'!H11*'Revenue'!H12 -> 114,000 | I13: ='Revenue'!I11*'Revenue'!I12 -> 125,400 | J13: ='Revenue'!J11*'Revenue'!J12 -> 137,200 | K13: ='Revenue'!K11*'Revenue'!K12 -> 154,000 | L13: ='Revenue'!L11*'Revenue'!L12 -> 173,250 | M13: ='Revenue'!M11*'Revenue'!M12 -> 189,000 | N13: ='Revenue'!N11*'Revenue'!N12 -> 210,600 | O13: ='Revenue'!O11*'Revenue'!O12 -> 233,200 | P13: ='Revenue'!P11*'Revenue'!P12 -> 259,700
C14: Enterprise workspaces | E14: ='Assumptions'!E83 -> 14.0 | F14: ='Assumptions'!F83 -> 15.0 | G14: ='Assumptions'!G83 -> 17.0 | H14: ='Assumptions'!H83 -> 18.0 | I14: ='Assumptions'!I83 -> 20.0 | J14: ='Assumptions'!J83 -> 21.0 | K14: ='Assumptions'!K83 -> 22.0 | L14: ='Assumptions'!L83 -> 24.0 | M14: ='Assumptions'!M83 -> 25.0 | N14: ='Assumptions'!N83 -> 27.0 | O14: ='Assumptions'!O83 -> 28.0 | P14: ='Assumptions'!P83 -> 29.0
C15: Monthly platform fee | E15: ='Assumptions'!E86 -> 4,300 | F15: ='Assumptions'!F86 -> 4,300 | G15: ='Assumptions'!G86 -> 4,300 | H15: ='Assumptions'!H86 -> 4,300 | I15: ='Assumptions'!I86 -> 4,300 | J15: ='Assumptions'!J86 -> 4,300 | K15: ='Assumptions'!K86 -> 4,300 | L15: ='Assumptions'!L86 -> 4,300 | M15: ='Assumptions'!M86 -> 4,300 | N15: ='Assumptions'!N86 -> 4,300 | O15: ='Assumptions'!O86 -> 4,300 | P15: ='Assumptions'!P86 -> 4,300
C16: Enterprise revenue | E16: ='Revenue'!E14*'Revenue'!E15 -> 60,200 | F16: ='Revenue'!F14*'Revenue'!F15 -> 64,500 | G16: ='Revenue'!G14*'Revenue'!G15 -> 73,100 | H16: ='Revenue'!H14*'Revenue'!H15 -> 77,400 | I16: ='Revenue'!I14*'Revenue'!I15 -> 86,000 | J16: ='Revenue'!J14*'Revenue'!J15 -> 90,300 | K16: ='Revenue'!K14*'Revenue'!K15 -> 94,600 | L16: ='Revenue'!L14*'Revenue'!L15 -> 103,200 | M16: ='Revenue'!M14*'Revenue'!M15 -> 107,500 | N16: ='Revenue'!N14*'Revenue'!N15 -> 116,100 | O16: ='Revenue'!O14*'Revenue'!O15 -> 120,400 | P16: ='Revenue'!P14*'Revenue'!P15 -> 124,700
C17: Total recognised revenue | E17: ='Revenue'!E10+'Revenue'!E13+'Revenue'!E16 -> 235,680 | F17: ='Revenue'!F10+'Revenue'!F13+'Revenue'!F16 -> 252,935 | G17: ='Revenue'!G10+'Revenue'!G13+'Revenue'!G16 -> 277,390 | H17: ='Revenue'!H10+'Revenue'!H13+'Revenue'!H16 -> 295,545 | I17: ='Revenue'!I10+'Revenue'!I13+'Revenue'!I16 -> 322,700 | J17: ='Revenue'!J10+'Revenue'!J13+'Revenue'!J16 -> 345,955 | K17: ='Revenue'!K10+'Revenue'!K13+'Revenue'!K16 -> 374,210 | L17: ='Revenue'!L10+'Revenue'!L13+'Revenue'!L16 -> 409,215 | M17: ='Revenue'!M10+'Revenue'!M13+'Revenue'!M16 -> 436,420 | N17: ='Revenue'!N10+'Revenue'!N13+'Revenue'!N16 -> 473,775 | O17: ='Revenue'!O10+'Revenue'!O13+'Revenue'!O16 -> 507,830 | P17: ='Revenue'!P10+'Revenue'!P13+'Revenue'!P16 -> 545,785
C18: Input million tokens | E18: ='Revenue'!E11*'Assumptions'!E68 -> 11840.0 | F18: ='Revenue'!F11*'Assumptions'!F68 -> 12580.0 | G18: ='Revenue'!G11*'Assumptions'!G68 -> 13690.0 | H18: ='Revenue'!H11*'Assumptions'!H68 -> 14800.0 | I18: ='Revenue'!I11*'Assumptions'!I68 -> 16280.0 | J18: ='Revenue'!J11*'Assumptions'!J68 -> 18130.0 | K18: ='Revenue'!K11*'Assumptions'!K68 -> 20720.0 | L18: ='Revenue'!L11*'Assumptions'!L68 -> 23310.0 | M18: ='Revenue'!M11*'Assumptions'!M68 -> 25900.0 | N18: ='Revenue'!N11*'Assumptions'!N68 -> 28860.0 | O18: ='Revenue'!O11*'Assumptions'!O68 -> 32560.0 | P18: ='Revenue'!P11*'Assumptions'!P68 -> 36260.0
C19: Output million tokens | E19: ='Revenue'!E11-'Revenue'!E18 -> 4160.0 | F19: ='Revenue'!F11-'Revenue'!F18 -> 4420.0 | G19: ='Revenue'!G11-'Revenue'!G18 -> 4810.0 | H19: ='Revenue'!H11-'Revenue'!H18 -> 5200.0 | I19: ='Revenue'!I11-'Revenue'!I18 -> 5720.0 | J19: ='Revenue'!J11-'Revenue'!J18 -> 6370.0 | K19: ='Revenue'!K11-'Revenue'!K18 -> 7280.0 | L19: ='Revenue'!L11-'Revenue'!L18 -> 8190.0 | M19: ='Revenue'!M11-'Revenue'!M18 -> 9100.0 | N19: ='Revenue'!N11-'Revenue'!N18 -> 10140.0 | O19: ='Revenue'!O11-'Revenue'!O18 -> 11440.0 | P19: ='Revenue'!P11-'Revenue'!P18 -> 12740.0
C20: Cached input million tokens | E20: ='Revenue'!E18*'Assumptions'!E77 -> 2368.0 | F20: ='Revenue'!F18*'Assumptions'!F77 -> 2767.6 | G20: ='Revenue'!G18*'Assumptions'!G77 -> 3285.6 | H20: ='Revenue'!H18*'Assumptions'!H77 -> 3848.0 | I20: ='Revenue'!I18*'Assumptions'!I77 -> 4558.4 | J20: ='Revenue'!J18*'Assumptions'!J77 -> 5439.0 | K20: ='Revenue'!K18*'Assumptions'!K77 -> 6630.4 | L20: ='Revenue'!L18*'Assumptions'!L77 -> 7925.4 | M20: ='Revenue'!M18*'Assumptions'!M77 -> 9324.0 | N20: ='Revenue'!N18*'Assumptions'!N77 -> 10966.8 | O20: ='Revenue'!O18*'Assumptions'!O77 -> 13024.0 | P20: ='Revenue'!P18*'Assumptions'!P77 -> 15229.2
C21: Uncached input million tokens | E21: ='Revenue'!E18-'Revenue'!E20 -> 9472.0 | F21: ='Revenue'!F18-'Revenue'!F20 -> 9812.4 | G21: ='Revenue'!G18-'Revenue'!G20 -> 10404.4 | H21: ='Revenue'!H18-'Revenue'!H20 -> 10952.0 | I21: ='Revenue'!I18-'Revenue'!I20 -> 11721.6 | J21: ='Revenue'!J18-'Revenue'!J20 -> 12691.0 | K21: ='Revenue'!K18-'Revenue'!K20 -> 14089.6 | L21: ='Revenue'!L18-'Revenue'!L20 -> 15384.6 | M21: ='Revenue'!M18-'Revenue'!M20 -> 16576.0 | N21: ='Revenue'!N18-'Revenue'!N20 -> 17893.2 | O21: ='Revenue'!O18-'Revenue'!O20 -> 19536.0 | P21: ='Revenue'!P18-'Revenue'!P20 -> 21030.8
C22: Uncached input cost | E22: ='Revenue'!E21*'Assumptions'!E71 -> 16,102 | F22: ='Revenue'!F21*'Assumptions'!F71 -> 16,681 | G22: ='Revenue'!G21*'Assumptions'!G71 -> 17,687 | H22: ='Revenue'!H21*'Assumptions'!H71 -> 18,618 | I22: ='Revenue'!I21*'Assumptions'!I71 -> 19,927 | J22: ='Revenue'!J21*'Assumptions'!J71 -> 21,575 | K22: ='Revenue'!K21*'Assumptions'!K71 -> 23,952 | L22: ='Revenue'!L21*'Assumptions'!L71 -> 26,154 | M22: ='Revenue'!M21*'Assumptions'!M71 -> 28,179 | N22: ='Revenue'!N21*'Assumptions'!N71 -> 30,418 | O22: ='Revenue'!O21*'Assumptions'!O71 -> 33,211 | P22: ='Revenue'!P21*'Assumptions'!P71 -> 35,752
C23: Cached input cost | E23: ='Revenue'!E20*'Assumptions'!E71*(1-'Assumptions'!E80) -> 805 | F23: ='Revenue'!F20*'Assumptions'!F71*(1-'Assumptions'!F80) -> 941 | G23: ='Revenue'!G20*'Assumptions'!G71*(1-'Assumptions'!G80) -> 1,117 | H23: ='Revenue'!H20*'Assumptions'!H71*(1-'Assumptions'!H80) -> 1,308 | I23: ='Revenue'!I20*'Assumptions'!I71*(1-'Assumptions'!I80) -> 1,550 | J23: ='Revenue'!J20*'Assumptions'!J71*(1-'Assumptions'!J80) -> 1,849 | K23: ='Revenue'!K20*'Assumptions'!K71*(1-'Assumptions'!K80) -> 2,254 | L23: ='Revenue'!L20*'Assumptions'!L71*(1-'Assumptions'!L80) -> 2,695 | M23: ='Revenue'!M20*'Assumptions'!M71*(1-'Assumptions'!M80) -> 3,170 | N23: ='Revenue'!N20*'Assumptions'!N71*(1-'Assumptions'!N80) -> 3,729 | O23: ='Revenue'!O20*'Assumptions'!O71*(1-'Assumptions'!O80) -> 4,428 | P23: ='Revenue'!P20*'Assumptions'!P71*(1-'Assumptions'!P80) -> 5,178
C24: Output model cost | E24: ='Revenue'!E19*'Assumptions'!E74 -> 29,120 | F24: ='Revenue'!F19*'Assumptions'!F74 -> 30,940 | G24: ='Revenue'!G19*'Assumptions'!G74 -> 33,670 | H24: ='Revenue'!H19*'Assumptions'!H74 -> 36,400 | I24: ='Revenue'!I19*'Assumptions'!I74 -> 40,040 | J24: ='Revenue'!J19*'Assumptions'!J74 -> 44,590 | K24: ='Revenue'!K19*'Assumptions'!K74 -> 50,960 | L24: ='Revenue'!L19*'Assumptions'!L74 -> 57,330 | M24: ='Revenue'!M19*'Assumptions'!M74 -> 63,700 | N24: ='Revenue'!N19*'Assumptions'!N74 -> 70,980 | O24: ='Revenue'!O19*'Assumptions'!O74 -> 80,080 | P24: ='Revenue'!P19*'Assumptions'!P74 -> 89,180
C25: Total model costs | E25: ='Revenue'!E22+'Revenue'!E23+'Revenue'!E24 -> 46,028 | F25: ='Revenue'!F22+'Revenue'!F23+'Revenue'!F24 -> 48,562 | G25: ='Revenue'!G22+'Revenue'!G23+'Revenue'!G24 -> 52,475 | H25: ='Revenue'!H22+'Revenue'!H23+'Revenue'!H24 -> 56,327 | I25: ='Revenue'!I22+'Revenue'!I23+'Revenue'!I24 -> 61,517 | J25: ='Revenue'!J22+'Revenue'!J23+'Revenue'!J24 -> 68,014 | K25: ='Revenue'!K22+'Revenue'!K23+'Revenue'!K24 -> 77,167 | L25: ='Revenue'!L22+'Revenue'!L23+'Revenue'!L24 -> 86,178 | M25: ='Revenue'!M22+'Revenue'!M23+'Revenue'!M24 -> 95,049 | N25: ='Revenue'!N22+'Revenue'!N23+'Revenue'!N24 -> 105,127 | O25: ='Revenue'!O22+'Revenue'!O23+'Revenue'!O24 -> 117,719 | P25: ='Revenue'!P22+'Revenue'!P23+'Revenue'!P24 -> 130,110
C26: Model cost / million tokens | E26: ='Revenue'!E25/'Revenue'!E11 -> 2.88 | F26: ='Revenue'!F25/'Revenue'!F11 -> 2.86 | G26: ='Revenue'!G25/'Revenue'!G11 -> 2.84 | H26: ='Revenue'!H25/'Revenue'!H11 -> 2.82 | I26: ='Revenue'!I25/'Revenue'!I11 -> 2.80 | J26: ='Revenue'!J25/'Revenue'!J11 -> 2.78 | K26: ='Revenue'!K25/'Revenue'!K11 -> 2.76 | L26: ='Revenue'!L25/'Revenue'!L11 -> 2.74 | M26: ='Revenue'!M25/'Revenue'!M11 -> 2.72 | N26: ='Revenue'!N25/'Revenue'!N11 -> 2.70 | O26: ='Revenue'!O25/'Revenue'!O11 -> 2.68 | P26: ='Revenue'!P25/'Revenue'!P11 -> 2.66
C27: Usage contribution before shared costs | E27: ='Revenue'!E13-'Revenue'!E25 -> 46,772 | F27: ='Revenue'!F13-'Revenue'!F25 -> 50,038 | G27: ='Revenue'!G13-'Revenue'!G25 -> 54,825 | H27: ='Revenue'!H13-'Revenue'!H25 -> 57,673 | I27: ='Revenue'!I13-'Revenue'!I25 -> 63,883 | J27: ='Revenue'!J13-'Revenue'!J25 -> 69,186 | K27: ='Revenue'!K13-'Revenue'!K25 -> 76,833 | L27: ='Revenue'!L13-'Revenue'!L25 -> 87,072 | M27: ='Revenue'!M13-'Revenue'!M25 -> 93,951 | N27: ='Revenue'!N13-'Revenue'!N25 -> 105,473 | O27: ='Revenue'!O13-'Revenue'!O25 -> 115,481 | P27: ='Revenue'!P13-'Revenue'!P25 -> 129,590
C28: Usage contribution margin | E28: ='Revenue'!E27/'Revenue'!E13 -> 50.4% | F28: ='Revenue'!F27/'Revenue'!F13 -> 50.7% | G28: ='Revenue'!G27/'Revenue'!G13 -> 51.1% | H28: ='Revenue'!H27/'Revenue'!H13 -> 50.6% | I28: ='Revenue'!I27/'Revenue'!I13 -> 50.9% | J28: ='Revenue'!J27/'Revenue'!J13 -> 50.4% | K28: ='Revenue'!K27/'Revenue'!K13 -> 49.9% | L28: ='Revenue'!L27/'Revenue'!L13 -> 50.3% | M28: ='Revenue'!M27/'Revenue'!M13 -> 49.7% | N28: ='Revenue'!N27/'Revenue'!N13 -> 50.1% | O28: ='Revenue'!O27/'Revenue'!O13 -> 49.5% | P28: ='Revenue'!P27/'Revenue'!P13 -> 49.9%
C29: Consumed compute cost | E29: ='Assumptions'!E89*'Assumptions'!E92 -> 15,500 | F29: ='Assumptions'!F89*'Assumptions'!F92 -> 17,670 | G29: ='Assumptions'!G89*'Assumptions'!G92 -> 19,840 | H29: ='Assumptions'!H89*'Assumptions'!H92 -> 22,010 | I29: ='Assumptions'!I89*'Assumptions'!I92 -> 24,180 | J29: ='Assumptions'!J89*'Assumptions'!J92 -> 26,350 | K29: ='Assumptions'!K89*'Assumptions'!K92 -> 28,520 | L29: ='Assumptions'!L89*'Assumptions'!L92 -> 30,690 | M29: ='Assumptions'!M89*'Assumptions'!M92 -> 32,860 | N29: ='Assumptions'!N89*'Assumptions'!N92 -> 35,030 | O29: ='Assumptions'!O89*'Assumptions'!O92 -> 37,200 | P29: ='Assumptions'!P89*'Assumptions'!P92 -> 39,370
C30: Minimum cloud commitment | E30: ='Assumptions'!E95 -> 25,000 | F30: ='Assumptions'!F95 -> 25,000 | G30: ='Assumptions'!G95 -> 25,000 | H30: ='Assumptions'!H95 -> 25,000 | I30: ='Assumptions'!I95 -> 25,000 | J30: ='Assumptions'!J95 -> 25,000 | K30: ='Assumptions'!K95 -> 32,000 | L30: ='Assumptions'!L95 -> 32,000 | M30: ='Assumptions'!M95 -> 42,000 | N30: ='Assumptions'!N95 -> 42,000 | O30: ='Assumptions'!O95 -> 42,000 | P30: ='Assumptions'!P95 -> 42,000
C31: Cloud expense | E31: =MAX('Revenue'!E29,'Revenue'!E30) -> 25,000 | F31: =MAX('Revenue'!F29,'Revenue'!F30) -> 25,000 | G31: =MAX('Revenue'!G29,'Revenue'!G30) -> 25,000 | H31: =MAX('Revenue'!H29,'Revenue'!H30) -> 25,000 | I31: =MAX('Revenue'!I29,'Revenue'!I30) -> 25,000 | J31: =MAX('Revenue'!J29,'Revenue'!J30) -> 26,350 | K31: =MAX('Revenue'!K29,'Revenue'!K30) -> 32,000 | L31: =MAX('Revenue'!L29,'Revenue'!L30) -> 32,000 | M31: =MAX('Revenue'!M29,'Revenue'!M30) -> 42,000 | N31: =MAX('Revenue'!N29,'Revenue'!N30) -> 42,000 | O31: =MAX('Revenue'!O29,'Revenue'!O30) -> 42,000 | P31: =MAX('Revenue'!P29,'Revenue'!P30) -> 42,000
C32: Unused cloud commitment | E32: ='Revenue'!E31-'Revenue'!E29 -> 9,500 | F32: ='Revenue'!F31-'Revenue'!F29 -> 7,330 | G32: ='Revenue'!G31-'Revenue'!G29 -> 5,160 | H32: ='Revenue'!H31-'Revenue'!H29 -> 2,990 | I32: ='Revenue'!I31-'Revenue'!I29 -> 820 | J32: ='Revenue'!J31-'Revenue'!J29 -> 0 | K32: ='Revenue'!K31-'Revenue'!K29 -> 3,480 | L32: ='Revenue'!L31-'Revenue'!L29 -> 1,310 | M32: ='Revenue'!M31-'Revenue'!M29 -> 9,140 | N32: ='Revenue'!N31-'Revenue'!N29 -> 6,970 | O32: ='Revenue'!O31-'Revenue'!O29 -> 4,800 | P32: ='Revenue'!P31-'Revenue'!P29 -> 2,630
C33: Storage security and observability | E33: ='Assumptions'!E98 -> 9,500 | F33: ='Assumptions'!F98 -> 10,350 | G33: ='Assumptions'!G98 -> 11,200 | H33: ='Assumptions'!H98 -> 12,050 | I33: ='Assumptions'!I98 -> 12,900 | J33: ='Assumptions'!J98 -> 13,750 | K33: ='Assumptions'!K98 -> 14,600 | L33: ='Assumptions'!L98 -> 15,450 | M33: ='Assumptions'!M98 -> 16,300 | N33: ='Assumptions'!N98 -> 17,150 | O33: ='Assumptions'!O98 -> 18,000 | P33: ='Assumptions'!P98 -> 18,850
C34: Invoiced billings | E34: ='Revenue'!E17+'Revenue'!E36-'Revenue'!E35 -> 190,830 | F34: ='Revenue'!F17+'Revenue'!F36-'Revenue'!F35 -> 256,160 | G34: ='Revenue'!G17+'Revenue'!G36-'Revenue'!G35 -> 283,840 | H34: ='Revenue'!H17+'Revenue'!H36-'Revenue'!H35 -> 298,770 | I34: ='Revenue'!I17+'Revenue'!I36-'Revenue'!I35 -> 329,150 | J34: ='Revenue'!J17+'Revenue'!J36-'Revenue'!J35 -> 349,180 | K34: ='Revenue'!K17+'Revenue'!K36-'Revenue'!K35 -> 377,435 | L34: ='Revenue'!L17+'Revenue'!L36-'Revenue'!L35 -> 415,665 | M34: ='Revenue'!M17+'Revenue'!M36-'Revenue'!M35 -> 439,645 | N34: ='Revenue'!N17+'Revenue'!N36-'Revenue'!N35 -> 480,225 | O34: ='Revenue'!O17+'Revenue'!O36-'Revenue'!O35 -> 511,055 | P34: ='Revenue'!P17+'Revenue'!P36-'Revenue'!P35 -> 549,010
C35: Opening deferred revenue | E35: ='Actual inputs'!$E$47 -> 90,000 | F35: ='Revenue'!E36 -> 45,150 | G35: ='Revenue'!F36 -> 48,375 | H35: ='Revenue'!G36 -> 54,825 | I35: ='Revenue'!H36 -> 58,050 | J35: ='Revenue'!I36 -> 64,500 | K35: ='Revenue'!J36 -> 67,725 | L35: ='Revenue'!K36 -> 70,950 | M35: ='Revenue'!L36 -> 77,400 | N35: ='Revenue'!M36 -> 80,625 | O35: ='Revenue'!N36 -> 87,075 | P35: ='Revenue'!O36 -> 90,300
C36: Closing deferred revenue | E36: ='Revenue'!E16*0.75 -> 45,150 | F36: ='Revenue'!F16*0.75 -> 48,375 | G36: ='Revenue'!G16*0.75 -> 54,825 | H36: ='Revenue'!H16*0.75 -> 58,050 | I36: ='Revenue'!I16*0.75 -> 64,500 | J36: ='Revenue'!J16*0.75 -> 67,725 | K36: ='Revenue'!K16*0.75 -> 70,950 | L36: ='Revenue'!L16*0.75 -> 77,400 | M36: ='Revenue'!M16*0.75 -> 80,625 | N36: ='Revenue'!N16*0.75 -> 87,075 | O36: ='Revenue'!O16*0.75 -> 90,300 | P36: ='Revenue'!P16*0.75 -> 93,525

Sheet Product economics
C2: Product economics
C4: Selected case | E4: ='Assumptions'!$G$4 -> Base | H4: EUR · entirely fictional
C7: August product | D7: Revenue | E7: Model costs | F7: Shared costs | G7: Contribution | H7: Margin | I7: Allocation
C8: Subscription | D8: ='P&L'!L8 -> 132,765 | E8: =0 -> 0 | F8: =('P&L'!L12+'P&L'!L14)*D8/'P&L'!L11 -> (30,440) | G8: =SUM(D8:F8) -> 102,325 | H8: =G8/D8 -> 77.1% | I8: Revenue share
C9: Usage API | D9: ='P&L'!L9 -> 173,250 | E9: ='P&L'!L13 -> (86,178) | F9: =('P&L'!L12+'P&L'!L14)*D9/'P&L'!L11 -> (39,723) | G9: =SUM(D9:F9) -> 47,349 | H9: =G9/D9 -> 27.3% | I9: Revenue share
C10: Enterprise | D10: ='P&L'!L10 -> 103,200 | E10: =0 -> 0 | F10: =('P&L'!L12+'P&L'!L14)*D10/'P&L'!L11 -> (23,662) | G10: =SUM(D10:F10) -> 79,538 | H10: =G10/D10 -> 77.1% | I10: Revenue share
C15: December usage margin sensitivity
C17: Token selling price | D17: Input model costs | E17: Output cost −10% | F17: Selected output cost | G17: Output cost +10%
C18: ='Assumptions'!P65*0.8 -> 4.24 | D18: ='Revenue'!P22+'Revenue'!P23 -> 40,930 | E18: =('Revenue'!P11*C18-D18-'Revenue'!P24*0.9)/('Revenue'!P11*C18) -> 41.7% | F18: =('Revenue'!P11*C18-D18-'Revenue'!P24*1)/('Revenue'!P11*C18) -> 37.4% | G18: =('Revenue'!P11*C18-D18-'Revenue'!P24*1.1)/('Revenue'!P11*C18) -> 33.1%
C19: ='Assumptions'!P65*0.9 -> 4.77 | D19: ='Revenue'!P22+'Revenue'!P23 -> 40,930 | E19: =('Revenue'!P11*C19-D19-'Revenue'!P24*0.9)/('Revenue'!P11*C19) -> 48.1% | F19: =('Revenue'!P11*C19-D19-'Revenue'!P24*1)/('Revenue'!P11*C19) -> 44.3% | G19: =('Revenue'!P11*C19-D19-'Revenue'!P24*1.1)/('Revenue'!P11*C19) -> 40.5%
C20: ='Assumptions'!P65*1 -> 5.30 | D20: ='Revenue'!P22+'Revenue'!P23 -> 40,930 | E20: =('Revenue'!P11*C20-D20-'Revenue'!P24*0.9)/('Revenue'!P11*C20) -> 53.3% | F20: =('Revenue'!P11*C20-D20-'Revenue'!P24*1)/('Revenue'!P11*C20) -> 49.9% | G20: =('Revenue'!P11*C20-D20-'Revenue'!P24*1.1)/('Revenue'!P11*C20) -> 46.5%
C21: ='Assumptions'!P65*1.1 -> 5.83 | D21: ='Revenue'!P22+'Revenue'!P23 -> 40,930 | E21: =('Revenue'!P11*C21-D21-'Revenue'!P24*0.9)/('Revenue'!P11*C21) -> 57.6% | F21: =('Revenue'!P11*C21-D21-'Revenue'!P24*1)/('Revenue'!P11*C21) -> 54.5% | G21: =('Revenue'!P11*C21-D21-'Revenue'!P24*1.1)/('Revenue'!P11*C21) -> 51.3%
C22: ='Assumptions'!P65*1.2000000000000002 -> 6.36 | D22: ='Revenue'!P22+'Revenue'!P23 -> 40,930 | E22: =('Revenue'!P11*C22-D22-'Revenue'!P24*0.9)/('Revenue'!P11*C22) -> 61.1% | F22: =('Revenue'!P11*C22-D22-'Revenue'!P24*1)/('Revenue'!P11*C22) -> 58.2% | G22: =('Revenue'!P11*C22-D22-'Revenue'!P24*1.1)/('Revenue'!P11*C22) -> 55.4%
C25: Usage sensitivity excludes shared costs. Product contribution allocates support and cloud costs by revenue share.

Sheet Payroll
C2: Payroll
C4: Selected case | E4: ='Assumptions'!$G$4 -> Base | H4: EUR · entirely fictional
E6: Actual | F6: Actual | G6: Actual | H6: Actual | I6: Actual | J6: Actual | K6: Actual | L6: Actual | M6: Forecast | N6: Forecast | O6: Forecast | P6: Forecast
E7: 2026-01-01 | F7: 2026-02-01 | G7: 2026-03-01 | H7: 2026-04-01 | I7: 2026-05-01 | J7: 2026-06-01 | K7: 2026-07-01 | L7: 2026-08-01 | M7: 2026-09-01 | N7: 2026-10-01 | O7: 2026-11-01 | P7: 2026-12-01
C8: Support FTE | E8: ='Assumptions'!E8 -> 7.00 | F8: ='Assumptions'!F8 -> 7.25 | G8: ='Assumptions'!G8 -> 7.50 | H8: ='Assumptions'!H8 -> 7.75 | I8: ='Assumptions'!I8 -> 8.00 | J8: ='Assumptions'!J8 -> 8.25 | K8: ='Assumptions'!K8 -> 8.50 | L8: ='Assumptions'!L8 -> 8.75 | M8: ='Assumptions'!M8 -> 9.00 | N8: ='Assumptions'!N8 -> 9.25 | O8: ='Assumptions'!O8 -> 9.50 | P8: ='Assumptions'!P8 -> 9.75
C9: Monthly loaded support pay | E9: ='Assumptions'!E11 -> 5,300 | F9: ='Assumptions'!F11 -> 5,300 | G9: ='Assumptions'!G11 -> 5,300 | H9: ='Assumptions'!H11 -> 5,300 | I9: ='Assumptions'!I11 -> 5,300 | J9: ='Assumptions'!J11 -> 5,300 | K9: ='Assumptions'!K11 -> 5,300 | L9: ='Assumptions'!L11 -> 5,300 | M9: ='Assumptions'!M11 -> 5,300 | N9: ='Assumptions'!N11 -> 5,300 | O9: ='Assumptions'!O11 -> 5,300 | P9: ='Assumptions'!P11 -> 5,300
C10: Support payroll | E10: ='Payroll'!E8*'Payroll'!E9 -> 37,100 | F10: ='Payroll'!F8*'Payroll'!F9 -> 38,425 | G10: ='Payroll'!G8*'Payroll'!G9 -> 39,750 | H10: ='Payroll'!H8*'Payroll'!H9 -> 41,075 | I10: ='Payroll'!I8*'Payroll'!I9 -> 42,400 | J10: ='Payroll'!J8*'Payroll'!J9 -> 43,725 | K10: ='Payroll'!K8*'Payroll'!K9 -> 45,050 | L10: ='Payroll'!L8*'Payroll'!L9 -> 46,375 | M10: ='Payroll'!M8*'Payroll'!M9 -> 47,700 | N10: ='Payroll'!N8*'Payroll'!N9 -> 49,025 | O10: ='Payroll'!O8*'Payroll'!O9 -> 50,350 | P10: ='Payroll'!P8*'Payroll'!P9 -> 51,675
C11: Development FTE | E11: ='Assumptions'!E14 -> 13.00 | F11: ='Assumptions'!F14 -> 13.50 | G11: ='Assumptions'!G14 -> 14.00 | H11: ='Assumptions'!H14 -> 14.50 | I11: ='Assumptions'!I14 -> 15.00 | J11: ='Assumptions'!J14 -> 15.50 | K11: ='Assumptions'!K14 -> 16.00 | L11: ='Assumptions'!L14 -> 16.50 | M11: ='Assumptions'!M14 -> 17.00 | N11: ='Assumptions'!N14 -> 17.50 | O11: ='Assumptions'!O14 -> 18.00 | P11: ='Assumptions'!P14 -> 18.50
C12: Monthly loaded development pay | E12: ='Assumptions'!E17 -> 6,900 | F12: ='Assumptions'!F17 -> 6,900 | G12: ='Assumptions'!G17 -> 6,900 | H12: ='Assumptions'!H17 -> 6,900 | I12: ='Assumptions'!I17 -> 6,900 | J12: ='Assumptions'!J17 -> 6,900 | K12: ='Assumptions'!K17 -> 6,900 | L12: ='Assumptions'!L17 -> 6,900 | M12: ='Assumptions'!M17 -> 6,900 | N12: ='Assumptions'!N17 -> 6,900 | O12: ='Assumptions'!O17 -> 6,900 | P12: ='Assumptions'!P17 -> 6,900
C13: Development payroll | E13: ='Payroll'!E11*'Payroll'!E12 -> 89,700 | F13: ='Payroll'!F11*'Payroll'!F12 -> 93,150 | G13: ='Payroll'!G11*'Payroll'!G12 -> 96,600 | H13: ='Payroll'!H11*'Payroll'!H12 -> 100,050 | I13: ='Payroll'!I11*'Payroll'!I12 -> 103,500 | J13: ='Payroll'!J11*'Payroll'!J12 -> 106,950 | K13: ='Payroll'!K11*'Payroll'!K12 -> 110,400 | L13: ='Payroll'!L11*'Payroll'!L12 -> 113,850 | M13: ='Payroll'!M11*'Payroll'!M12 -> 117,300 | N13: ='Payroll'!N11*'Payroll'!N12 -> 120,750 | O13: ='Payroll'!O11*'Payroll'!O12 -> 124,200 | P13: ='Payroll'!P11*'Payroll'!P12 -> 127,650
C14: Sales FTE | E14: ='Assumptions'!E20 -> 5.00 | F14: ='Assumptions'!F20 -> 5.25 | G14: ='Assumptions'!G20 -> 5.50 | H14: ='Assumptions'!H20 -> 5.75 | I14: ='Assumptions'!I20 -> 6.00 | J14: ='Assumptions'!J20 -> 6.25 | K14: ='Assumptions'!K20 -> 6.50 | L14: ='Assumptions'!L20 -> 6.75 | M14: ='Assumptions'!M20 -> 7.00 | N14: ='Assumptions'!N20 -> 7.25 | O14: ='Assumptions'!O20 -> 7.50 | P14: ='Assumptions'!P20 -> 7.75
C15: Monthly loaded sales pay | E15: ='Assumptions'!E23 -> 6,200 | F15: ='Assumptions'!F23 -> 6,200 | G15: ='Assumptions'!G23 -> 6,200 | H15: ='Assumptions'!H23 -> 6,200 | I15: ='Assumptions'!I23 -> 6,200 | J15: ='Assumptions'!J23 -> 6,200 | K15: ='Assumptions'!K23 -> 6,200 | L15: ='Assumptions'!L23 -> 6,200 | M15: ='Assumptions'!M23 -> 6,200 | N15: ='Assumptions'!N23 -> 6,200 | O15: ='Assumptions'!O23 -> 6,200 | P15: ='Assumptions'!P23 -> 6,200
C16: Sales payroll | E16: ='Payroll'!E14*'Payroll'!E15 -> 31,000 | F16: ='Payroll'!F14*'Payroll'!F15 -> 32,550 | G16: ='Payroll'!G14*'Payroll'!G15 -> 34,100 | H16: ='Payroll'!H14*'Payroll'!H15 -> 35,650 | I16: ='Payroll'!I14*'Payroll'!I15 -> 37,200 | J16: ='Payroll'!J14*'Payroll'!J15 -> 38,750 | K16: ='Payroll'!K14*'Payroll'!K15 -> 40,300 | L16: ='Payroll'!L14*'Payroll'!L15 -> 41,850 | M16: ='Payroll'!M14*'Payroll'!M15 -> 43,400 | N16: ='Payroll'!N14*'Payroll'!N15 -> 44,950 | O16: ='Payroll'!O14*'Payroll'!O15 -> 46,500 | P16: ='Payroll'!P14*'Payroll'!P15 -> 48,050
C17: Administration FTE | E17: ='Assumptions'!E26 -> 4.00 | F17: ='Assumptions'!F26 -> 4.00 | G17: ='Assumptions'!G26 -> 4.00 | H17: ='Assumptions'!H26 -> 4.00 | I17: ='Assumptions'!I26 -> 4.00 | J17: ='Assumptions'!J26 -> 4.00 | K17: ='Assumptions'!K26 -> 4.00 | L17: ='Assumptions'!L26 -> 4.00 | M17: ='Assumptions'!M26 -> 4.00 | N17: ='Assumptions'!N26 -> 4.00 | O17: ='Assumptions'!O26 -> 4.00 | P17: ='Assumptions'!P26 -> 4.00
C18: Monthly loaded administration pay | E18: ='Assumptions'!E29 -> 5,900 | F18: ='Assumptions'!F29 -> 5,900 | G18: ='Assumptions'!G29 -> 5,900 | H18: ='Assumptions'!H29 -> 5,900 | I18: ='Assumptions'!I29 -> 5,900 | J18: ='Assumptions'!J29 -> 5,900 | K18: ='Assumptions'!K29 -> 5,900 | L18: ='Assumptions'!L29 -> 5,900 | M18: ='Assumptions'!M29 -> 5,900 | N18: ='Assumptions'!N29 -> 5,900 | O18: ='Assumptions'!O29 -> 5,900 | P18: ='Assumptions'!P29 -> 5,900
C19: Administration payroll | E19: ='Payroll'!E17*'Payroll'!E18 -> 23,600 | F19: ='Payroll'!F17*'Payroll'!F18 -> 23,600 | G19: ='Payroll'!G17*'Payroll'!G18 -> 23,600 | H19: ='Payroll'!H17*'Payroll'!H18 -> 23,600 | I19: ='Payroll'!I17*'Payroll'!I18 -> 23,600 | J19: ='Payroll'!J17*'Payroll'!J18 -> 23,600 | K19: ='Payroll'!K17*'Payroll'!K18 -> 23,600 | L19: ='Payroll'!L17*'Payroll'!L18 -> 23,600 | M19: ='Payroll'!M17*'Payroll'!M18 -> 23,600 | N19: ='Payroll'!N17*'Payroll'!N18 -> 23,600 | O19: ='Payroll'!O17*'Payroll'!O18 -> 23,600 | P19: ='Payroll'!P17*'Payroll'!P18 -> 23,600
C20: Total FTE | E20: ='Payroll'!E8+'Payroll'!E11+'Payroll'!E14+'Payroll'!E17 -> 29.00 | F20: ='Payroll'!F8+'Payroll'!F11+'Payroll'!F14+'Payroll'!F17 -> 30.00 | G20: ='Payroll'!G8+'Payroll'!G11+'Payroll'!G14+'Payroll'!G17 -> 31.00 | H20: ='Payroll'!H8+'Payroll'!H11+'Payroll'!H14+'Payroll'!H17 -> 32.00 | I20: ='Payroll'!I8+'Payroll'!I11+'Payroll'!I14+'Payroll'!I17 -> 33.00 | J20: ='Payroll'!J8+'Payroll'!J11+'Payroll'!J14+'Payroll'!J17 -> 34.00 | K20: ='Payroll'!K8+'Payroll'!K11+'Payroll'!K14+'Payroll'!K17 -> 35.00 | L20: ='Payroll'!L8+'Payroll'!L11+'Payroll'!L14+'Payroll'!L17 -> 36.00 | M20: ='Payroll'!M8+'Payroll'!M11+'Payroll'!M14+'Payroll'!M17 -> 37.00 | N20: ='Payroll'!N8+'Payroll'!N11+'Payroll'!N14+'Payroll'!N17 -> 38.00 | O20: ='Payroll'!O8+'Payroll'!O11+'Payroll'!O14+'Payroll'!O17 -> 39.00 | P20: ='Payroll'!P8+'Payroll'!P11+'Payroll'!P14+'Payroll'!P17 -> 40.00
C21: Total payroll | E21: ='Payroll'!E10+'Payroll'!E13+'Payroll'!E16+'Payroll'!E19 -> 181,400 | F21: ='Payroll'!F10+'Payroll'!F13+'Payroll'!F16+'Payroll'!F19 -> 187,725 | G21: ='Payroll'!G10+'Payroll'!G13+'Payroll'!G16+'Payroll'!G19 -> 194,050 | H21: ='Payroll'!H10+'Payroll'!H13+'Payroll'!H16+'Payroll'!H19 -> 200,375 | I21: ='Payroll'!I10+'Payroll'!I13+'Payroll'!I16+'Payroll'!I19 -> 206,700 | J21: ='Payroll'!J10+'Payroll'!J13+'Payroll'!J16+'Payroll'!J19 -> 213,025 | K21: ='Payroll'!K10+'Payroll'!K13+'Payroll'!K16+'Payroll'!K19 -> 219,350 | L21: ='Payroll'!L10+'Payroll'!L13+'Payroll'!L16+'Payroll'!L19 -> 225,675 | M21: ='Payroll'!M10+'Payroll'!M13+'Payroll'!M16+'Payroll'!M19 -> 232,000 | N21: ='Payroll'!N10+'Payroll'!N13+'Payroll'!N16+'Payroll'!N19 -> 238,325 | O21: ='Payroll'!O10+'Payroll'!O13+'Payroll'!O16+'Payroll'!O19 -> 244,650 | P21: ='Payroll'!P10+'Payroll'!P13+'Payroll'!P16+'Payroll'!P19 -> 250,975

Sheet Working capital
C2: Working capital
C4: Selected case | E4: ='Assumptions'!$G$4 -> Base | H4: EUR · entirely fictional
E6: Actual | F6: Actual | G6: Actual | H6: Actual | I6: Actual | J6: Actual | K6: Actual | L6: Actual | M6: Forecast | N6: Forecast | O6: Forecast | P6: Forecast
E7: 2026-01-01 | F7: 2026-02-01 | G7: 2026-03-01 | H7: 2026-04-01 | I7: 2026-05-01 | J7: 2026-06-01 | K7: 2026-07-01 | L7: 2026-08-01 | M7: 2026-09-01 | N7: 2026-10-01 | O7: 2026-11-01 | P7: 2026-12-01
C8: Opening receivables | E8: ='Actual inputs'!$E$45 -> 145,000 | F8: ='Working capital'!E11 -> 162,500 | G8: ='Working capital'!F11 -> 180,000 | H8: ='Working capital'!G11 -> 197,500 | I8: ='Working capital'!H11 -> 215,000 | J8: ='Working capital'!I11 -> 232,500 | K8: ='Working capital'!J11 -> 250,000 | L8: ='Working capital'!K11 -> 267,500 | M8: ='Working capital'!L11 -> 285,000 | N8: ='Working capital'!M11 -> 366,371 | O8: ='Working capital'!N11 -> 387,278 | P8: ='Working capital'!O11 -> 425,879
C9: Invoiced billings | E9: ='Revenue'!E34 -> 190,830 | F9: ='Revenue'!F34 -> 256,160 | G9: ='Revenue'!G34 -> 283,840 | H9: ='Revenue'!H34 -> 298,770 | I9: ='Revenue'!I34 -> 329,150 | J9: ='Revenue'!J34 -> 349,180 | K9: ='Revenue'!K34 -> 377,435 | L9: ='Revenue'!L34 -> 415,665 | M9: ='Revenue'!M34 -> 439,645 | N9: ='Revenue'!N34 -> 480,225 | O9: ='Revenue'!O34 -> 511,055 | P9: ='Revenue'!P34 -> 549,010
C10: Customer receipts | E10: ='Working capital'!E8+'Working capital'!E9-'Working capital'!E11 -> 173,330 | F10: ='Working capital'!F8+'Working capital'!F9-'Working capital'!F11 -> 238,660 | G10: ='Working capital'!G8+'Working capital'!G9-'Working capital'!G11 -> 266,340 | H10: ='Working capital'!H8+'Working capital'!H9-'Working capital'!H11 -> 281,270 | I10: ='Working capital'!I8+'Working capital'!I9-'Working capital'!I11 -> 311,650 | J10: ='Working capital'!J8+'Working capital'!J9-'Working capital'!J11 -> 331,680 | K10: ='Working capital'!K8+'Working capital'!K9-'Working capital'!K11 -> 359,935 | L10: ='Working capital'!L8+'Working capital'!L9-'Working capital'!L11 -> 398,165 | M10: ='Working capital'!M8+'Working capital'!M9-'Working capital'!M11 -> 358,274 | N10: ='Working capital'!N8+'Working capital'!N9-'Working capital'!N11 -> 459,318 | O10: ='Working capital'!O8+'Working capital'!O9-'Working capital'!O11 -> 472,454 | P10: ='Working capital'!P8+'Working capital'!P9-'Working capital'!P11 -> 532,139
C11: Closing receivables | E11: ='Actual inputs'!$E$45+('Actual inputs'!$E$63-'Actual inputs'!$E$45)*1/8 -> 162,500 | F11: ='Actual inputs'!$E$45+('Actual inputs'!$E$63-'Actual inputs'!$E$45)*2/8 -> 180,000 | G11: ='Actual inputs'!$E$45+('Actual inputs'!$E$63-'Actual inputs'!$E$45)*3/8 -> 197,500 | H11: ='Actual inputs'!$E$45+('Actual inputs'!$E$63-'Actual inputs'!$E$45)*4/8 -> 215,000 | I11: ='Actual inputs'!$E$45+('Actual inputs'!$E$63-'Actual inputs'!$E$45)*5/8 -> 232,500 | J11: ='Actual inputs'!$E$45+('Actual inputs'!$E$63-'Actual inputs'!$E$45)*6/8 -> 250,000 | K11: ='Actual inputs'!$E$45+('Actual inputs'!$E$63-'Actual inputs'!$E$45)*7/8 -> 267,500 | L11: ='Actual inputs'!$E$45+('Actual inputs'!$E$63-'Actual inputs'!$E$45)*8/8 -> 285,000 | M11: =MAX(SUMIFS($F$26:$F$33,$I$26:$I$33,">"&46295),MIN('Working capital'!M9*'Assumptions'!M47/30,'Working capital'!M8+'Working capital'!M9-SUMIFS($F$26:$F$33,$I$26:$I$33,">="&46266,$I$26:$I$33,"<="&46295))) -> 366,371 | N11: =MAX(SUMIFS($F$26:$F$33,$I$26:$I$33,">"&46326),MIN('Working capital'!N9*'Assumptions'!N47/31,'Working capital'!N8+'Working capital'!N9-SUMIFS($F$26:$F$33,$I$26:$I$33,">="&46296,$I$26:$I$33,"<="&46326))) -> 387,278 | O11: =MAX(SUMIFS($F$26:$F$33,$I$26:$I$33,">"&46356),MIN('Working capital'!O9*'Assumptions'!O47/30,'Working capital'!O8+'Working capital'!O9-SUMIFS($F$26:$F$33,$I$26:$I$33,">="&46327,$I$26:$I$33,"<="&46356))) -> 425,879 | P11: =MAX(SUMIFS($F$26:$F$33,$I$26:$I$33,">"&46387),MIN('Working capital'!P9*'Assumptions'!P47/31,'Working capital'!P8+'Working capital'!P9-SUMIFS($F$26:$F$33,$I$26:$I$33,">="&46357,$I$26:$I$33,"<="&46387))) -> 442,750
C12: Implied AR / billings × month days | E12: ='Working capital'!E11/'Working capital'!E9*31 -> 26.4 | F12: ='Working capital'!F11/'Working capital'!F9*28 -> 19.7 | G12: ='Working capital'!G11/'Working capital'!G9*31 -> 21.6 | H12: ='Working capital'!H11/'Working capital'!H9*30 -> 21.6 | I12: ='Working capital'!I11/'Working capital'!I9*31 -> 21.9 | J12: ='Working capital'!J11/'Working capital'!J9*30 -> 21.5 | K12: ='Working capital'!K11/'Working capital'!K9*31 -> 22.0 | L12: ='Working capital'!L11/'Working capital'!L9*31 -> 21.3 | M12: ='Working capital'!M11/'Working capital'!M9*30 -> 25.0 | N12: ='Working capital'!N11/'Working capital'!N9*31 -> 25.0 | O12: ='Working capital'!O11/'Working capital'!O9*30 -> 25.0 | P12: ='Working capital'!P11/'Working capital'!P9*31 -> 25.0
C13: Opening payables | E13: ='Actual inputs'!$E$46 -> 58,000 | F13: ='Working capital'!E16 -> 66,375 | G13: ='Working capital'!F16 -> 74,750 | H13: ='Working capital'!G16 -> 83,125 | I13: ='Working capital'!H16 -> 91,500 | J13: ='Working capital'!I16 -> 99,875 | K13: ='Working capital'!J16 -> 108,250 | L13: ='Working capital'!K16 -> 116,625 | M13: ='Working capital'!L16 -> 125,000 | N13: ='Working capital'!M16 -> 220,186 | O13: ='Working capital'!N16 -> 224,925 | P13: ='Working capital'!O16 -> 245,171
C14: Vendor expenses | E14: =-'P&L'!E13-'P&L'!E14-'P&L'!E20-'P&L'!E22-'P&L'!E23 -> 124,028 | F14: =-'P&L'!F13-'P&L'!F14-'P&L'!F20-'P&L'!F22-'P&L'!F23 -> 128,612 | G14: =-'P&L'!G13-'P&L'!G14-'P&L'!G20-'P&L'!G22-'P&L'!G23 -> 134,575 | H14: =-'P&L'!H13-'P&L'!H14-'P&L'!H20-'P&L'!H22-'P&L'!H23 -> 140,477 | I14: =-'P&L'!I13-'P&L'!I14-'P&L'!I20-'P&L'!I22-'P&L'!I23 -> 147,717 | J14: =-'P&L'!J13-'P&L'!J14-'P&L'!J20-'P&L'!J22-'P&L'!J23 -> 157,614 | K14: =-'P&L'!K13-'P&L'!K14-'P&L'!K20-'P&L'!K22-'P&L'!K23 -> 174,467 | L14: =-'P&L'!L13-'P&L'!L14-'P&L'!L20-'P&L'!L22-'P&L'!L23 -> 185,528 | M14: =-'P&L'!M13-'P&L'!M14-'P&L'!M20-'P&L'!M22-'P&L'!M23 -> 206,449 | N14: =-'P&L'!N13-'P&L'!N14-'P&L'!N20-'P&L'!N22-'P&L'!N23 -> 218,577 | O14: =-'P&L'!O13-'P&L'!O14-'P&L'!O20-'P&L'!O22-'P&L'!O23 -> 233,219 | P14: =-'P&L'!P13-'P&L'!P14-'P&L'!P20-'P&L'!P22-'P&L'!P23 -> 247,660
C15: Vendor payments | E15: ='Working capital'!E13+'Working capital'!E14-'Working capital'!E16 -> 115,653 | F15: ='Working capital'!F13+'Working capital'!F14-'Working capital'!F16 -> 120,237 | G15: ='Working capital'!G13+'Working capital'!G14-'Working capital'!G16 -> 126,200 | H15: ='Working capital'!H13+'Working capital'!H14-'Working capital'!H16 -> 132,102 | I15: ='Working capital'!I13+'Working capital'!I14-'Working capital'!I16 -> 139,342 | J15: ='Working capital'!J13+'Working capital'!J14-'Working capital'!J16 -> 149,239 | K15: ='Working capital'!K13+'Working capital'!K14-'Working capital'!K16 -> 166,092 | L15: ='Working capital'!L13+'Working capital'!L14-'Working capital'!L16 -> 177,153 | M15: ='Working capital'!M13+'Working capital'!M14-'Working capital'!M16 -> 111,263 | N15: ='Working capital'!N13+'Working capital'!N14-'Working capital'!N16 -> 213,839 | O15: ='Working capital'!O13+'Working capital'!O14-'Working capital'!O16 -> 212,972 | P15: ='Working capital'!P13+'Working capital'!P14-'Working capital'!P16 -> 241,639
C16: Closing payables | E16: ='Actual inputs'!$E$46+('Actual inputs'!$E$64-'Actual inputs'!$E$46)*1/8 -> 66,375 | F16: ='Actual inputs'!$E$46+('Actual inputs'!$E$64-'Actual inputs'!$E$46)*2/8 -> 74,750 | G16: ='Actual inputs'!$E$46+('Actual inputs'!$E$64-'Actual inputs'!$E$46)*3/8 -> 83,125 | H16: ='Actual inputs'!$E$46+('Actual inputs'!$E$64-'Actual inputs'!$E$46)*4/8 -> 91,500 | I16: ='Actual inputs'!$E$46+('Actual inputs'!$E$64-'Actual inputs'!$E$46)*5/8 -> 99,875 | J16: ='Actual inputs'!$E$46+('Actual inputs'!$E$64-'Actual inputs'!$E$46)*6/8 -> 108,250 | K16: ='Actual inputs'!$E$46+('Actual inputs'!$E$64-'Actual inputs'!$E$46)*7/8 -> 116,625 | L16: ='Actual inputs'!$E$46+('Actual inputs'!$E$64-'Actual inputs'!$E$46)*8/8 -> 125,000 | M16: ='Working capital'!M14*'Assumptions'!M50/30+SUM($G$40:$G$47)-SUMIFS($M$40:$M$47,$L$40:$L$47,">0",$L$40:$L$47,"<="&46295) -> 220,186 | N16: ='Working capital'!N14*'Assumptions'!N50/31+SUM($G$40:$G$47)-SUMIFS($M$40:$M$47,$L$40:$L$47,">0",$L$40:$L$47,"<="&46326) -> 224,925 | O16: ='Working capital'!O14*'Assumptions'!O50/30+SUM($G$40:$G$47)-SUMIFS($M$40:$M$47,$L$40:$L$47,">0",$L$40:$L$47,"<="&46356) -> 245,171 | P16: ='Working capital'!P14*'Assumptions'!P50/31+SUM($G$40:$G$47)-SUMIFS($M$40:$M$47,$L$40:$L$47,">0",$L$40:$L$47,"<="&46387) -> 251,193
C17: Prepayments | E17: ='Actual inputs'!$E$48 -> 30,000 | F17: ='Actual inputs'!$E$48 -> 30,000 | G17: ='Actual inputs'!$E$48 -> 30,000 | H17: ='Actual inputs'!$E$48 -> 30,000 | I17: ='Actual inputs'!$E$48 -> 30,000 | J17: ='Actual inputs'!$E$48 -> 30,000 | K17: ='Actual inputs'!$E$48 -> 30,000 | L17: ='Actual inputs'!$E$48 -> 30,000 | M17: ='Actual inputs'!$E$48 -> 30,000 | N17: ='Actual inputs'!$E$48 -> 30,000 | O17: ='Actual inputs'!$E$48 -> 30,000 | P17: ='Actual inputs'!$E$48 -> 30,000
C18: Payroll accruals | E18: ='Actual inputs'!$E$49 -> 32,000 | F18: ='Actual inputs'!$E$49 -> 32,000 | G18: ='Actual inputs'!$E$49 -> 32,000 | H18: ='Actual inputs'!$E$49 -> 32,000 | I18: ='Actual inputs'!$E$49 -> 32,000 | J18: ='Actual inputs'!$E$49 -> 32,000 | K18: ='Actual inputs'!$E$49 -> 32,000 | L18: ='Actual inputs'!$E$49 -> 32,000 | M18: ='Actual inputs'!$E$49 -> 32,000 | N18: ='Actual inputs'!$E$49 -> 32,000 | O18: ='Actual inputs'!$E$49 -> 32,000 | P18: ='Actual inputs'!$E$49 -> 32,000
C23: Receivables at 31 August
C25: Record | D25: Invoice date | E25: Due date | F25: Outstanding | G25: Expected receipt | H25: Delay days | I25: Scheduled receipt | J25: Overdue days
C26: AR-001 | D26: 2026-06-05 | E26: 2026-07-05 | F26: 25,650 | G26: 2026-09-04 | H26: ='Assumptions'!M53 -> 0 | I26: =G26+H26 -> 2026-09-04 | J26: =MAX(0,46265-E26) -> 57
C27: AR-002 | D27: 2026-06-07 | E27: 2026-07-07 | F27: 34,200 | G27: 2026-09-11 | H27: ='Assumptions'!M53 -> 0 | I27: =G27+H27 -> 2026-09-11 | J27: =MAX(0,46265-E27) -> 55
C28: AR-003 | D28: 2026-06-09 | E28: 2026-07-09 | F28: 37,050 | G28: 2026-09-18 | H28: ='Assumptions'!M53 -> 0 | I28: =G28+H28 -> 2026-09-18 | J28: =MAX(0,46265-E28) -> 53
C29: AR-004 | D29: 2026-07-11 | E29: 2026-08-11 | F29: 39,900 | G29: 2026-09-04 | H29: ='Assumptions'!M53 -> 0 | I29: =G29+H29 -> 2026-09-04 | J29: =MAX(0,46265-E29) -> 20
C30: AR-005 | D30: 2026-07-13 | E30: 2026-08-13 | F30: 34,200 | G30: 2026-09-11 | H30: ='Assumptions'!M53 -> 0 | I30: =G30+H30 -> 2026-09-11 | J30: =MAX(0,46265-E30) -> 18
C31: AR-006 | D31: 2026-08-15 | E31: 2026-09-15 | F31: 39,900 | G31: 2026-09-18 | H31: ='Assumptions'!M53 -> 0 | I31: =G31+H31 -> 2026-09-18 | J31: =MAX(0,46265-E31) -> 0
C32: AR-007 | D32: 2026-08-17 | E32: 2026-09-17 | F32: 37,050 | G32: 2026-09-25 | H32: ='Assumptions'!M53 -> 0 | I32: =G32+H32 -> 2026-09-25 | J32: =MAX(0,46265-E32) -> 0
C33: AR-008 | D33: 2026-08-19 | E33: 2026-09-19 | F33: 37,050 | G33: 2026-09-25 | H33: ='Assumptions'!M53 -> 0 | I33: =G33+H33 -> 2026-09-25 | J33: =MAX(0,46265-E33) -> 0
C37: Payables and authorisation
C39: Record | D39: Due date | E39: Invoice total | F39: Paid | G39: Outstanding | H39: Approval | I39: Review | J39: Hold | K39: Planned date | L39: Scheduled date | M39: Eligible | N39: Next action
C40: AP-001 | D40: 2026-08-05 | E40: 11,250 | F40: 0 | G40: =E40-F40 -> 11,250 | H40: Pending | I40: Complete | J40: Yes | K40: 2026-09-04 | L40: =IF(AND(H40="Approved",I40="Complete",J40="No"),K40,0) -> 00:00:00 | M40: =IF(L40>0,G40,0) -> 0 | N40: =IF(H40<>"Approved","Approval required",IF(I40<>"Complete","Review required",IF(J40<>"No","Release hold","Ready"))) -> Approval required
C41: AP-002 | D41: 2026-08-07 | E41: 18,750 | F41: 3,750 | G41: =E41-F41 -> 15,000 | H41: Approved | I41: Complete | J41: No | K41: 2026-09-11 | L41: =IF(AND(H41="Approved",I41="Complete",J41="No"),K41,0) -> 2026-09-11 | M41: =IF(L41>0,G41,0) -> 15,000 | N41: =IF(H41<>"Approved","Approval required",IF(I41<>"Complete","Review required",IF(J41<>"No","Release hold","Ready"))) -> Ready
C42: AP-003 | D42: 2026-08-09 | E42: 16,250 | F42: 0 | G42: =E42-F42 -> 16,250 | H42: Approved | I42: Pending | J42: No | K42: 2026-09-18 | L42: =IF(AND(H42="Approved",I42="Complete",J42="No"),K42,0) -> 00:00:00 | M42: =IF(L42>0,G42,0) -> 0 | N42: =IF(H42<>"Approved","Approval required",IF(I42<>"Complete","Review required",IF(J42<>"No","Release hold","Ready"))) -> Review required
C43: AP-004 | D43: 2026-08-11 | E43: 17,500 | F43: 0 | G43: =E43-F43 -> 17,500 | H43: Approved | I43: Complete | J43: No | K43: 2026-09-04 | L43: =IF(AND(H43="Approved",I43="Complete",J43="No"),K43,0) -> 2026-09-04 | M43: =IF(L43>0,G43,0) -> 17,500 | N43: =IF(H43<>"Approved","Approval required",IF(I43<>"Complete","Review required",IF(J43<>"No","Release hold","Ready"))) -> Ready
C44: AP-005 | D44: 2026-09-13 | E44: 17,250 | F44: 2,250 | G44: =E44-F44 -> 15,000 | H44: Approved | I44: Complete | J44: No | K44: 2026-09-11 | L44: =IF(AND(H44="Approved",I44="Complete",J44="No"),K44,0) -> 2026-09-11 | M44: =IF(L44>0,G44,0) -> 15,000 | N44: =IF(H44<>"Approved","Approval required",IF(I44<>"Complete","Review required",IF(J44<>"No","Release hold","Ready"))) -> Ready
C45: AP-006 | D45: 2026-09-15 | E45: 17,500 | F45: 0 | G45: =E45-F45 -> 17,500 | H45: Approved | I45: Complete | J45: No | K45: 2026-09-18 | L45: =IF(AND(H45="Approved",I45="Complete",J45="No"),K45,0) -> 2026-09-18 | M45: =IF(L45>0,G45,0) -> 17,500 | N45: =IF(H45<>"Approved","Approval required",IF(I45<>"Complete","Review required",IF(J45<>"No","Release hold","Ready"))) -> Ready
C46: AP-007 | D46: 2026-09-17 | E46: 16,250 | F46: 0 | G46: =E46-F46 -> 16,250 | H46: Approved | I46: Complete | J46: No | K46: 2026-09-25 | L46: =IF(AND(H46="Approved",I46="Complete",J46="No"),K46,0) -> 2026-09-25 | M46: =IF(L46>0,G46,0) -> 16,250 | N46: =IF(H46<>"Approved","Approval required",IF(I46<>"Complete","Review required",IF(J46<>"No","Release hold","Ready"))) -> Ready
C47: AP-008 | D47: 2026-09-19 | E47: 16,250 | F47: 0 | G47: =E47-F47 -> 16,250 | H47: Approved | I47: Complete | J47: No | K47: 2026-09-25 | L47: =IF(AND(H47="Approved",I47="Complete",J47="No"),K47,0) -> 2026-09-25 | M47: =IF(L47>0,G47,0) -> 16,250 | N47: =IF(H47<>"Approved","Approval required",IF(I47<>"Complete","Review required",IF(J47<>"No","Release hold","Ready"))) -> Ready

Sheet Assets debt
C2: Assets debt
C4: Selected case | E4: ='Assumptions'!$G$4 -> Base | H4: EUR · entirely fictional
E6: Actual | F6: Actual | G6: Actual | H6: Actual | I6: Actual | J6: Actual | K6: Actual | L6: Actual | M6: Forecast | N6: Forecast | O6: Forecast | P6: Forecast
E7: 2026-01-01 | F7: 2026-02-01 | G7: 2026-03-01 | H7: 2026-04-01 | I7: 2026-05-01 | J7: 2026-06-01 | K7: 2026-07-01 | L7: 2026-08-01 | M7: 2026-09-01 | N7: 2026-10-01 | O7: 2026-11-01 | P7: 2026-12-01
C8: Opening asset cost | E8: ='Actual inputs'!$E$50 -> 180,000 | F8: ='Assets debt'!E10 -> 188,000 | G8: ='Assets debt'!F10 -> 196,500 | H8: ='Assets debt'!G10 -> 205,500 | I8: ='Assets debt'!H10 -> 215,000 | J8: ='Assets debt'!I10 -> 225,000 | K8: ='Assets debt'!J10 -> 235,500 | L8: ='Assets debt'!K10 -> 246,500 | M8: ='Assets debt'!L10 -> 258,000 | N8: ='Assets debt'!M10 -> 270,000 | O8: ='Assets debt'!N10 -> 282,500 | P8: ='Assets debt'!O10 -> 295,500
C9: Capital expenditure | E9: ='Assumptions'!E41 -> 8,000 | F9: ='Assumptions'!F41 -> 8,500 | G9: ='Assumptions'!G41 -> 9,000 | H9: ='Assumptions'!H41 -> 9,500 | I9: ='Assumptions'!I41 -> 10,000 | J9: ='Assumptions'!J41 -> 10,500 | K9: ='Assumptions'!K41 -> 11,000 | L9: ='Assumptions'!L41 -> 11,500 | M9: ='Assumptions'!M41 -> 12,000 | N9: ='Assumptions'!N41 -> 12,500 | O9: ='Assumptions'!O41 -> 13,000 | P9: ='Assumptions'!P41 -> 13,500
C10: Closing asset cost | E10: ='Assets debt'!E8+'Assets debt'!E9 -> 188,000 | F10: ='Assets debt'!F8+'Assets debt'!F9 -> 196,500 | G10: ='Assets debt'!G8+'Assets debt'!G9 -> 205,500 | H10: ='Assets debt'!H8+'Assets debt'!H9 -> 215,000 | I10: ='Assets debt'!I8+'Assets debt'!I9 -> 225,000 | J10: ='Assets debt'!J8+'Assets debt'!J9 -> 235,500 | K10: ='Assets debt'!K8+'Assets debt'!K9 -> 246,500 | L10: ='Assets debt'!L8+'Assets debt'!L9 -> 258,000 | M10: ='Assets debt'!M8+'Assets debt'!M9 -> 270,000 | N10: ='Assets debt'!N8+'Assets debt'!N9 -> 282,500 | O10: ='Assets debt'!O8+'Assets debt'!O9 -> 295,500 | P10: ='Assets debt'!P8+'Assets debt'!P9 -> 309,000
C11: Opening accumulated depreciation | E11: ='Actual inputs'!$E$51 -> 48,000 | F11: ='Assets debt'!E13 -> 51,222 | G11: ='Assets debt'!F13 -> 54,681 | H11: ='Assets debt'!G13 -> 58,389 | I11: ='Assets debt'!H13 -> 62,361 | J11: ='Assets debt'!I13 -> 66,611 | K11: ='Assets debt'!J13 -> 71,153 | L11: ='Assets debt'!K13 -> 76,000 | M11: ='Assets debt'!L13 -> 81,167 | N11: ='Assets debt'!M13 -> 86,667 | O11: ='Assets debt'!N13 -> 92,514 | P11: ='Assets debt'!O13 -> 98,722
C12: Depreciation charge | E12: ='Actual inputs'!$E$57+('Assets debt'!E10-'Actual inputs'!$E$50)/'Actual inputs'!$E$58 -> 3,222 | F12: ='Actual inputs'!$E$57+('Assets debt'!F10-'Actual inputs'!$E$50)/'Actual inputs'!$E$58 -> 3,458 | G12: ='Actual inputs'!$E$57+('Assets debt'!G10-'Actual inputs'!$E$50)/'Actual inputs'!$E$58 -> 3,708 | H12: ='Actual inputs'!$E$57+('Assets debt'!H10-'Actual inputs'!$E$50)/'Actual inputs'!$E$58 -> 3,972 | I12: ='Actual inputs'!$E$57+('Assets debt'!I10-'Actual inputs'!$E$50)/'Actual inputs'!$E$58 -> 4,250 | J12: ='Actual inputs'!$E$57+('Assets debt'!J10-'Actual inputs'!$E$50)/'Actual inputs'!$E$58 -> 4,542 | K12: ='Actual inputs'!$E$57+('Assets debt'!K10-'Actual inputs'!$E$50)/'Actual inputs'!$E$58 -> 4,847 | L12: ='Actual inputs'!$E$57+('Assets debt'!L10-'Actual inputs'!$E$50)/'Actual inputs'!$E$58 -> 5,167 | M12: ='Actual inputs'!$E$57+('Assets debt'!M10-'Actual inputs'!$E$50)/'Actual inputs'!$E$58 -> 5,500 | N12: ='Actual inputs'!$E$57+('Assets debt'!N10-'Actual inputs'!$E$50)/'Actual inputs'!$E$58 -> 5,847 | O12: ='Actual inputs'!$E$57+('Assets debt'!O10-'Actual inputs'!$E$50)/'Actual inputs'!$E$58 -> 6,208 | P12: ='Actual inputs'!$E$57+('Assets debt'!P10-'Actual inputs'!$E$50)/'Actual inputs'!$E$58 -> 6,583
C13: Closing accumulated depreciation | E13: ='Assets debt'!E11+'Assets debt'!E12 -> 51,222 | F13: ='Assets debt'!F11+'Assets debt'!F12 -> 54,681 | G13: ='Assets debt'!G11+'Assets debt'!G12 -> 58,389 | H13: ='Assets debt'!H11+'Assets debt'!H12 -> 62,361 | I13: ='Assets debt'!I11+'Assets debt'!I12 -> 66,611 | J13: ='Assets debt'!J11+'Assets debt'!J12 -> 71,153 | K13: ='Assets debt'!K11+'Assets debt'!K12 -> 76,000 | L13: ='Assets debt'!L11+'Assets debt'!L12 -> 81,167 | M13: ='Assets debt'!M11+'Assets debt'!M12 -> 86,667 | N13: ='Assets debt'!N11+'Assets debt'!N12 -> 92,514 | O13: ='Assets debt'!O11+'Assets debt'!O12 -> 98,722 | P13: ='Assets debt'!P11+'Assets debt'!P12 -> 105,306
C14: Net fixed assets | E14: ='Assets debt'!E10-'Assets debt'!E13 -> 136,778 | F14: ='Assets debt'!F10-'Assets debt'!F13 -> 141,819 | G14: ='Assets debt'!G10-'Assets debt'!G13 -> 147,111 | H14: ='Assets debt'!H10-'Assets debt'!H13 -> 152,639 | I14: ='Assets debt'!I10-'Assets debt'!I13 -> 158,389 | J14: ='Assets debt'!J10-'Assets debt'!J13 -> 164,347 | K14: ='Assets debt'!K10-'Assets debt'!K13 -> 170,500 | L14: ='Assets debt'!L10-'Assets debt'!L13 -> 176,833 | M14: ='Assets debt'!M10-'Assets debt'!M13 -> 183,333 | N14: ='Assets debt'!N10-'Assets debt'!N13 -> 189,986 | O14: ='Assets debt'!O10-'Assets debt'!O13 -> 196,778 | P14: ='Assets debt'!P10-'Assets debt'!P13 -> 203,694
C15: Opening debt | E15: ='Actual inputs'!$E$52 -> 240,000 | F15: ='Assets debt'!E17 -> 235,000 | G15: ='Assets debt'!F17 -> 230,000 | H15: ='Assets debt'!G17 -> 225,000 | I15: ='Assets debt'!H17 -> 220,000 | J15: ='Assets debt'!I17 -> 215,000 | K15: ='Assets debt'!J17 -> 210,000 | L15: ='Assets debt'!K17 -> 205,000 | M15: ='Assets debt'!L17 -> 200,000 | N15: ='Assets debt'!M17 -> 195,000 | O15: ='Assets debt'!N17 -> 190,000 | P15: ='Assets debt'!O17 -> 185,000
C16: Principal repayment | E16: =MIN('Actual inputs'!$E$59,'Assets debt'!E15) -> 5,000 | F16: =MIN('Actual inputs'!$E$59,'Assets debt'!F15) -> 5,000 | G16: =MIN('Actual inputs'!$E$59,'Assets debt'!G15) -> 5,000 | H16: =MIN('Actual inputs'!$E$59,'Assets debt'!H15) -> 5,000 | I16: =MIN('Actual inputs'!$E$59,'Assets debt'!I15) -> 5,000 | J16: =MIN('Actual inputs'!$E$59,'Assets debt'!J15) -> 5,000 | K16: =MIN('Actual inputs'!$E$59,'Assets debt'!K15) -> 5,000 | L16: =MIN('Actual inputs'!$E$59,'Assets debt'!L15) -> 5,000 | M16: =MIN('Actual inputs'!$E$59,'Assets debt'!M15) -> 5,000 | N16: =MIN('Actual inputs'!$E$59,'Assets debt'!N15) -> 5,000 | O16: =MIN('Actual inputs'!$E$59,'Assets debt'!O15) -> 5,000 | P16: =MIN('Actual inputs'!$E$59,'Assets debt'!P15) -> 5,000
C17: Closing debt | E17: ='Assets debt'!E15-'Assets debt'!E16 -> 235,000 | F17: ='Assets debt'!F15-'Assets debt'!F16 -> 230,000 | G17: ='Assets debt'!G15-'Assets debt'!G16 -> 225,000 | H17: ='Assets debt'!H15-'Assets debt'!H16 -> 220,000 | I17: ='Assets debt'!I15-'Assets debt'!I16 -> 215,000 | J17: ='Assets debt'!J15-'Assets debt'!J16 -> 210,000 | K17: ='Assets debt'!K15-'Assets debt'!K16 -> 205,000 | L17: ='Assets debt'!L15-'Assets debt'!L16 -> 200,000 | M17: ='Assets debt'!M15-'Assets debt'!M16 -> 195,000 | N17: ='Assets debt'!N15-'Assets debt'!N16 -> 190,000 | O17: ='Assets debt'!O15-'Assets debt'!O16 -> 185,000 | P17: ='Assets debt'!P15-'Assets debt'!P16 -> 180,000
C18: Interest | E18: ='Assets debt'!E15*'Actual inputs'!$E$60/12 -> 1,300 | F18: ='Assets debt'!F15*'Actual inputs'!$E$60/12 -> 1,273 | G18: ='Assets debt'!G15*'Actual inputs'!$E$60/12 -> 1,246 | H18: ='Assets debt'!H15*'Actual inputs'!$E$60/12 -> 1,219 | I18: ='Assets debt'!I15*'Actual inputs'!$E$60/12 -> 1,192 | J18: ='Assets debt'!J15*'Actual inputs'!$E$60/12 -> 1,165 | K18: ='Assets debt'!K15*'Actual inputs'!$E$60/12 -> 1,138 | L18: ='Assets debt'!L15*'Actual inputs'!$E$60/12 -> 1,110 | M18: ='Assets debt'!M15*'Actual inputs'!$E$60/12 -> 1,083 | N18: ='Assets debt'!N15*'Actual inputs'!$E$60/12 -> 1,056 | O18: ='Assets debt'!O15*'Actual inputs'!$E$60/12 -> 1,029 | P18: ='Assets debt'!P15*'Actual inputs'!$E$60/12 -> 1,002
C19: Opening net tax balance | E19: ='Actual inputs'!$E$53 -> 18,000 | F19: ='Assets debt'!E22 -> 18,000 | G19: ='Assets debt'!F22 -> 18,000 | H19: ='Assets debt'!G22 -> 6,000 | I19: ='Assets debt'!H22 -> 6,000 | J19: ='Assets debt'!I22 -> 6,000 | K19: ='Assets debt'!J22 -> (4,000) | L19: ='Assets debt'!K22 -> (4,000) | M19: ='Assets debt'!L22 -> (4,000) | N19: ='Assets debt'!M22 -> (16,000) | O19: ='Assets debt'!N22 -> (14,006) | P19: ='Assets debt'!O22 -> (9,461)
C20: Current tax charge | E20: =-'P&L'!E31 -> 0 | F20: =-'P&L'!F31 -> 0 | G20: =-'P&L'!G31 -> 0 | H20: =-'P&L'!H31 -> 0 | I20: =-'P&L'!I31 -> 0 | J20: =-'P&L'!J31 -> 0 | K20: =-'P&L'!K31 -> 0 | L20: =-'P&L'!L31 -> 0 | M20: =-'P&L'!M31 -> 0 | N20: =-'P&L'!N31 -> 1,994 | O20: =-'P&L'!O31 -> 4,545 | P20: =-'P&L'!P31 -> 7,913
C21: Current tax paid | E21: ='Assumptions'!E44 -> 0 | F21: ='Assumptions'!F44 -> 0 | G21: ='Assumptions'!G44 -> 12,000 | H21: ='Assumptions'!H44 -> 0 | I21: ='Assumptions'!I44 -> 0 | J21: ='Assumptions'!J44 -> 10,000 | K21: ='Assumptions'!K44 -> 0 | L21: ='Assumptions'!L44 -> 0 | M21: ='Assumptions'!M44 -> 12,000 | N21: ='Assumptions'!N44 -> 0 | O21: ='Assumptions'!O44 -> 0 | P21: ='Assumptions'!P44 -> 12,000
C22: Net tax liability / (prepayment) | E22: ='Assets debt'!E19+'Assets debt'!E20-'Assets debt'!E21 -> 18,000 | F22: ='Assets debt'!F19+'Assets debt'!F20-'Assets debt'!F21 -> 18,000 | G22: ='Assets debt'!G19+'Assets debt'!G20-'Assets debt'!G21 -> 6,000 | H22: ='Assets debt'!H19+'Assets debt'!H20-'Assets debt'!H21 -> 6,000 | I22: ='Assets debt'!I19+'Assets debt'!I20-'Assets debt'!I21 -> 6,000 | J22: ='Assets debt'!J19+'Assets debt'!J20-'Assets debt'!J21 -> (4,000) | K22: ='Assets debt'!K19+'Assets debt'!K20-'Assets debt'!K21 -> (4,000) | L22: ='Assets debt'!L19+'Assets debt'!L20-'Assets debt'!L21 -> (4,000) | M22: ='Assets debt'!M19+'Assets debt'!M20-'Assets debt'!M21 -> (16,000) | N22: ='Assets debt'!N19+'Assets debt'!N20-'Assets debt'!N21 -> (14,006) | O22: ='Assets debt'!O19+'Assets debt'!O20-'Assets debt'!O21 -> (9,461) | P22: ='Assets debt'!P19+'Assets debt'!P20-'Assets debt'!P21 -> (13,549)

Sheet Budget
C2: Budget
C4: Selected case | E4: ='Assumptions'!$G$4 -> Base | H4: EUR · entirely fictional
E6: Original budget | F6: Original budget | G6: Original budget | H6: Original budget | I6: Original budget | J6: Original budget | K6: Original budget | L6: Original budget | M6: Original budget | N6: Original budget | O6: Original budget | P6: Original budget
E7: 2026-01-01 | F7: 2026-02-01 | G7: 2026-03-01 | H7: 2026-04-01 | I7: 2026-05-01 | J7: 2026-06-01 | K7: 2026-07-01 | L7: 2026-08-01 | M7: 2026-09-01 | N7: 2026-10-01 | O7: 2026-11-01 | P7: 2026-12-01
C8: Subscription revenue | E8: 85,000 | F8: 93,500 | G8: 102,000 | H8: 110,500 | I8: 119,000 | J8: 127,500 | K8: 136,000 | L8: 144,500 | M8: 153,000 | N8: 161,500 | O8: 170,000 | P8: 178,500
C9: Usage / onboarding revenue | E9: 100,000 | F9: 115,000 | G9: 130,000 | H9: 145,000 | I9: 160,000 | J9: 175,000 | K9: 190,000 | L9: 205,000 | M9: 220,000 | N9: 235,000 | O9: 250,000 | P9: 265,000
C10: Enterprise platform revenue | E10: 63,000 | F10: 68,500 | G10: 74,000 | H10: 79,500 | I10: 85,000 | J10: 90,500 | K10: 96,000 | L10: 101,500 | M10: 107,000 | N10: 112,500 | O10: 118,000 | P10: 123,500
C11: Total revenue | E11: =E8+E9+E10 -> 248,000 | F11: =F8+F9+F10 -> 277,000 | G11: =G8+G9+G10 -> 306,000 | H11: =H8+H9+H10 -> 335,000 | I11: =I8+I9+I10 -> 364,000 | J11: =J8+J9+J10 -> 393,000 | K11: =K8+K9+K10 -> 422,000 | L11: =L8+L9+L10 -> 451,000 | M11: =M8+M9+M10 -> 480,000 | N11: =N8+N9+N10 -> 509,000 | O11: =O8+O9+O10 -> 538,000 | P11: =P8+P9+P10 -> 567,000
C12: Support payroll | E12: (39,000) | F12: (40,300) | G12: (41,600) | H12: (42,900) | I12: (44,200) | J12: (45,500) | K12: (46,800) | L12: (48,100) | M12: (49,400) | N12: (50,700) | O12: (52,000) | P12: (53,300)
C13: Hosting / model costs | E13: (60,000) | F13: (67,800) | G13: (75,600) | H13: (83,400) | I13: (91,200) | J13: (99,000) | K13: (106,800) | L13: (114,600) | M13: (122,400) | N13: (130,200) | O13: (138,000) | P13: (145,800)
C14: Cloud commitments and platform costs | E14: (36,000) | F14: (37,800) | G14: (39,600) | H14: (41,400) | I14: (43,200) | J14: (45,000) | K14: (46,800) | L14: (48,600) | M14: (50,400) | N14: (52,200) | O14: (54,000) | P14: (55,800)
C15: Total cost of revenue | E15: =E12+E13+E14 -> (135,000) | F15: =F12+F13+F14 -> (145,900) | G15: =G12+G13+G14 -> (156,800) | H15: =H12+H13+H14 -> (167,700) | I15: =I12+I13+I14 -> (178,600) | J15: =J12+J13+J14 -> (189,500) | K15: =K12+K13+K14 -> (200,400) | L15: =L12+L13+L14 -> (211,300) | M15: =M12+M13+M14 -> (222,200) | N15: =N12+N13+N14 -> (233,100) | O15: =O12+O13+O14 -> (244,000) | P15: =P12+P13+P14 -> (254,900)
C16: Gross profit | E16: =E11+E15 -> 113,000 | F16: =F11+F15 -> 131,100 | G16: =G11+G15 -> 149,200 | H16: =H11+H15 -> 167,300 | I16: =I11+I15 -> 185,400 | J16: =J11+J15 -> 203,500 | K16: =K11+K15 -> 221,600 | L16: =L11+L15 -> 239,700 | M16: =M11+M15 -> 257,800 | N16: =N11+N15 -> 275,900 | O16: =O11+O15 -> 294,000 | P16: =P11+P15 -> 312,100
C17: Gross margin | E17: =E16/E11 -> 45.6% | F17: =F16/F11 -> 47.3% | G17: =G16/G11 -> 48.8% | H17: =H16/H11 -> 49.9% | I17: =I16/I11 -> 50.9% | J17: =J16/J11 -> 51.8% | K17: =K16/K11 -> 52.5% | L17: =L16/L11 -> 53.1% | M17: =M16/M11 -> 53.7% | N17: =N16/N11 -> 54.2% | O17: =O16/O11 -> 54.6% | P17: =P16/P11 -> 55.0%
C18: Product development payroll | E18: (90,000) | F18: (92,600) | G18: (95,200) | H18: (97,800) | I18: (100,400) | J18: (103,000) | K18: (105,600) | L18: (108,200) | M18: (110,800) | N18: (113,400) | O18: (116,000) | P18: (118,600)
C19: Sales payroll | E19: (31,000) | F19: (32,400) | G19: (33,800) | H19: (35,200) | I19: (36,600) | J19: (38,000) | K19: (39,400) | L19: (40,800) | M19: (42,200) | N19: (43,600) | O19: (45,000) | P19: (46,400)
C20: Acquisition and brand spend | E20: (24,000) | F20: (25,000) | G20: (26,000) | H20: (27,000) | I20: (28,000) | J20: (29,000) | K20: (30,000) | L20: (31,000) | M20: (32,000) | N20: (33,000) | O20: (34,000) | P20: (35,000)
C21: Administration payroll | E21: (23,600) | F21: (23,600) | G21: (23,600) | H21: (23,600) | I21: (23,600) | J21: (23,600) | K21: (23,600) | L21: (23,600) | M21: (23,600) | N21: (23,600) | O21: (23,600) | P21: (23,600)
C22: Office and administration | E22: (13,000) | F22: (13,000) | G22: (13,000) | H22: (13,000) | I22: (13,000) | J22: (13,000) | K22: (13,000) | L22: (13,000) | M22: (13,000) | N22: (13,000) | O22: (13,000) | P22: (13,000)
C23: Professional fees | E23: (6,500) | F23: (6,500) | G23: (6,500) | H23: (6,500) | I23: (6,500) | J23: (6,500) | K23: (6,500) | L23: (6,500) | M23: (6,500) | N23: (6,500) | O23: (6,500) | P23: (6,500)
C24: Operating expenses | E24: =E18+E19+E20+E21+E22+E23 -> (188,100) | F24: =F18+F19+F20+F21+F22+F23 -> (193,100) | G24: =G18+G19+G20+G21+G22+G23 -> (198,100) | H24: =H18+H19+H20+H21+H22+H23 -> (203,100) | I24: =I18+I19+I20+I21+I22+I23 -> (208,100) | J24: =J18+J19+J20+J21+J22+J23 -> (213,100) | K24: =K18+K19+K20+K21+K22+K23 -> (218,100) | L24: =L18+L19+L20+L21+L22+L23 -> (223,100) | M24: =M18+M19+M20+M21+M22+M23 -> (228,100) | N24: =N18+N19+N20+N21+N22+N23 -> (233,100) | O24: =O18+O19+O20+O21+O22+O23 -> (238,100) | P24: =P18+P19+P20+P21+P22+P23 -> (243,100)
C25: EBITDA | E25: =E16+E24 -> (75,100) | F25: =F16+F24 -> (62,000) | G25: =G16+G24 -> (48,900) | H25: =H16+H24 -> (35,800) | I25: =I16+I24 -> (22,700) | J25: =J16+J24 -> (9,600) | K25: =K16+K24 -> 3,500 | L25: =L16+L24 -> 16,600 | M25: =M16+M24 -> 29,700 | N25: =N16+N24 -> 42,800 | O25: =O16+O24 -> 55,900 | P25: =P16+P24 -> 69,000
C26: EBITDA margin | E26: =E25/E11 -> (30.3%) | F26: =F25/F11 -> (22.4%) | G26: =G25/G11 -> (16.0%) | H26: =H25/H11 -> (10.7%) | I26: =I25/I11 -> (6.2%) | J26: =J25/J11 -> (2.4%) | K26: =K25/K11 -> 0.8% | L26: =L25/L11 -> 3.7% | M26: =M25/M11 -> 6.2% | N26: =N25/N11 -> 8.4% | O26: =O25/O11 -> 10.4% | P26: =P25/P11 -> 12.2%
C27: Depreciation | E27: (3,222) | F27: (3,462) | G27: (3,702) | H27: (3,942) | I27: (4,182) | J27: (4,422) | K27: (4,662) | L27: (4,902) | M27: (5,142) | N27: (5,382) | O27: (5,622) | P27: (5,862)
C28: Operating profit | E28: =E25+E27 -> (78,322) | F28: =F25+F27 -> (65,462) | G28: =G25+G27 -> (52,602) | H28: =H25+H27 -> (39,742) | I28: =I25+I27 -> (26,882) | J28: =J25+J27 -> (14,022) | K28: =K25+K27 -> (1,162) | L28: =L25+L27 -> 11,698 | M28: =M25+M27 -> 24,558 | N28: =N25+N27 -> 37,418 | O28: =O25+O27 -> 50,278 | P28: =P25+P27 -> 63,138
C29: Interest | E29: (1,300) | F29: (1,273) | G29: (1,246) | H29: (1,219) | I29: (1,192) | J29: (1,165) | K29: (1,138) | L29: (1,110) | M29: (1,083) | N29: (1,056) | O29: (1,029) | P29: (1,002)
C30: Profit before tax | E30: =E28+E29 -> (79,622) | F30: =F28+F29 -> (66,735) | G30: =G28+G29 -> (53,848) | H30: =H28+H29 -> (40,961) | I30: =I28+I29 -> (28,074) | J30: =J28+J29 -> (15,187) | K30: =K28+K29 -> (2,300) | L30: =L28+L29 -> 10,588 | M30: =M28+M29 -> 23,475 | N30: =N28+N29 -> 36,362 | O30: =O28+O29 -> 49,249 | P30: =P28+P29 -> 62,136
C31: Illustrative current tax | E31: =-MAX(0,E30)*0.2 -> 0 | F31: =-MAX(0,F30)*0.2 -> 0 | G31: =-MAX(0,G30)*0.2 -> 0 | H31: =-MAX(0,H30)*0.2 -> 0 | I31: =-MAX(0,I30)*0.2 -> 0 | J31: =-MAX(0,J30)*0.2 -> 0 | K31: =-MAX(0,K30)*0.2 -> 0 | L31: =-MAX(0,L30)*0.2 -> (2,118) | M31: =-MAX(0,M30)*0.2 -> (4,695) | N31: =-MAX(0,N30)*0.2 -> (7,272) | O31: =-MAX(0,O30)*0.2 -> (9,850) | P31: =-MAX(0,P30)*0.2 -> (12,427)
C32: Net profit | E32: =E30+E31 -> (79,622) | F32: =F30+F31 -> (66,735) | G32: =G30+G31 -> (53,848) | H32: =H30+H31 -> (40,961) | I32: =I30+I31 -> (28,074) | J32: =J30+J31 -> (15,187) | K32: =K30+K31 -> (2,300) | L32: =L30+L31 -> 8,470 | M32: =M30+M31 -> 18,780 | N32: =N30+N31 -> 29,089 | O32: =O30+O31 -> 39,399 | P32: =P30+P31 -> 49,709
C35: Fictional original annual plan. Forecast case changes do not revise the budget.

Sheet Actual inputs
C2: Actual inputs
C4: Selected case | E4: ='Assumptions'!$G$4 -> Base | H4: EUR · entirely fictional
E6: Actual | F6: Actual | G6: Actual | H6: Actual | I6: Actual | J6: Actual | K6: Actual | L6: Actual | M6: Forecast | N6: Forecast | O6: Forecast | P6: Forecast
E7: 2026-01-01 | F7: 2026-02-01 | G7: 2026-03-01 | H7: 2026-04-01 | I7: 2026-05-01 | J7: 2026-06-01 | K7: 2026-07-01 | L7: 2026-08-01 | M7: 2026-09-01 | N7: 2026-10-01 | O7: 2026-11-01 | P7: 2026-12-01
C8: Support FTE | E8: 7.00 | F8: 7.25 | G8: 7.50 | H8: 7.75 | I8: 8.00 | J8: 8.25 | K8: 8.50 | L8: 8.75
C9: Loaded support pay per month | E9: 5,300 | F9: 5,300 | G9: 5,300 | H9: 5,300 | I9: 5,300 | J9: 5,300 | K9: 5,300 | L9: 5,300
C10: Product development FTE | E10: 13.00 | F10: 13.50 | G10: 14.00 | H10: 14.50 | I10: 15.00 | J10: 15.50 | K10: 16.00 | L10: 16.50
C11: Loaded development pay per month | E11: 6,900 | F11: 6,900 | G11: 6,900 | H11: 6,900 | I11: 6,900 | J11: 6,900 | K11: 6,900 | L11: 6,900
C12: Sales FTE | E12: 5.00 | F12: 5.25 | G12: 5.50 | H12: 5.75 | I12: 6.00 | J12: 6.25 | K12: 6.50 | L12: 6.75
C13: Loaded sales pay per month | E13: 6,200 | F13: 6,200 | G13: 6,200 | H13: 6,200 | I13: 6,200 | J13: 6,200 | K13: 6,200 | L13: 6,200
C14: Administration FTE | E14: 4.00 | F14: 4.00 | G14: 4.00 | H14: 4.00 | I14: 4.00 | J14: 4.00 | K14: 4.00 | L14: 4.00
C15: Loaded administration pay per month | E15: 5,900 | F15: 5,900 | G15: 5,900 | H15: 5,900 | I15: 5,900 | J15: 5,900 | K15: 5,900 | L15: 5,900
C16: Acquisition and brand spend | E16: 24,000 | F16: 25,200 | G16: 26,400 | H16: 27,600 | I16: 28,800 | J16: 30,000 | K16: 31,200 | L16: 32,400
C17: Office and administration | E17: 13,000 | F17: 13,000 | G17: 13,000 | H17: 13,000 | I17: 13,000 | J17: 13,000 | K17: 13,000 | L17: 13,000
C18: Professional fees | E18: 6,500 | F18: 6,500 | G18: 6,500 | H18: 6,500 | I18: 6,500 | J18: 6,500 | K18: 6,500 | L18: 6,500
C19: Capital expenditure | E19: 8,000 | F19: 8,500 | G19: 9,000 | H19: 9,500 | I19: 10,000 | J19: 10,500 | K19: 11,000 | L19: 11,500
C20: Illustrative current tax paid | E20: 0 | F20: 0 | G20: 12,000 | H20: 0 | I20: 0 | J20: 10,000 | K20: 0 | L20: 0
C21: Target receivable days | E21: 25.0 | F21: 25.0 | G21: 25.0 | H21: 25.0 | I21: 25.0 | J21: 25.0 | K21: 25.0 | L21: 25.0
C22: New vendor payable days | E22: 28.0 | F22: 28.0 | G22: 28.0 | H22: 28.0 | I22: 28.0 | J22: 28.0 | K22: 28.0 | L22: 28.0
C23: Opening receivable delay (days) | E23: 0.0 | F23: 0.0 | G23: 0.0 | H23: 0.0 | I23: 0.0 | J23: 0.0 | K23: 0.0 | L23: 0.0
C24: Subscription accounts | E24: 520.0 | F24: 565.0 | G24: 610.0 | H24: 655.0 | I24: 700.0 | J24: 745.0 | K24: 790.0 | L24: 835.0
C25: Subscription monthly price | E25: 159 | F25: 159 | G25: 159 | H25: 159 | I25: 159 | J25: 159 | K25: 159 | L25: 159
C26: Metered million tokens | E26: 16000.0 | F26: 17000.0 | G26: 18500.0 | H26: 20000.0 | I26: 22000.0 | J26: 24500.0 | K26: 28000.0 | L26: 31500.0
C27: Realised revenue / million tokens | E27: 5.80 | F27: 5.80 | G27: 5.80 | H27: 5.70 | I27: 5.70 | J27: 5.60 | K27: 5.50 | L27: 5.50
C28: Input share of metered tokens | E28: 74.0% | F28: 74.0% | G28: 74.0% | H28: 74.0% | I28: 74.0% | J28: 74.0% | K28: 74.0% | L28: 74.0%
C29: Input cost / million tokens | E29: 1.70 | F29: 1.70 | G29: 1.70 | H29: 1.70 | I29: 1.70 | J29: 1.70 | K29: 1.70 | L29: 1.70
C30: Output cost / million tokens | E30: 7.00 | F30: 7.00 | G30: 7.00 | H30: 7.00 | I30: 7.00 | J30: 7.00 | K30: 7.00 | L30: 7.00
C31: Input token cache share | E31: 20.0% | F31: 22.0% | G31: 24.0% | H31: 26.0% | I31: 28.0% | J31: 30.0% | K31: 32.0% | L31: 34.0%
C32: Cached input discount | E32: 80.0% | F32: 80.0% | G32: 80.0% | H32: 80.0% | I32: 80.0% | J32: 80.0% | K32: 80.0% | L32: 80.0%
C33: Enterprise workspaces | E33: 14.0 | F33: 15.0 | G33: 17.0 | H33: 18.0 | I33: 20.0 | J33: 21.0 | K33: 22.0 | L33: 24.0
C34: Enterprise monthly platform fee | E34: 4,300 | F34: 4,300 | G34: 4,300 | H34: 4,300 | I34: 4,300 | J34: 4,300 | K34: 4,300 | L34: 4,300
C35: Compute hours | E35: 5000.0 | F35: 5700.0 | G35: 6400.0 | H35: 7100.0 | I35: 7800.0 | J35: 8500.0 | K35: 9200.0 | L35: 9900.0
C36: Compute hourly cost | E36: 3.10 | F36: 3.10 | G36: 3.10 | H36: 3.10 | I36: 3.10 | J36: 3.10 | K36: 3.10 | L36: 3.10
C37: Monthly cloud commitment | E37: 25,000 | F37: 25,000 | G37: 25,000 | H37: 25,000 | I37: 25,000 | J37: 25,000 | K37: 32,000 | L37: 32,000
C38: Storage security and observability | E38: 9,500 | F38: 10,350 | G38: 11,200 | H38: 12,050 | I38: 12,900 | J38: 13,750 | K38: 14,600 | L38: 15,450
C42: Opening balances and shared assumptions
C44: cash | E44: 1,950,000
C45: ar | E45: 145,000
C46: ap | E46: 58,000
C47: deferred | E47: 90,000
C48: prepaid | E48: 30,000
C49: accruals | E49: 32,000
C50: cost | E50: 180,000
C51: accum | E51: 48,000
C52: debt | E52: 240,000
C53: tax | E53: 18,000
C54: capital | E54: 500,000
C55: mrr | E55: 188,000
C56: accounts | E56: 390
C57: dep | E57: 3,000
C58: life | E58: 36
C59: principal | E59: 5,000
C60: interest | E60: 0
C61: tax Rate | E61: 0
C62: reserve | E62: 250,000
C63: ar Aug | E63: 285,000
C64: ap Aug | E64: 125,000
C65: retained | E65: 1,319,000

Sheet Forecast review
C2: Forecast review
C4: Selected case | E4: ='Assumptions'!$G$4 -> Base | H4: EUR · entirely fictional
E6: Actual | F6: Actual | G6: Actual | H6: Actual | I6: Actual | J6: Actual | K6: Actual | L6: Actual | M6: Forecast | N6: Forecast | O6: Forecast | P6: Forecast
E7: 2026-01-01 | F7: 2026-02-01 | G7: 2026-03-01 | H7: 2026-04-01 | I7: 2026-05-01 | J7: 2026-06-01 | K7: 2026-07-01 | L7: 2026-08-01 | M7: 2026-09-01 | N7: 2026-10-01 | O7: 2026-11-01 | P7: 2026-12-01
C8: Balance sheet equation | E8: ='Balance sheet'!E16-'Balance sheet'!E27 -> 0.00 | F8: ='Balance sheet'!F16-'Balance sheet'!F27 -> 0.00 | G8: ='Balance sheet'!G16-'Balance sheet'!G27 -> 0.00 | H8: ='Balance sheet'!H16-'Balance sheet'!H27 -> 0.00 | I8: ='Balance sheet'!I16-'Balance sheet'!I27 -> 0.00 | J8: ='Balance sheet'!J16-'Balance sheet'!J27 -> 0.00 | K8: ='Balance sheet'!K16-'Balance sheet'!K27 -> 0.00 | L8: ='Balance sheet'!L16-'Balance sheet'!L27 -> 0.00 | M8: ='Balance sheet'!M16-'Balance sheet'!M27 -> 0.00 | N8: ='Balance sheet'!N16-'Balance sheet'!N27 -> 0.00 | O8: ='Balance sheet'!O16-'Balance sheet'!O27 -> 0.00 | P8: ='Balance sheet'!P16-'Balance sheet'!P27 -> 0.00
C9: Cash flow ties to balance sheet | E9: ='Cash flow'!E23-'Balance sheet'!E8 -> 0.00 | F9: ='Cash flow'!F23-'Balance sheet'!F8 -> 0.00 | G9: ='Cash flow'!G23-'Balance sheet'!G8 -> 0.00 | H9: ='Cash flow'!H23-'Balance sheet'!H8 -> 0.00 | I9: ='Cash flow'!I23-'Balance sheet'!I8 -> 0.00 | J9: ='Cash flow'!J23-'Balance sheet'!J8 -> 0.00 | K9: ='Cash flow'!K23-'Balance sheet'!K8 -> 0.00 | L9: ='Cash flow'!L23-'Balance sheet'!L8 -> 0.00 | M9: ='Cash flow'!M23-'Balance sheet'!M8 -> 0.00 | N9: ='Cash flow'!N23-'Balance sheet'!N8 -> 0.00 | O9: ='Cash flow'!O23-'Balance sheet'!O8 -> 0.00 | P9: ='Cash flow'!P23-'Balance sheet'!P8 -> 0.00
C10: Direct to indirect cash | E10: ='Working capital'!E10-'Working capital'!E15-'Payroll'!E21-'Assets debt'!E21-'Assets debt'!E18-'Assets debt'!E9-'Assets debt'!E16-'Cash flow'!E21 -> 0.00 | F10: ='Working capital'!F10-'Working capital'!F15-'Payroll'!F21-'Assets debt'!F21-'Assets debt'!F18-'Assets debt'!F9-'Assets debt'!F16-'Cash flow'!F21 -> (0.00) | G10: ='Working capital'!G10-'Working capital'!G15-'Payroll'!G21-'Assets debt'!G21-'Assets debt'!G18-'Assets debt'!G9-'Assets debt'!G16-'Cash flow'!G21 -> 0.00 | H10: ='Working capital'!H10-'Working capital'!H15-'Payroll'!H21-'Assets debt'!H21-'Assets debt'!H18-'Assets debt'!H9-'Assets debt'!H16-'Cash flow'!H21 -> 0.00 | I10: ='Working capital'!I10-'Working capital'!I15-'Payroll'!I21-'Assets debt'!I21-'Assets debt'!I18-'Assets debt'!I9-'Assets debt'!I16-'Cash flow'!I21 -> 0.00 | J10: ='Working capital'!J10-'Working capital'!J15-'Payroll'!J21-'Assets debt'!J21-'Assets debt'!J18-'Assets debt'!J9-'Assets debt'!J16-'Cash flow'!J21 -> (0.00) | K10: ='Working capital'!K10-'Working capital'!K15-'Payroll'!K21-'Assets debt'!K21-'Assets debt'!K18-'Assets debt'!K9-'Assets debt'!K16-'Cash flow'!K21 -> 0.00 | L10: ='Working capital'!L10-'Working capital'!L15-'Payroll'!L21-'Assets debt'!L21-'Assets debt'!L18-'Assets debt'!L9-'Assets debt'!L16-'Cash flow'!L21 -> (0.00) | M10: ='Working capital'!M10-'Working capital'!M15-'Payroll'!M21-'Assets debt'!M21-'Assets debt'!M18-'Assets debt'!M9-'Assets debt'!M16-'Cash flow'!M21 -> (0.00) | N10: ='Working capital'!N10-'Working capital'!N15-'Payroll'!N21-'Assets debt'!N21-'Assets debt'!N18-'Assets debt'!N9-'Assets debt'!N16-'Cash flow'!N21 -> (0.00) | O10: ='Working capital'!O10-'Working capital'!O15-'Payroll'!O21-'Assets debt'!O21-'Assets debt'!O18-'Assets debt'!O9-'Assets debt'!O16-'Cash flow'!O21 -> 0.00 | P10: ='Working capital'!P10-'Working capital'!P15-'Payroll'!P21-'Assets debt'!P21-'Assets debt'!P18-'Assets debt'!P9-'Assets debt'!P16-'Cash flow'!P21 -> 0.00
C11: Revenue / cohort reconciliation | E11: ='P&L'!E8+'P&L'!E9+'P&L'!E10-'P&L'!E11 -> 0.00 | F11: ='P&L'!F8+'P&L'!F9+'P&L'!F10-'P&L'!F11 -> 0.00 | G11: ='P&L'!G8+'P&L'!G9+'P&L'!G10-'P&L'!G11 -> 0.00 | H11: ='P&L'!H8+'P&L'!H9+'P&L'!H10-'P&L'!H11 -> 0.00 | I11: ='P&L'!I8+'P&L'!I9+'P&L'!I10-'P&L'!I11 -> 0.00 | J11: ='P&L'!J8+'P&L'!J9+'P&L'!J10-'P&L'!J11 -> 0.00 | K11: ='P&L'!K8+'P&L'!K9+'P&L'!K10-'P&L'!K11 -> 0.00 | L11: ='P&L'!L8+'P&L'!L9+'P&L'!L10-'P&L'!L11 -> 0.00 | M11: ='P&L'!M8+'P&L'!M9+'P&L'!M10-'P&L'!M11 -> 0.00 | N11: ='P&L'!N8+'P&L'!N9+'P&L'!N10-'P&L'!N11 -> 0.00 | O11: ='P&L'!O8+'P&L'!O9+'P&L'!O10-'P&L'!O11 -> 0.00 | P11: ='P&L'!P8+'P&L'!P9+'P&L'!P10-'P&L'!P11 -> 0.00
C12: Deferred revenue roll-forward | E12: ='Revenue'!E35+'Revenue'!E34-'Revenue'!E17-'Revenue'!E36 -> 0.00 | F12: ='Revenue'!F35+'Revenue'!F34-'Revenue'!F17-'Revenue'!F36 -> 0.00 | G12: ='Revenue'!G35+'Revenue'!G34-'Revenue'!G17-'Revenue'!G36 -> 0.00 | H12: ='Revenue'!H35+'Revenue'!H34-'Revenue'!H17-'Revenue'!H36 -> 0.00 | I12: ='Revenue'!I35+'Revenue'!I34-'Revenue'!I17-'Revenue'!I36 -> 0.00 | J12: ='Revenue'!J35+'Revenue'!J34-'Revenue'!J17-'Revenue'!J36 -> 0.00 | K12: ='Revenue'!K35+'Revenue'!K34-'Revenue'!K17-'Revenue'!K36 -> 0.00 | L12: ='Revenue'!L35+'Revenue'!L34-'Revenue'!L17-'Revenue'!L36 -> 0.00 | M12: ='Revenue'!M35+'Revenue'!M34-'Revenue'!M17-'Revenue'!M36 -> 0.00 | N12: ='Revenue'!N35+'Revenue'!N34-'Revenue'!N17-'Revenue'!N36 -> 0.00 | O12: ='Revenue'!O35+'Revenue'!O34-'Revenue'!O17-'Revenue'!O36 -> 0.00 | P12: ='Revenue'!P35+'Revenue'!P34-'Revenue'!P17-'Revenue'!P36 -> 0.00
C13: Receivables roll-forward | E13: ='Working capital'!E8+'Working capital'!E9-'Working capital'!E10-'Working capital'!E11 -> 0.00 | F13: ='Working capital'!F8+'Working capital'!F9-'Working capital'!F10-'Working capital'!F11 -> 0.00 | G13: ='Working capital'!G8+'Working capital'!G9-'Working capital'!G10-'Working capital'!G11 -> 0.00 | H13: ='Working capital'!H8+'Working capital'!H9-'Working capital'!H10-'Working capital'!H11 -> 0.00 | I13: ='Working capital'!I8+'Working capital'!I9-'Working capital'!I10-'Working capital'!I11 -> 0.00 | J13: ='Working capital'!J8+'Working capital'!J9-'Working capital'!J10-'Working capital'!J11 -> 0.00 | K13: ='Working capital'!K8+'Working capital'!K9-'Working capital'!K10-'Working capital'!K11 -> 0.00 | L13: ='Working capital'!L8+'Working capital'!L9-'Working capital'!L10-'Working capital'!L11 -> 0.00 | M13: ='Working capital'!M8+'Working capital'!M9-'Working capital'!M10-'Working capital'!M11 -> 0.00 | N13: ='Working capital'!N8+'Working capital'!N9-'Working capital'!N10-'Working capital'!N11 -> 0.00 | O13: ='Working capital'!O8+'Working capital'!O9-'Working capital'!O10-'Working capital'!O11 -> 0.00 | P13: ='Working capital'!P8+'Working capital'!P9-'Working capital'!P10-'Working capital'!P11 -> 0.00
C14: Payables roll-forward | E14: ='Working capital'!E13+'Working capital'!E14-'Working capital'!E15-'Working capital'!E16 -> 0.00 | F14: ='Working capital'!F13+'Working capital'!F14-'Working capital'!F15-'Working capital'!F16 -> 0.00 | G14: ='Working capital'!G13+'Working capital'!G14-'Working capital'!G15-'Working capital'!G16 -> 0.00 | H14: ='Working capital'!H13+'Working capital'!H14-'Working capital'!H15-'Working capital'!H16 -> 0.00 | I14: ='Working capital'!I13+'Working capital'!I14-'Working capital'!I15-'Working capital'!I16 -> 0.00 | J14: ='Working capital'!J13+'Working capital'!J14-'Working capital'!J15-'Working capital'!J16 -> 0.00 | K14: ='Working capital'!K13+'Working capital'!K14-'Working capital'!K15-'Working capital'!K16 -> 0.00 | L14: ='Working capital'!L13+'Working capital'!L14-'Working capital'!L15-'Working capital'!L16 -> 0.00 | M14: ='Working capital'!M13+'Working capital'!M14-'Working capital'!M15-'Working capital'!M16 -> 0.00 | N14: ='Working capital'!N13+'Working capital'!N14-'Working capital'!N15-'Working capital'!N16 -> 0.00 | O14: ='Working capital'!O13+'Working capital'!O14-'Working capital'!O15-'Working capital'!O16 -> 0.00 | P14: ='Working capital'!P13+'Working capital'!P14-'Working capital'!P15-'Working capital'!P16 -> 0.00
C15: Monthly event cash to statements | E15: =0 -> 0.00 | F15: =0 -> 0.00 | G15: =0 -> 0.00 | H15: =0 -> 0.00 | I15: =0 -> 0.00 | J15: =0 -> 0.00 | K15: =0 -> 0.00 | L15: =0 -> 0.00 | M15: =SUMIFS('13 week cash'!$F$28:$F79,'13 week cash'!$E$28:$E$79,">="&46266,'13 week cash'!$E$28:$E$79,"<="&46295)-'Cash flow'!M21 -> (0.00) | N15: =SUMIFS('13 week cash'!$F$28:$F79,'13 week cash'!$E$28:$E$79,">="&46296,'13 week cash'!$E$28:$E$79,"<="&46326)-'Cash flow'!N21 -> (0.00) | O15: =SUMIFS('13 week cash'!$F$28:$F79,'13 week cash'!$E$28:$E$79,">="&46327,'13 week cash'!$E$28:$E$79,"<="&46356)-'Cash flow'!O21 -> 0.00 | P15: =SUMIFS('13 week cash'!$F$28:$F79,'13 week cash'!$E$28:$E$79,">="&46357,'13 week cash'!$E$28:$E$79,"<="&46387)-'Cash flow'!P21 -> 0.00
C19: Opening AR records tie to August balance | E19: =SUM('Working capital'!F26:F33)-'Balance sheet'!L9 -> 0.00
C20: Opening AP records tie to August balance | E20: =SUM('Working capital'!G40:G47)-'Balance sheet'!L17 -> 0.00
C21: Daily closing cash to week 13 | E21: ='13 week cash'!H185-'13 week cash'!Q17 -> 0.00
C22: November 30 bridge | E22: ='Balance sheet'!O8-'13 week cash'!Q17-SUMIFS('13 week cash'!$F$28:$F79,'13 week cash'!$E$28:$E$79,46356) -> 0.00
C25: Zero differences pass at €0.01 tolerance. Historical dated-event checks are not applicable.

Sheet Guide
C2: Guide
C4: Selected case | E4: ='Assumptions'!$G$4 -> Base | H4: EUR · entirely fictional
C8: Every company, record and figure is independently fictional. No client numbers, names or copies are included.
C10: Change Assumptions E4: 1 Base, 2 Downside. One operating forecast build feeds the statements, schedules and cash. Historical drivers and original budget stay unchanged.
C12: EUR units. Expenses and cash outflows are negative. Accumulated depreciation is positive and subtracted from asset cost.
C14: The model excludes VAT/sales tax, foreign exchange and statutory filing calculations. Illustrative current tax is 20% of positive monthly profit, without loss relief. Debit tax balances are shown as prepayments.
C16: Loaded payroll includes employer costs. Development expenditure is expensed. Capital additions depreciate over 36 months with a full first-month charge. Opening assets depreciate at €3,000 monthly.
C18: Debt amortises €5,000 monthly, capped at remaining principal. Interest is 6.5% annually on opening monthly debt. No automatic borrowing or overdraft is assumed.
C20: Negative cash is an unfunded requirement. The 13-week forecast includes daily cash through 29 November; weekly closing totals can hide earlier cash shortages.
C22: Opening AR/AP use individual cash dates. Residual new receipts and vendor payments are assumed 45% on day 15 and 55% on day 28. These dates are planning assumptions, not bank evidence.
C24: Approval, review completion and hold release are separate AP payment prerequisites. Held balances remain liabilities. Due dates determine ageing, not permission to pay.
C26: Forecast receivables use a target DSO, limited by available billings and scheduled opening receipts. Unpaid opening invoices set a floor. Implied DSO can differ from the target.
C28: Consumption is measured in millions of tokens for revenue and costs. Cache discounts apply only to cached input tokens. Subscription/platform fees exclude metered usage.
C30: Cloud expense is the higher of consumed compute and the minimum commitment. Storage/security costs are additional. Unused commitments remain expense.
C32: Product contribution allocates shared support/cloud costs by revenue share. Model inference cost is directly attributed to usage. Actual client profitability requires customer/workload attribution.
C34: Enterprise deferred revenue is 75% of monthly platform revenue as a simplified advance-billing assumption. Replace with contract dates and service-period schedules for a live business.
C36: JSON captures are evaluated outputs for website use and require regeneration after workbook edits. Native Excel application recalculation was not available.
